Workbook

Sheet Blad1 (hidden)

Sheet Aanvraag inhuur
A1: Inhuurformulier Inhuur ICT-Professionals | C1: Referentienummer (wordt ingevuld door inhuurdesk) | H1: ='Brongegevens dienst'!B12 -> 5.6
A2: =CONCATENATE("AV",D1) -> AV | B2: =VLOOKUP(B18,'Brongegevens dienst'!D3:G3,4,FALSE) -> K:\5 Inkooptrajecten\5.7 Inhuur\ICT\CJIB\ | C2: =CONCATENATE("RI",D1) -> RI | G2: ='Brongegevens dienst'!A10 -> K:\5 Inkooptrajecten\5.7 Inhuur\ICT\CJIB\ | I2: ='Brongegevens dienst'!A10 -> K:\5 Inkooptrajecten\5.7 Inhuur\ICT\CJIB\
C3: Capaciteitsaanvraagnummer CJIB | H3: !IUC-N | I3: =CONCATENATE("AV",D1) -> AV
A4: Soort minicompetitie* | B4: Zonder leiding en toezicht | C4: =IF(B4="Perceel 1", "Soort1","Soort2") -> Soort2 | I4: ='Brongegevens dienst'!A12 -> Versienummer formulier
A5: Type Aanvraag* | B5: Regulier | C5: è Toelichting aanvraag | I5: ='Brongegevens dienst'!A10 -> K:\5 Inkooptrajecten\5.7 Inhuur\ICT\CJIB\
A6: Eventueel maximum uurtarief
A7: Spoedaanvraag* | B7: Nee
A9: Verwacht aantal gunningen (FTE) bij deze aanvraag* | B9: 1 | C9: Bij meerdere geschikte kandidaten behoudt CJIB zich het recht voor om meerdere gunningen te doen. | D9: Voor opdrachtnemers : - U moet bij deze aanvraag minimaal één regel rapporteren. Indien u meer kandidaten mag aanbieden en u doet dit ook, dan moet u uiteraard ook meer regels invullen bij de rapportage. - Correspondentie over deze aanvraag via onderstaand e-mailadres.
A11: Max. aantal CV's (Offertes) per opdrachtnemer* | B11: 1
A13: Aanvraagformulier volledig invullen en als bijlage via een email naar de inhuurdesk verzenden. Velden met een * zijn verplicht in te vullen. | D13: ='Brongegevens dienst'!B20 -> iuc-inhuur@iuc-noord.nl
B15: AANVRAGER
A17: Departement* | B17: ='Brongegevens dienst'!C3 -> Ministerie van Justitie & Veiligheid
A18: Deelnemer* | B18: ='Brongegevens dienst'!D3 -> CJIB
A19: Afdeling/ Bedrijfsonderdeel*
A21: Inhurend manager | C21: Behandelend inkoper
B23: OPDRACHT
A25: Opdrachtbeschrijving * - werkzaamheden of - prestatiedoelstelling
A27: Achtergrond opdracht* | B27: Bij het CJIB werken we hybride. Gemiddeld werken we <…> dagen per week op kantoor in Leeuwarden.
A29: Organisatorische context en cultuur | B29: ='Brongegevens dienst'!A23 -> Het CJIB is een relatief jonge en ambitieuze uitvoeringsorganisatie van het Ministerie van Justitie en Veiligheid en is gevestigd te Leeuwarden. Ruim 1900 gedreven medewerkers zorgen ervoor dat de taken op een juiste wijze, ondersteund door adequate en slimme ICT, binnen het gestelde kader worden uitgevoerd. De ICT-organisatie heeft een interne schil medewerkers met de mogelijkheid om flexibel personeel bij te schakelen. Er wordt gewerkt met DevOps-teams die hoogwaardige (ICT) producten ontwikkelen en beheren.
B32: PLANNING (IN TE VULLEN DOOR DE INHUURDESK)
A34: Planning | B34: Datum Offerte aanvraag* | C34: =NOW() -> 2024-04-08T09:50:05.060 | D34: =NOW() -> 45390.40978
B36: Eindmoment stellen van vragen* | C36: =IF(C34>0,WORKDAY(C34,1,Feestdagen),"") -> 2024-04-09 | D36: =D34 -> 45390.40978
B37: Eindmoment beantwoording vragen* | C37: =IF(C36>0,WORKDAY(C36,1,Feestdagen),"") -> 2024-04-10 | D37: =D34 -> 45390.40978
B39: Indienen Offertes* | C39: =IF(C37>0,WORKDAY(C37,2,Feestdagen),"") -> 2024-04-12 | D39: =D34 -> 45390.40978
B41: Data selectie/verificatie gesprekken
B43: Streefdatum mededeling gunning*
B48: SELECTIE KWALITEITENPROFIEL UIT KWALITEITSRAAMWERK I(v)
A49: Selecteer vanuit het kwaliteitsraamwerk I(v) vanuit de hoofdgroep het meest dominante kwaliteitenprofiel en de functiefamilie voor deze functie om het gewenste resultaat van de opdracht te behalen. Geef vervolgens aan op welk(e) professionele kennisgebied(en) de aanvraag specifiek betrekking heeft. Er moet minimaal één kennisgebied vereist zijn, maar meer mag ook. Op het werkblad "Kwaliteitsraamwerk I(v) info" staat meer informatie over de kwaliteitenprofielen of kijk op www.functiegebouwrijk.nl.
A51: Hoofdgroep* | C51: Kwaliteitenprofiel*
A52: Functiefamilie* | C52: Bijbehorende competenties | D52: =IF($B$52="","",VLOOKUP(B52,$K$53:$N$55,4,FALSE)) ->  | K52: =IF($D$51=0,"",VLOOKUP($D$51,'Kwaliteitsraamwerk I(v)'!$G$2:$AE$62,10,FALSE)) ->  | L52: =IF($D$51=0,"",VLOOKUP($D$51,'Kwaliteitsraamwerk I(v)'!$G$2:$AE$62,11,FALSE)) ->  | M52: =IF($D$51=0,"",VLOOKUP($D$51,'Kwaliteitsraamwerk I(v)'!$G$2:$AE$62,12,FALSE)) ->  | N52: =IF($D$51=0,"",VLOOKUP($D$51,'Kwaliteitsraamwerk I(v)'!$G$2:$AE$62,13,FALSE)) -> 
A53: Functiegroep | B53: =IF($B$52="","",VLOOKUP(B52,$K$53:$M$55,2,FALSE)) ->  | K53: =IF($D$51=0,"",VLOOKUP($D$51,'Kwaliteitsraamwerk I(v)'!$G$2:$AG$65,14,FALSE)) ->  | L53: =IF($D$51=0,"",VLOOKUP($D$51,'Kwaliteitsraamwerk I(v)'!$G$2:$AG$65,15,FALSE)) ->  | M53: =IF($D$51=0,"",VLOOKUP($D$51,'Kwaliteitsraamwerk I(v)'!$G$2:$AG$65,16,FALSE)) ->  | N53: =IF($D$51=0,"",VLOOKUP($D$51,'Kwaliteitsraamwerk I(v)'!$G$2:$AG$65,17,FALSE)) -> 
A54: Schaalrange | B54: =IF($B$52="","",VLOOKUP(B52,$K$53:$M$55,3,FALSE)) ->  | K54: =IF($D$51=0,"",VLOOKUP($D$51,'Kwaliteitsraamwerk I(v)'!$G$2:$AG$65,18,FALSE)) ->  | L54: =IF($D$51=0,"",VLOOKUP($D$51,'Kwaliteitsraamwerk I(v)'!$G$2:$AG$65,19,FALSE)) ->  | M54: =IF($D$51=0,"",VLOOKUP($D$51,'Kwaliteitsraamwerk I(v)'!$G$2:$AG$65,20,FALSE)) ->  | N54: =IF($D$51=0,"",VLOOKUP($D$51,'Kwaliteitsraamwerk I(v)'!$G$2:$AG$65,21,FALSE)) -> 
B55: Professionele Kennisgebieden | C55: Certificaten | J55: =IF(B56=" ","V"," ") ->  | K55: =IF($D$51=0,"",VLOOKUP($D$51,'Kwaliteitsraamwerk I(v)'!$G$2:$AG$65,22,FALSE)) ->  | L55: =IF($D$51=0,"",VLOOKUP($D$51,'Kwaliteitsraamwerk I(v)'!$G$2:$AG$65,23,FALSE)) ->  | M55: =IF($D$51=0,"",VLOOKUP($D$51,'Kwaliteitsraamwerk I(v)'!$G$2:$AG$65,24,FALSE)) ->  | N55: =IF($D$51=0,"",VLOOKUP($D$51,'Kwaliteitsraamwerk I(v)'!$G$2:$AG$65,25,FALSE)) -> 
B56: =IF($D$51=0,"",VLOOKUP($D$51,'Kwaliteitsraamwerk I(v)'!$G$2:$AG$65,2,FALSE)) ->  | C56: =IF($D$51=0,"",VLOOKUP($D$51,'Kwaliteitsraamwerk I(v)'!$G$2:$AG$65,3,FALSE)) ->  | J56: =IF(B56=" ","V"," ") -> 
B57: =IF($D$51=0,"",VLOOKUP($D$51,'Kwaliteitsraamwerk I(v)'!$G$2:$AG$65,4,FALSE)) ->  | C57: =IF($D$51=0,"",VLOOKUP($D$51,'Kwaliteitsraamwerk I(v)'!$G$2:$AG$65,5,FALSE)) -> 
B58: =IF($D$51=0,"",VLOOKUP($D$51,'Kwaliteitsraamwerk I(v)'!$G$2:$AG$65,6,FALSE)) ->  | C58: =IF($D$51=0,"",VLOOKUP($D$51,'Kwaliteitsraamwerk I(v)'!$G$2:$AG$65,7,FALSE)) -> 
B59: =IF($D$51=0,"",VLOOKUP($D$51,'Kwaliteitsraamwerk I(v)'!$G$2:$O$62,8,FALSE)) ->  | C59: =IF($D$51=0,"",VLOOKUP($D$51,'Kwaliteitsraamwerk I(v)'!$G$2:$AG$65,9,FALSE)) -> 
B60: =IF($D$51=0,"",VLOOKUP($D$51,'Kwaliteitsraamwerk I(v)'!$G$2:$AG$65,10,FALSE)) ->  | C60: =IF($D$51=0,"",VLOOKUP($D$51,'Kwaliteitsraamwerk I(v)'!$G$2:$AG$65,11,FALSE)) -> 
B61: =IF($D$51=0,"",VLOOKUP($D$51,'Kwaliteitsraamwerk I(v)'!$G$2:$AG$65,12,FALSE)) ->  | C61: =IF($D$51=0,"",VLOOKUP($D$51,'Kwaliteitsraamwerk I(v)'!$G$2:$AG$65,13,FALSE)) -> 
B62: Aanvullende kennisgebieden/Voorbeelden van opleidingen | J62: =IF(B63=" ","V"," ") -> 
B63: =IF($D$51=0,"",VLOOKUP($D$51,'Kwaliteitsraamwerk I(v)'!$G$2:$AG$65,27,FALSE)) -> 
B64: Toelichting | J64: =IF(B65=" ","V"," ") -> 
B65: =IF($D$51=0,"",VLOOKUP($D$51,'Kwaliteitsraamwerk I(v)'!$G$2:$AG$65,26,FALSE)) ->  | J65: =IF(B65=" ","V"," ") -> 
A67: Functieschaal deze aanvraag conform salarisschaal Rijk*
A69: Functienaam (roepnaam)
B71: EISEN BIJ DEZE AANVRAAG | C71: â Let op! Eisen zijn knock-out criteria, SMART/meetbaar maken
B72: Professionele Kennisgebieden* | C72: Opleiding, Certificaten, Kennisniveau*
A73: Dominant Kwaliteitenprofiel*
B78: Kwaliteitenprofielen | C78: Opleiding, Certificaten, Kennisniveau
A79: Overige vereiste kennisgebieden uit kwaliteitsraamwerk I(v)
H83: Bewezen aantal jaar
B84: Werk- en denkniveau (algemeen en specifiek)
A85: Ervaring
B92: WENSEN BIJ DEZE AANVRAAG
A94: Competenties
A99: Aanvullende kennis en ervaring
A104: Overige functiewensen
B109: WEGING GUNNINGSCRITERIA
A110: Vul een waarde in, indien een criterium van toepassing is. Totaal van alle ingevulde criteria moet gelijk zijn aan 100.
A112: Criteria* | B112: Initieel Tarief | C112: 20 | H112: Prijscriterium
B113: Optioneel: Duurzaamheidsaspecten en social return doelgroep bij inzet Kandidaat | D113: Basis beoordeling naar aanleiding van nadere offerte | H113: Kwalitatieve criteria
B114: Relevante werkervaring Kandidaat | C114: 20 | E114: Verificatie in selectiegesprek
B115: Kennis, competenties Kandidaat | C115: 20
B116: Beschikbaarheid Kandidaat
B117: Mate waarin Kandidaat de opdracht begrijpt | C117: 20 | D117: Beoordeling d.m.v. selectiegesprek (verificatie)
B118: Kandidaat past bij organisatie | C118: 20
B119: Optioneel: plan van aanpak uitvoering opdracht
B120: Totaal | C120: =SUM(C112:C119) -> 100
A122: Toelichting duurzaamheid (verplicht indien meetellend voor gunning)
A124: Toelichting beschikbaarheid (verplicht indien meetellend voor gunning)
B126: INZETGEGEVENS
A128: Inzetgegevens | B128: Gewenste startdatum*
B129: Initiële einddatum* | D129: Aantal maanden initiële inhuurtermijn | G129: =IF(C129<>0,IF(DAY(C129)>=DAY(C128),0,-1)+(YEAR(C129)-YEAR(C128)) *12+MONTH(C129)-MONTH(C128)+1,0) -> 0
B131: Optie op verlenging*
B132: Verlengingsinformatie gebaseerd op periode(s) | D132: of Verlengingsinformatie gebaseerd op een project
B133: Maximaal aantal verlengingen | D133: Geplande einddatum project
B134: Termijn per verlenging in maanden | D134: =IF(C131="Ja",IF(OR(C133<>0,C134<>0),IF(F133<>0,"Slechts één deel verlengingsinformatie invullen",""),""),"") -> 
B135: =IF(C129>0,"Verwachte uiterste einddatum inzet","") ->  | C135: =IF(C129>0,IF(C131="Ja",IF(C133*C134>0,IF(C129>0,EDATE(C129,C133*C134),IF(C129>0,C129,"")),IF(F133>0,F133,C129)),IF(C129>0,C129,"")),"") ->  | F135: =IF(B5="Strippenkaart","In te vullen bij Strippenkaart","") -> 
B136: Uren per week* | C136: 36 | D136: =IF(B5="Strippenkaart","Uren per week is 0 bij een strippenkaart. Maximaal aantal uur is dan wel verplicht.","") ->  | F136: =IF(B5="Strippenkaart","Beschikbaar na oproep in uren","") -> 
B137: Max. aantal uren initiële inhuurtermijn* | C137: =(NETWORKDAYS(C128,C129,'Brongegevens dienst'!I4:Q27)*(C136/5)) -> 0 | F137: =IF(B5="Strippenkaart","Optie maximaal aantal uren bij uit- breiden/verlengen","") -> 
B139: Vergoeding dienstreizen inbegrepen in tarief Toelichting | C139: Ja
B140: Toelichting
B142: Postcode hoofdstandplaats* | C142: 8913 HA
B143: Naam hoofdstandplaats* | C143: Leeuwarden
B144: Extra standplaats(en) | D144: Toelichting extra standplaats (bv. frequentie over bezoek)
B146: Screeningsitems VOG | C146: 55
B147: Veiligheidsonderzoek vereist* | C147: Nee
B148: VOG aanwezig voor start inzet* | C148: Ja
B150: Vrije vervanging toegestaan* | C150: Ja
B151: Parttimers toegestaan* | C151: Nee
B152: Offsite werken bespreekbaar* | C152: Nee
B154: Consignatiediensten* | C154: Nee
B155: Betrokkenheid bij aanbestedingen* | C155: Nee

Sheet Kwaliteitsraamwerk I(v) (hidden)
A1: Hoofgroep | B1: Plannen | C1: Bouwen | D1: Uitvoeren | E1: Mogelijk maken | F1: Sturen | G1: Kwaliteitenprofielen | H1: PK1 | I1: C1 | J1: PK2 | K1: C2 | L1: PK3 | M1: C3 | N1: PK4 | O1: C4 | P1: PK5 | Q1: C5 | R1: PK6 | S1: C6 | T1: Functiefamilie 1 | U1: Functiegroep 1 | V1: Schaal 1 | W1: Competenties 1 | X1: Functiefamilie 2 | Y1: Functiegroep 2 | Z1: Schaal 2 | AA1: Competenties 2 | AB1: Functiefamilie 3 | AC1: Functiegroep 3 | AD1: Schaal 3 | AE1: Competenties 3 | AF1: Toelichting | AG1: Voorbeelden van opleidingen
A2: Plannen | B2: 1.1.1 INFORMATIEARCHITECTUUR | C2: 2.1.1 APPLICATIEONTWIKKELING | D2: 3.1.1 SYSTEEMBEHEER | E2: 4.1.1 SECURITY MANAGEMENT | F2: 5.1.1 PROJECTLEIDERSCHAP IV | G2: 1.1.1 INFORMATIEARCHITECTUUR | H2: Bestuurlijke informatica | I2: Diverse HBO- en WO-instellingen bieden deze bachelor en/of master aan | J2: Architectuur (methoden, modelleer-technieken, tools, modellen, etc.) | K2: TOGAF Practitioner; NORA; MARIJ (geen certificering); SCIA, ERIA, basisopleiding architectuur Belastingdienst; IDA (Defensie), Archimate Foundation & Practitioner | L2: Informatiemanagement | M2: Business Information Management Foundation | T2: Uitvoering | U2: Expert IV | V2: S11-13 | W2: analyseren, creativiteit, netwerken, omgevingsbewustzijn, organisatiesensitiviteit, overtuigingskracht, plannen en organiseren, resultaatgerichtheid | X2: Bedrijfsvoering | Y2: Senior Adviseur Bedrijfsvoering | Z2: S11-13 | AA2: analyseren, creativiteit, netwerken, omgevingsbewustzijn, organisatiesensitiviteit, overtuigingskracht, plannen en organiseren | AF2: De informatiearchitectuur richt zich op de beschrijving van de inhoudelijk relaties en samenhang tussen toepassingen en gegevensverzamelingen onderling. Het opstellen, beheren en integreren van de structuur van applicaties, databases en andere (data)gegevensverzamelingen. Ook in persoonlijke applicaties, zoals spreadsheets. Daarbij wordt gelet op eventueel gewijzigde informatiebehoeften van gebruikers. Daarnaast worden de beleidsregels voor het beheer van de (elementen van de) informatiearchitectuur opgesteld. Hoewel het vakgebied datamanagement meestal verantwoordelijk is voor het beheer van het bedrijfsdatamodel, wordt dit voor de invulling van dit model vaak bij data- of informatiearchitectuur (KWIV 1.1.3) belegd. | AG2: Informatiebeveiliging : Information Security Foundation based on ISO/IEC 27002 Ontwikkeling informatiesystemen : Ontwikkeling Informatiesystemen Foundation
A3: Bouwen | B3: 1.1.2 FUNCTIONEEL ONTWERP/STARTARCHITECTUUR | C3: 2.1.2 SYSTEEMONTWIKKELING | D3: 3.1.2 CHANGE MANAGEMENT | E3: 4.1.2 INFORMATIERISICOMANAGEMENT | F3: 5.1.2 PROJECTMANAGEMENT IV | G3: 1.1.2 FUNCTIONEEL ONTWERP/STARTARCHITECTUUR | H3: Proces Modelleren en Analyseren | I3: ARIS; Mavin, BiZZ designer | J3: Bedrijfsregels modelleren | K3: Business Rules Modeling Foundation Course | T3: Uitvoering | U3: Senior Medewerker IV | V3: S8-11 | W3: analyseren, klantgerichtheid, omgevingsbewustzijn, plannen en organiseren, resultaatgerichtheid, samenwerken, voortgangscontrole, zelfontwikkeling | X3: Bedrijfsvoering | Y3: Adviseur Bedrijfsvoering | Z3: S8-11 | AA3: analyseren, klantgerichtheid, omgevingsbewustzijn, plannen en organiseren, samenwerken, voortgangscontrole, zelfontwikkeling | AF3: Functioneel ontwerp/ startarchitectuur richt zich op het beschrijven van wat het informatiesysteem moet kunnen. Samen met (eind)gebruikers en de opdrachtgever worden functionele specificaties opgesteld, waaraan een informatiesysteem moet voldoen. Het ontwerp wordt (mede) op basis van de input vanuit vakgebieden informatieanalyse (KWIV 4.3.1) en/of business analyse (KWIV 4.3.2) gemaakt. Het gaat om het analyseren, modelleren en specifiek de eisen aan informatie bij de gebruikers vaststellen. Het beheer en onderhoud van een informatiesysteem ligt meestal bij functioneel beheer en/of applicatiebeheer. Vanuit functioneel ontwerp/ startarchitectuur wordt ook een bijdrage aan testplannen voor functionele en acceptatietesten geleverd. | AG3: Architectuur : NORA, MARIJ (geen certificering) Ontwikkeling van informatiesystemen : Ontwerp en Ontwikkeling Informatiesystemen, Foundation; RAD/LAD; XML/UML; XBRL Programmeren : Java; C#; .Net; Visual Basic; SAP/ERP; Cobol; Python; PHP Gegevensmodellering : Oracle; Databases en SQL Foundation; Objectoriëntatie Foundation Testen : Testen Foundation; TMapNEXT Foundation
A4: Uitvoeren | B4: 1.1.3 APPLICATIEARCHITECTUUR | C4: 2.1.3 NETWERKONTWIKKELING | D4: 3.1.3 FUNCTIONEEL BEHEER | E4: 4.1.3 CYBERSECURITY MANAGEMENT | F4: 5.1.3 PROGRAMMAMANAGEMENT IV | G4: 1.1.3 APPLICATIEARCHITECTUUR | H4: Bestuurlijke informatica | I4: Bachelor Bedrijfskundige Informatica | J4: Architectuur (methoden, modelleer-technieken, tools, modellen, etc.) | K4: TOGAF Practitioner; NORA; MARIJ (geen certificering); ERIA, basisopleiding architectuur Belastingdienst; IDA (Defensie) Archimate Foundation & Practitioner | L4: Informatiemanagement | M4: Business Information Management Foundation | T4: Uitvoering | U4: Expert IV | V4: S11-13 | W4: analyseren, creativiteit, netwerken, omgevingsbewustzijn, organisatiesensitiviteit, overtuigingskracht, plannen en organiseren, resultaatgerichtheid | X4: Bedrijfsvoering | Y4: Senior Adviseur Bedrijfsvoering | Z4: S11-13 | AA4: analyseren, creativiteit, netwerken, omgevingsbewustzijn, organisatiesensitiviteit, overtuigingskracht, plannen en organiseren | AF4: Applicatiearchitectuur richt zich op het beschrijven van de samenhang van de applicaties en informatiesystemen binnen de organisatie. Het modelmatig beschrijven van het applicatielandschap (de daadwerkelijk systemen in productie). Daarbij wordt vanuit de principes van onder meer Nora, Gemma, et cetera gewerkt. Dit vakgebied komt vooral voor in organisaties waar grote en complexe systemen worden ontwikkeld. Tevens bij de ontwikkeling van administratieve applicaties en embedded software (software geschreven om machines en apparaten te besturen). Vaak is applicatiearchitectuur sterk verbonden met informatiearchitectuur (KWIV 1.1.1). | AG4: Programmeren : Java; C#; .Net; Visual Basic; SAP/ERP; Groupware/Lotus Notes; Powerbuilder/Sybase; Cobol/Cics/DB2; Cool Gen Informatiebeveiliging : Information Security Foundation based on ISO/IEC 27002 Ontwikkeling informatiesystemen : Ontwikkeling Informatiesystemen Foundation Applicatiemanagement : Applicatiemanagement Foundation
A5: Mogelijk maken | B5: 1.1.4 TECHNISCHE ARCHITECTUUR | C5: 2.1.4 DATA ENGINEERING | D5: 3.1.4 SERVERBEHEER | E5: 4.2.1 CATEGORIEMANAGEMENT IV | F5: 5.1.4 PORTFOLIOMANAGEMENT IV | G5: 1.1.4 TECHNISCHE ARCHITECTUUR | H5: Bestuurlijke Informatica | I5: Bachelor Bedrijfskundige Informatica | J5: Architectuur (methoden, modelleer-technieken, tools, modellen, etc.) | K5: TOGAF Practitioner; NORA; MARIJ (geen certificering); SCIA, ERIA, basisopleiding architectuur Belastingdienst; IDA (Defensie) Archimate Foundation & Practitioner | L5: Informatiemanagement | M5: Business Information Management Foundation | N5: Servicemanagement | O5: Professional ITSM Service Delivery | T5: Uitvoering | U5: Expert IV | V5: S11-13 | W5: analyseren, creativiteit, netwerken, omgevingsbewustzijn, organisatiesensitiviteit, overtuigingskracht, plannen en organiseren, resultaatgerichtheid | X5: Bedrijfsvoering | Y5: Senior Adviseur Bedrijfsvoering | Z5: S11-13 | AA5: analyseren, creativiteit, netwerken, omgevingsbewustzijn, organisatiesensitiviteit, overtuigingskracht, plannen en organiseren | AF5: Technische architectuur richt zich op het beschrijven van de principes, richtlijnen en regels om de informatiesystemen te laten werken. De focus is om de overkoepelende structuur van de technische infrastructuur te ontwerpen. Dit zijn netwerk, servers en storage (opslag). De technische infrastructuur moet worden gebaseerd op de informatiearchitectuur (KWIV 1.1.1), het automatiseringsbeleid en de automatiseringsplannen. Hierbij wordt niet alleen een structuur ontworpen, maar er wordt ook gecontroleerd of aan de gestelde eisen wordt voldaan. Bijvoorbeeld eisen aan passieve en actieve netwerkcomponenten (ook multimedia), systeemsoftware (operating systemen en middleware), de netwerk(beheer)software, servers, server(beheer)software en storage. | AG5: Informatiebeveiliging : Information Security Foundation based on ISO/IEC 27002 Servicemanagement : ITSM Foundation; ITIL Foundation
A6: Sturen | B6: 1.1.5 SYSTEEMARCHITECTUUR | C6: 2.2.1 TESTMANAGEMENT | D6: 3.1.5 NETWERKBEHEER | E6: 4.2.2 INKOOP IV | F6: 5.2.1 SCRUM MASTER | G6: 1.1.5 SYSTEEMARCHITECTUUR | H6: Bestuurlijke Informatica | I6: Bachelor Bedrijfskundige Informatica | J6: Architectuur (methoden, modelleer-technieken, tools, modellen, etc.) | K6: TOGAF Practitioner; NORA; MARIJ (geen certificering); SCIA, ERIA, basisopleiding architectuur Belastingdienst; IDA (Defensie) Archimate Foundation & Practitioner | L6: Informatiemanagement | M6: Business Information Management Foundation | N6: Servicemanagement | O6: Professional ITSM Service Delivery | T6: Uitvoering | U6: Expert IV | V6: S11-13 | W6: analyseren, creativiteit, netwerken, omgevingsbewustzijn, organisatiesensitiviteit, overtuigingskracht, plannen en organiseren, resultaatgerichtheid | X6: Bedrijfsvoering | Y6: Senior Adviseur Bedrijfsvoering | Z6: S11-13 | AA6: analyseren, creativiteit, netwerken, omgevingsbewustzijn, organisatiesensitiviteit, overtuigingskracht, plannen en organiseren | AF6: Systeemarchitectuur richt zich op het beschrijven van een conceptueel model dat de structuur, het gedrag en de weergave van een systeem definieert. Hierbij wordt er rekening gehouden met beveiliging, audits, de prestaties en de uitwisseling van gegevens met externe bronnen of bestemmingen. Systeemarchitectuur overziet het gehele domein in technische zin. De schakel tussen de product- of domeinvisie, en de benodigde aanpassingen aan het specifieke IV-landschap. Binnen het Scaled Agile Framework is systeemarchitectuur verantwoordelijk voor het opstellen van de 'architectural features' op programmaniveau. De systeeminfrastructuur moet passen binnen de informatiearchitectuur (KWIV 1.1.1), het automatiseringsbeleid en de automatiseringsplannen. Hierbij is systeemarchitectuur een belangrijke sparringpartner voor de product manager (KWIV 4.5.2) en product owners (KWIV 4.5.1). Vaak maakt systeemarchitectuur deel uit van het productmanagementteam. | AG6: Informatiebeveiliging : Information Security Foundation based on ISO/IEC 27002 Servicemanagement : ITSM Foundation; ITIL Foundation Scaled Agile Framework : SAFe Agilist, Leading SAFE Agile voor Lead engineers
B7: 1.1.6 ENTERPRISE ARCHITECTUUR | D7: 3.1.6 APPLICATIEBEHEER | E7: 4.2.3 RELATIEMANAGEMENT IV | F7: 5.2.2 RELEASE TRAIN ENGINEER | G7: 1.1.6 ENTERPRISE ARCHITECTUUR | H7: Bestuurlijke informatica | I7: Bachelor Bedrijfskundige Informatica | J7: Architectuur (methoden, modelleer-technieken, tools, modellen, etc.) | K7: TOGAF Practitioner; NORA; MARIJ (geen certificering); SCIA, ERIA, basisopleiding architectuur Belastingdienst; IDA (Defensie) | L7: Informatiemanagement | M7: Business Information Management Foundation | T7: Uitvoering | U7: Expert IV | V7: S11-13 | W7: analyseren, creativiteit, netwerken, omgevingsbewustzijn, organisatiesensitiviteit, overtuigingskracht, plannen en organiseren, resultaatgerichtheid | X7: Bedrijfsvoering | Y7: Senior Adviseur Bedrijfsvoering | Z7: S11-13 | AA7: analyseren, creativiteit, netwerken, omgevingsbewustzijn, organisatiesensitiviteit, overtuigingskracht, plannen en organiseren | AF7: Enterprise architectuur richt zich op over het vertalen van doelstellingen naar de inrichting van organisatie, processen en informatievoorziening en is in het ontwerpproces vaak als een van de eersten betrokken. Vaak is enterprise architectuur betrokken bij het ontwerp en het beheer van de bedrijfsarchitectuur (doellandschap). Waarbij er stappen worden definieert om van de huidige vorm en status (IST) naar de gewenste vorm en status van het IV-landschap en de bedrijfsprocessen (SOLL) te komen. In een SAFe-omgeving is enterprise architectuur verantwoordelijk voor het opstellen van de 'architectural epics' op portfolioniveau. Het vakgebied kan op bedrijfsniveau - dan wel domeinportfolioniveau - samen met business analyse (KWIV 4.3.2) optrekken om alle epics te visualiseren en de organisatie van werkvoorraad te voorzien. Vanuit enterprise architectuur kan de IV-professional hier de rol van 'epic owner' aannemen. | AG7: Informatiebeveiliging : Information Security Foundation based on ISO/IEC 27002 Ontwikkeling informatiesystemen : Ontwikkeling Informatiesystemen Foundation Scaled Agile Framework : Leading SAFE Agile voor Lead engineers User Stories : Writing User Stories Enterprise Architectuur : Opleiding Enterprise architectuur Archimate : Archimate Foundation & Practitioner
B8: 1.2.1 INFORMATIEBELEID | D8: 3.1.7 DATABASEBEHEER | E8: 4.2.4 CONTRACT/LEVERANCIERSMANAGEMENT IV | F8: 5.3.1 INFORMATIEMANAGEMENT | G8: 1.2.1 INFORMATIEBELEID | H8: Bestuurlijke informatica, Bestuurlijke in- formatiekunde | I8: Master Bedrijfskundige Informatica, Master Public Information Management | J8: Architectuur (methoden, modelleer-technieken, tools, modellen, etc.) | K8: TOGAF Practitioner; NORA; MARIJ (geen certificering); SCIA, ERIA, basisopleiding architectuur Belastingdienst; IDA (Defensie), Archimate Foundation & Practitioner | L8: Informatiemanagement | M8: Business Information Management Foundation | T8: Advisering | U8: Coördinerend Specialistisch Adviseur | V8: S13-15 | W8: bestuurssensitiviteit, creativiteit, netwerken, motiveren, samenwerken, overtuigingskracht, plannen en organiseren | X8: Bedrijfsvoering | Y8: Coördinerend/Specialistisch Adviseur Bedrijfsvoering | Z8: S13-15 | AA8: oordeelsvorming, creativiteit, netwerken, motiveren, omgevingsbewustzijn, organisatiesensitiviteit, overtuigingskracht, plannen en organiseren | AF8: Informatiebeleid is gericht op het verbeteren van betrouwbare informatie en van de informatievoorziening (IV), conform het organisatiebeleid. Informatiebeleid omvat de doelen, middelen en wijze om te voorzien in de benodigde IV en om deze in stand te houden. Informatiebeleid stelt een meerjarig informatieplan op, waarin ook uitgangspunten en randvoorwaarden staan met een samenhang tussen missie, bedrijfsdoelstellingen (en benodigde IV) binnen het Rijk. Het vakgebied wordt in groter verband gezien, waarbij nadrukkelijk relaties worden gelegd tussen overheidsorganisaties en bestuurlijke niveaus. Daarbinnen wordt gebruik gemaakt van rijksbrede standaards, richtlijnen en afspraken. | AG8: Informatiebeveiliging : Information Security Foundation based on ISO/IEC 27002 Ontwikkeling informatiesystemen : Ontwikkeling Informatiesystemen Foundation Applicatiemanagement : Applicatiemanagement Foundation Servicemanagement : ITSM Foundation; ITIL Foundation
B9: 1.2.2 INNOVATIEMANAGEMENT | D9: 3.1.8 RECORDBEHEER | E9: 4.3.1 INFORMATIEANALYSE | F9: 5.3.2 DATA/GEGEVENSMANAGEMENT | G9: 1.2.2 INNOVATIEMANAGEMENT | H9: Bestuurlijke Informatica | I9: Bachelor Bedrijfskundige Informatica | J9: Architectuur (methoden, modelleer-technieken, tools, modellen, etc.) | K9: TOGAF Practitioner; NORA; MARIJ (geen certificering); basisopleiding architectuur Belastingdienst; IDA (Defensie), Archimate Foundation & Practitioner | L9: Informatiemanagement | M9: Business Information Management Foundation | T9: Advisering | U9: (Senior) Adviseur | V9: S11-13 | W9: analyseren, creativiteit, netwerken, flexibiliteit, organisatiesensitiviteit, overtuigingskracht, plannen en organiseren | X9: Bedrijfsvoering | Y9: Senior Adviseur Bedrijfsvoering | Z9: S11-13 | AA9: analyseren, creativiteit, netwerken, omgevingsbewustzijn, organisatiesensitiviteit, overtuigingskracht, plannen en organiseren | AF9: Innovatiemanagement richt zich op het consequent verbeteren en (deels) vernieuwen van producten, processen, organisatie en vaardigheden. Gedurende de initiatiefase van (potentieel) nieuwe projecten. Daarbij houdt het rekening met de departementale architectuur-, beveiligings- en privacykaders. De innovatie kan zich uiten in bijvoorbeeld een experiment, een idee uitwerken tot een pilot of een brainstormsessie organiseren om de gebruikerswensen goed boven tafel te krijgen. Ook is het mogelijk de markt op te gaan om de innovatie te beproeven en de levensvatbaarheid concreet te maken. Doorgaans is er contact met een projectenbureau of andere bron waaruit inspiratie tot innovatie kan worden gehaald. Vakgebied heeft raakvlakken met Informatiebeleid (KWIV 1.2.1) en Kwaliteitsmanagement (KWIV 5.3.5). | AG9: Architectuur Postdoc opleidingen, Zoals IMAC, UVA, TI- AS, ROI9 Informatiebeveiliging : Information Security Foundation based on ISO/IEC 27002 Ontwikkeling informatiesystemen : Ontwikkeling Informatiesystemen Foundation Applicatiemanagement : Applicatiemanagement Foundation Servicemanagement : ITSM Foundation; ITIL Foundation
B10: 1.2.3 MANAGEMENT INFORMATIEVOORZIENING | D10: 3.1.9 DATA STEWARDSHIP | E10: 4.3.2 BUSINESS ANALYSE | F10: 5.3.3 RECORDMANAGEMENT | G10: 1.2.3 MANAGEMENT INFORMATIEVOORZIENING | H10: Bestuurlijke informatica, Bestuurlijke in- formatiekunde | I10: Master Bedrijfskundige Informatica, Master Public Information Management | J10: Architectuur (methoden, modelleer-technieken, tools, modellen, etc.) | K10: TOGAF Practitioner; NORA; MARIJ (geen certificering); SCIA, ERIA, basisopleiding architectuur Belasting- dienst; IDA (Defensie), Archimate Foundation & Practitioner | L10: Informatiemanagement | M10: Business Information Management Foundation | T10: Advisering | U10: (Senior) Adviseur | V10: S11-13 | W10: analyseren, creativiteit, netwerken, flexibiliteit, organisatiesensitiviteit, overtuigingskracht, plannen en organiseren | X10: Bedrijfsvoering | Y10: Senior Adviseur Bedrijfsvoering | Z10: S11-13 | AA10: analyseren, creativiteit, netwerken, omgevingsbewustzijn, organisatiesensitiviteit, overtuigingskracht, plannen en organiseren | AB10: Uitvoering | AC10: Expert IV | AD10: S11-13 | AE10: analyseren, creativiteit, netwerken, omgevingsbewustzijn, organisatiesensitiviteit, overtuigingskracht, plannen en organiseren, resultaatgerichtheid | AF10: Management Informatievoorziening richt zich op het beheren en managen van informatie die ondersteuning biedt bij het behalen van de organisatie doelstellingen. In dit proces wordt de informatiebehoefte die vanuit de primaire processen en de IT van de organisatie ontstaan, beantwoord met de informatievoorziening. Het initieert de vertaling van technologische en maatschappelijke ontwikkelingen en de nieuwe informatiebehoeften die hierdoor ontstaan. Binnen deze context zorgt het vakgebied voor realisatie van een duurzaam toegankelijke informatiehuishouding. Dit gebeurt door de uiteenlopende kaders, normen en eisen systematisch te wegen en af te zetten tegen huidig en toekomstig gebruik. Ook verwacht men dat vanuit dit vakgebied adequaat over de proportionaliteit van te nemen maatregelen wordt geadviseerd. | AG10: nformatiebeveiliging : Information Security Foundation based on ISO/IEC 27002 Ontwikkeling informatiesystemen : Ontwikkeling Informatiesystemen Foundation Applicatiemanagement : Applicatiemanagement Foundation Servicemanagement : ITSM Foundation; ITIL Foundation
B11: 1.3.1 SOURCING MANAGEMENT | D11: 3.2.1 TECHNICAL SUPPORT | E11: 4.3.3 BUSINESS INTELLIGENCE/DATA ANALYSE | F11: 5.3.4 METADATA/GEGEVENSMANAGEMENT | G11: 1.3.1 SOURCING MANAGEMENT | H11: Bestuurlijke informatica | I11: Bachelor Bedrijfskundige Informatica | J11: Opleiding Financieel Management van IT | K11: Zie bijvoorbeeld https://www.cibit.nl/nl/opleidingen/opleidingfinancieel-management-van-it/ | T11: Uitvoering | U11: Senior Medewerker Behandelen en Ontwikkelen | V11: S11-13 | W11: analyseren, creativiteit, samenwerken, motiveren, bestuurssensitiviteit, overtuigingskracht, plannen en organiseren, klantgerichtheid | X11: Bedrijfsvoering | Y11: Senior Adviseur Bedrijfsvoering | Z11: S11-13 | AA11: analyseren, creativiteit, netwerken, omgevingsbewustzijn, organisatiesensitiviteit, overtuigingskracht, plannen en organiseren | AF11: Sourcing management richt zich op het adviseren en vastleggen (op IV-gebied) wat de organisatie zelf doet en wat wordt uitbesteed aan leverancier(s). Waarbij er (resultaat)afspraken worden opgesteld met private partijen en/of een (Shared) Service Centrum. Het kan bijvoorbeeld gaan over vernieuwing, ontwikkeling of beheer van applicaties, of het exploiteren van een nieuw rekencentrum. Regionale of landsgrenzen spelen hierbij vrijwel geen rol meer. Ook de wijze waarop de samenwerking tussen klant en leverancier het beste vorm en inhoud kan worden gegeven, behoort tot de expertise. Vaak wordt de beslissing over al dan niet uitbesteden en de contractuele vorm van samenwerking vastgelegd in een sourcingbeleid. | AG11: Informatiesystemen : Informatiesystemen Foundation Informatiemanagement : Business Information Management Foundation Informatiebeveiliging : Information Security Foundation based on ISO/IEC 27002 Contractmanagement : Contractmanagement CATS CM Foundation
D12: 3.2.2 1e LIJNS GEBRUIKERSONDERSTEUNING | E12: 4.3.4 DATA SCIENCE | F12: 5.3.5 KWALITEITSMANAGEMENT IV | G12: 2.1.1 APPLICATIEONTWIKKELING | H12: Professional Developer Scrum | I12: PSD I of vergelijkbare opleiding | J12: SAFe | K12: Leading SAFe | L12: Softwareontwerp | M12: Java Software Designer; Microsoft Certified Solution Developer (etc.) | N12: Methoden en technieken voor Agile ontwerp | O12: RAD/LAD, RUP | P12: Programmeren | Q12: Java; C#; .Net; Visual Basic; SAP/ERP; Oracle; Groupware/Lotus Notes; Powerbuilder/Sybase; Cobol/Cics/DB2; Cool Gen, Ruby on Rails | R12: Testen | S12: Tmap Next Foundation | T12: Uitvoering | U12: Senior Medewerker IV | V12: S8-11 | W12: analyseren, klantgerichtheid, omgevingsbewustzijn, plannen en organiseren, resultaatgerichtheid, samenwerken, voortgangscontrole, zelfontwikkeling | X12: Bedrijfsvoering | Y12: Adviseur Bedrijfsvoering | Z12: S8-11 | AA12: analyseren, klantgerichtheid, omgevingsbewustzijn, plannen en organiseren, samenwerken, voortgangscontrole, zelfontwikkeling | AF12: Applicatieontwikkeling richt zich op het proces van het maken van applicaties. Dit kan bijvoorbeeld zijn (1) modulair opbouwen, (2) aanvullende functionaliteit ontwikkelen of (3) parameterisering: standaardapplicaties geschikt maken voor een specifieke situatie. De manier van technisch ontwerpen en applicatieontwikkeling is hierop aangepast, waaronder het gebruik van open software. Veelgebruikte methodieken bij het ontwikkelen van applicatie/softwaresystemen zijn Agile Scrum, Agile XP en SAFe, waarbij de ontwikkelaars in toenemende mate deel gaan uitmaken van DevOps-teams. Waar systeemontwikkeling (KWIV 2.1.2) verantwoordelijk is voor de back-end, is applicatieontwikkeling verantwoordelijk voor de front-end. | AG12: Ontwikkelen van informatiesystemen : Ontwikkeling informatiesystemen Foundation; Object Oriëntatie Foundation Applicatiemanagement : Applicatiemanagement Foundation (ASL) IT Infrastructuur : IT Foundation; A+ Essentials
D13: 3.2.3 INCIDENT MANAGEMENT | E13: 4.4.1 INFORMATIECOACHING | F13: 5.4.1 IT-CONTROL | G13: 2.1.2 SYSTEEMONTWIKKELING | H13: Service Design | I13: Professional ITSM Delivery of IT Services; ITIL Service Transition | T13: Uitvoering | U13: Senior Medewerker IV | V13: S8-11 | W13: analyseren, klantgerichtheid, omgevingsbewustzijn, plannen en organiseren, resultaatgerichtheid, samenwerken, voortgangscontrole, zelfontwikkeling | X13: Bedrijfsvoering | Y13: Adviseur Bedrijfsvoering | Z13: S8-11 | AA13: analyseren, klantgerichtheid, omgevingsbewustzijn, plannen en organiseren, samenwerken, voortgangscontrole, zelfontwikkeling | AF13: Systeemontwikkeling richt zich op één van de volgende processen: (1) de ontwikkeling van een systeem, (2) het ontwerp en de constructie van een nieuw systeem, of (3) de modificatie van een bestaand systeem of een onderdeel daarvan. Op basis van de wensen van de organisatie en gebruikers wordt dit vertaald naar concrete hardware en software (digitale infrastructuur). Daarbij worden technische systemen gebouwd en/of ontworpen (embedded software, ofwel: software geschreven om machines en apparaten te besturen). Het kan gezien worden als een combinatie tussen ontwerpen en programmeren. Waar applicatieontwikkeling (KWIV 2.1.1) verantwoordelijk is voor de front-end, is systeemontwikkeling verantwoordelijk voor de back-end. | AG13: Ontwikkeling van informatiesystemen : Ontwerp en Ontwikkeling Informatiesystemen Foundation Testen : Testen Foundation Informatietechnologie : IT Foundation; A+ Essentials Applicatiemanagement : Applicatiemanagement Foundation Informatiebeveiliging : Information Security Foundation
D14: 3.2.4 PROBLEM MANAGEMENT | E14: 4.4.2 LEER- EN ONTWIKKELMANAGEMENT | G14: 2.1.3 NETWERKONTWIKKELING | H14: Service Design | I14: Professional ITSM Delivery of IT Services; ITIL Service Transition | T14: Uitvoering | U14: Senior Medewerker IV | V14: S8-11 | W14: analyseren, klantgerichtheid, omgevingsbewustzijn, plannen en organiseren, resultaatgerichtheid, samenwerken, voortgangscontrole, zelfontwikkeling | X14: Bedrijfsvoering | Y14: Adviseur Bedrijfsvoering | Z14: S8-11 | AA14: analyseren, klantgerichtheid, omgevingsbewustzijn, plannen en organiseren, samenwerken, voortgangscontrole, zelfontwikkeling | AF14: Netwerkontwikkeling richt zich op het ontwerp, de implementatie en het beheer en onderhoud van IT-netwerken. Het gaat hierbij om het ontwerpen en configureren van het interne netwerk (LAN; Local Area Network) en de koppelingen met externe netwerken (WAN; Wide Area Network). Dit is dan ook een ander soort ontwikkeling dan applicaties of systemen. Onderdeel hiervan is de componenten van het netwerk (netwerkapparatuur en besturings-, beheer- en netwerkprogrammatuur) te selecteren en het aansturen van de installatie en het beheer van deze componenten. Vaak wordt kennis verwacht van technieken zoals Routing, Switching, DNS, DHCP en IPAM, maar ook van de laatste e-mailbeveiligingsstandaarden. | AG14: Informatiesystemen : Informatiesystemen Foundation Ontwikkeling van informatiesystemen : Ontwerp en Ontwikkeling Informatiesystemen Foundation Informatietechnologie : IT Foundation; A+ Essentials Applicatiemanagement : Applicatiemanagement Foundation Informatiebeveiliging : Information Security Foundation
D15: 3.3.1 SERVICE LEVEL MANAGEMENT | E15: 4.4.3 (AGILE) COACHING | G15: 2.1.4 DATA ENGINEERING | H15: Programmeren | I15: SQL, SAS, Teradata, C, R, Java, Cobol en LSF | J15: Data Management Body of Knowledge | K15: DMBOK | T15: Uitvoering | U15: Senior Medewerker IV | V15: S8-11 | W15: analyseren, klantgerichtheid, omgevingsbewustzijn, plannen en organiseren, resultaatgerichtheid, samenwerken, voortgangscontrole, zelfontwikkeling | X15: Bedrijfsvoering | Y15: Adviseur Bedrijfsvoering | Z15: S8-11 | AA15: analyseren, klantgerichtheid, omgevingsbewustzijn, plannen en organiseren, samenwerken, voortgangscontrole, zelfontwikkeling | AF15: Data enginering richt zich op het organiseren van data voor analytische doeleinden. Waarbij de data wordt gekoppeld, gestructureerd en geïnterpreteerd uit verschillende databronnen. Het doel is betrouwbare, efficiënte en schaalbare oplossingen bieden voor o.a. business intelligence-doeleinden en machine learning-modellen. Deze oplossingen zijn getoetst aan de onderliggende logica, waarmee de organisatie strategische keuzes kan maken. Vanuit Data enginering is nauw contact met stakeholders aan de business-kant. Verder is het vakgebied data enginering gericht op eventuele productieverstoringen oplossen en betrokken bij productontwikkelingsprojecten. Data enginering draagt zorg voor het beschikbaar, veilig, beheersbaar en robuust beschikbaar stellen van data op bijvoorbeeld een analytics-platform. | AG15: Softwareontwerp : Java Software Designer; Microsoft Certified Solution Developer (etc.) Methoden en technieken voor Agile ontwerp : RAD/LAD, RUP Datawarehouse, ETL : Analyzing Data with Power BI, Analyzing Data with SQL Server Reporting Services BI Tooling : Python Fundamentals / Advanced
D16: 3.3.2 CAPACITY MANAGEMENT | E16: 4.5.1 PRODUCT OWNER | G16: 2.2.1 TESTMANAGEMENT | H16: Test Management | I16: Testen Professional; TMap NEXT Advanced; ISTQB Advanced | J16: Testorganisatie en -uitvoering | K16: TMap NEXT Foundation, TMap next in Scrum | T16: Uitvoering | U16: Senior Medewerker IV | V16: S8-11 | W16: analyseren, klantgerichtheid, omgevingsbewustzijn, plannen en organiseren, resultaatgerichtheid, samenwerken, voortgangscontrole, zelfontwikkeling | X16: Bedrijfsvoering | Y16: Adviseur Bedrijfsvoering | Z16: S8-11 | AA16: analyseren, klantgerichtheid, omgevingsbewustzijn, plannen en organiseren, samenwerken, voortgangscontrole, zelfontwikkeling | AF16: Testmanagement richt zich op het proces om de software te testen. Vaak is het testmanagement onderdeel van Agile Scrum, waarbij het testen zelf uitgevoerd wordt door medewerkers en/of via geautomatiseerd testen. Ook 'test driven development' (ontwikkelmethode met eerst de tests schrijven en daarna pas de code) wordt onder dit vakgebied geschaard. Het testen van de software geeft inzicht in, en adviseert over, de kwaliteit van de software en de daaraan gerelateerde risico's. Onderdeel van dit vakgebied kan zijn 'testengineering': hierin wordt het proces bepaald dat onder bepaalde omstandigheden tot een zo goed mogelijke test zal leiden. | AG16: Testen en testmethoden : Testen Foundation; ISTQB Foundation Informatietechnologie : IT Foundation; A+ Essentials Informatiesystemen : Informatiesystemen Foundation Projectmanagement : Projectmanagement Foundation; PRINCE2 Foundation Applicatiemanagement : Applicatiemanagement Foundation Ontwikkeling van informatiesystemen : Ontwerp en Ontwikkeling Informatiesystemen Foundation; Object Oriëntatie Foundation
D17: 3.3.3 CONFIGURATION MANAGEMENT | E17: 4.5.2 PRODUCT MANAGER | G17: 3.1.1 SYSTEEMBEHEER | H17: Systeembeheer | I17: Server+; Linux+; MCITP; Jenkins; Gitlab, MSCE, CCDA | J17: Service Control | K17: Professional ITSM Control of IT Services; ITIL Service Transition | T17: Uitvoering | U17: Senior Medewerker IV | V17: S8-11 | W17: analyseren, klantgerichtheid, omgevingsbewustzijn, plannen en organiseren, resultaatgerichtheid, samenwerken, voortgangscontrole, zelfontwikkeling | X17: Bedrijfsvoering | Y17: Adviseur Bedrijfsvoering | Z17: S8-11 | AA17: analyseren, klantgerichtheid, omgevingsbewustzijn, plannen en organiseren, samenwerken, voortgangscontrole, zelfontwikkeling | AF17: Systeembeheer is een algemene benaming voor het beheer van servers en netwerken. In grotere organisaties is dit vakgebied vaak opgesplitst naar serverbeheerder (KWIV 3.1.4) en netwerkbeheerder (KWIV 3.1.5). De naam wordt ook wel gebruikt voor het technisch beheer van een systeem, of de combinatie van meerdere systemen en de servers waarop die draaien. Incidenten en changes kunnen grote gevolgen hebben voor de continuïteit van systemen en daarmee voor de continuïteit van en beeldvorming over de organisatie. Systeembeheer moet in dergelijke situaties onder druk nauwkeurig en volgens de voorgeschreven procedures kunnen werken. Ontwikkel- en beheerrollen worden soms samengevoegd in DevOps-teams. In dat geval zal systeembeheer naast kennis van beheer ook kennis van continuous delivery en continuous integration moeten hebben. | AG17: Servicemanagement : ITSM Foundation; ITIL Foundation Informatietechnologie : IT Foundation; A+ Essentials Infrastructuurmanagement : Infrastructuurmanagement Foundation Informatiebeveiliging : Information Security Foundation
D18: 3.3.4 RELEASE MANAGEMENT | E18: 4.5.3 BUSINESS OWNER (GEDELEGEERD) | G18: 3.1.2 CHANGE MANAGEMENT | H18: Service Control | I18: Professional ITSM Support of IT Services; ITIL Service Transition | T18: Uitvoering | U18: Senior Medewerker IV | V18: S8-11 | W18: analyseren, klantgerichtheid, omgevingsbewustzijn, plannen en organiseren, resultaatgerichtheid, samenwerken, voortgangscontrole, zelfontwikkeling | X18: Bedrijfsvoering | Y18: Adviseur Bedrijfsvoering | Z18: S8-11 | AA18: analyseren, klantgerichtheid, omgevingsbewustzijn, plannen en organiseren, samenwerken, voortgangscontrole, zelfontwikkeling | AF18: Changemanagement richt zich op het aanpassen, beheersen en gecoördineerd invoeren van changes (wijzigingen) in de IV-omgeving. Changemanagement helpt de organisatie met het aanvragen, prioriteren, toestaan, goedkeuren, inplannen en implementeren van allerlei soorten changes. Daarmee moet worden geborgd dat changes zonder merkbare of onacceptabele gevolgen voor gebruikers worden ingevoerd én dat de continuïteit van de informatievoorziening niet in gevaar komt. Changes in de IV-omgeving kunnen betrekking hebben op informatiesystemen of applicaties en/of de technische infrastructuur: netwerk, servers, storage (opslag). | AG18: Servicemanagement : ITSM Foundation; ITIL FoundationProjectmanagement : Projectmanagement Foundation; PRINCE2 Foundation Informatietechnologie : IT Foundation; A+ Essentials Informatiesystemen : Informatiesystemen Foundation; MSCE, CDAA Applicatiemanagement : Applicatiemanagement Foundation Informatiebeveiliging : Information Security Foundation
E19: 4.6.1 SERVICE DESIGN | G19: 3.1.3 FUNCTIONEEL BEHEER | H19: Functioneel beheer | I19: Professional Functioneel Beheerder | T19: Uitvoering | U19: Senior Medewerker IV | V19: S8-11 | W19: analyseren, klantgerichtheid, omgevingsbewustzijn, plannen en organiseren, resultaatgerichtheid, samenwerken, voortgangscontrole, zelfontwikkeling | X19: Bedrijfsvoering | Y19: Adviseur Bedrijfsvoering | Z19: S8-11 | AA19: analyseren, klantgerichtheid, omgevingsbewustzijn, plannen en organiseren, samenwerken, voortgangscontrole, zelfontwikkeling | AF19: Functioneel beheer is de verbindende schakel tussen de uitvoering en ICT van de organisatie. Is verantwoordelijk voor het beantwoorden van gebruikersvragen en zorgt ervoor dat het informatiesysteem (blijvend) voldoet aan de eisen van de gebruikers en dat de functionaliteit consistent is. Functioneel beheer werkt nauw samen met gebruikers voor het evalueren van de functionele specificaties van een informatiesysteem en het uitwerken van de functionele specificaties bij gewenste wijzigingen. Gerealiseerde wijzigingen worden door functioneel beheer getest in acceptatietesten. Daarnaast coördineert functioneel beheer de invoering van wijzigingen in de gebruikersorganisatie. Tot slot is functioneel beheer een vraagbaak voor gebruikers (in de tweede lijn) en het coördineren van oplossingen voor problemen. | AG19: Informatiemanagement : Business Information Management Foundation Informatiesystemen : Informatiesystemen Foundation; MSCE, CDAA Testen : Testen Foundation Servicemanagement : ITSM Foundation; ITIL Foundation Informatiebeveiliging : Information Security Foundation based on ISO/IEC 27002
E20: 4.6.2 USER INTERFACE DESIGN | G20: 3.1.4 SERVERBEHEER | H20: Systeembeheer | I20: Server+; Linux+; MCITP; MSCE, CDAA | J20: Service Control | K20: Professional ITSM Control of IT Services; ITIL Service Transition | T20: Uitvoering | U20: Senior Medewerker IV | V20: S8-11 | W20: analyseren, klantgerichtheid, omgevingsbewustzijn, plannen en organiseren, resultaatgerichtheid, samenwerken, voortgangscontrole, zelfontwikkeling | X20: Bedrijfsvoering | Y20: Adviseur Bedrijfsvoering | Z20: S8-11 | AA20: analyseren, klantgerichtheid, omgevingsbewustzijn, plannen en organiseren, samenwerken, voortgangscontrole, zelfontwikkeling | AF20: Serverbeheer richt zich op het monitoren en onderhouden van servers om deze betrouwbaar en optimaal te laten werken. Daarbij richt het zich op het beheer van hardware, software, beveiliging en back-ups, zodat de IT-omgeving operationeel en doeltreffend blijft. Serverbeheer is betrokken bij de configuratie van een server en het installeren én configureren van wijzigingen. Serverbeheer monitort de werking van servers (vaak met specifieke tooling) en onderneemt acties of voert preventief maatregelen door om een server aan de gestelde eisen te laten voldoen. Bij storingen aan de server zorgt serverbeheer voor het oplossen daarvan. Dit profiel kan een specialisatie zijn van Systeembeheer (KWIV 3.1.1). | AG20: Servicemanagement : ITSM Foundation; ITIL Foundation Informatietechnologie : IT Foundation; A+ Essentials Infrastructuurmanagement : Infrastructuurmanagement Foundation Informatiebeveiliging : Information Security Foundation
E21: 4.6.3 UX RESEARCH | G21: 3.1.5 NETWERKBEHEER | H21: Systeembeheer | I21: Server+; Linux+; MCITP; ASE-Network Infrastructure; MSCE, CDAA | J21: Service Control | K21: Professional ITSM Control of IT Services; ITIL Service Transition | T21: Uitvoering | U21: Senior Medewerker IV | V21: S8-11 | W21: analyseren, klantgerichtheid, omgevingsbewustzijn, plannen en organiseren, resultaatgerichtheid, samenwerken, voortgangscontrole, zelfontwikkeling | X21: Bedrijfsvoering | Y21: Adviseur Bedrijfsvoering | Z21: S8-11 | AA21: analyseren, klantgerichtheid, omgevingsbewustzijn, plannen en organiseren, samenwerken, voortgangscontrole, zelfontwikkeling | AF21: Netwerkbeheer richt zich op het monitoren en onderhouden van netwerken om deze betrouwbaar en optimaal te laten werken. Daarbij richt het zich op het beheer van hardware, software, beveiliging en back-ups, zodat de IT-netwerkomgeving operationeel en doeltreffend blijft. Netwerkbeheer is betrokken bij het ontwerp van een netwerk en het installeren én configureren van wijzigingen in de netwerkcomponenten. Netwerkbeheer monitort de werking van een netwerk (vaak met specifieke monitoringtools) en neemt reactief of preventief maatregelen om het netwerk aan de gestelde eisen te laten voldoen. Storingen in het netwerk worden door netwerkbeheer opgelost. Dit profiel kan een specialisatie zijn van Systeembeheer (KWIV 3.1.1). | AG21: Servicemanagement : ITSM Foundation; ITIL Foundation Informatietechnologie : IT Foundation; A+ Essentials Infrastructuurmanagement : Infrastructuurmanagement Foundation Informatiebeveiliging : Information Security Foundation
G22: 3.1.6 APPLICATIEBEHEER | H22: Applicatiebeheer | I22: Professional ITSM Control of IT Services; ITIL Service Transition | J22: Programmeren | K22: Oracle Certified Professional; Microsoft Certified Program Developer; Cobol | T22: Uitvoering | U22: Senior Medewerker IV | V22: S8-11 | W22: analyseren, klantgerichtheid, omgevingsbewustzijn, plannen en organiseren, resultaatgerichtheid, samenwerken, voortgangscontrole, zelfontwikkeling | X22: Bedrijfsvoering | Y22: Adviseur Bedrijfsvoering | Z22: S8-11 | AA22: analyseren, klantgerichtheid, omgevingsbewustzijn, plannen en organiseren, samenwerken, voortgangscontrole, zelfontwikkeling | AF22: Applicatiebeheer richt zich op het beheer en onderhoud van de applicaties conform de overeengekomen prestatiekenmerken (performance, bedrijfszekerheid). Applicatiebeheer zorgt voor het aansturen van de realisatie van gewenste wijzigingen door een programmeur of DBA. Ook zorgt applicatiebeheer voor het coördineren van de (technische) implementatie van de wijziging in de productieomgeving. Applicatiebeheer werkt vaak samen met databasebeheer (KWIV 3.1.7) en/of systeembeheer (KWIV 3.1.1). Vaak is applicatiebeheer – in de tweede lijn – betrokken bij het oplossen van incidenten en problemen die ontstaan zijn door technische redenen. | AG22: Ontwikkeling van informatiesystemen : Ontwerp en Ontwikkeling Informatiesystemen, Foundation; RAD/LAD; XML/UML; XBRL Webtechnologie en gerelateerde technologieën : HTML, ASP, SOAP, XML, XSL-T, XPath, DOM, XML Schema’s Databases : Databases en SQL Foundation Informatietechnologie : IT Foundation; A+ Essentials Informatiesystemen : Informatiesystemen Foundation; MSCE, CDAA Testen : Testen Foundation; TMapNext Foundation; ISTQB Certified Tester Foundation Level Applicatiemanagement : Applicatiemanagement Foundation Servicemanagement : ITSM Foundation; ITIL Foundation
G23: 3.1.7 DATABASEBEHEER | H23: Database Administration | I23: MCDBA, Oracle Certified Associate (OCA) | J23: Datawarehouse | K23: Certified Data Centre Expert, Professional, Specialist | T23: Uitvoering | U23: Senior Medewerker IV | V23: S8-11 | W23: analyseren, klantgerichtheid, omgevingsbewustzijn, plannen en organiseren, resultaatgerichtheid, samenwerken, voortgangscontrole, zelfontwikkeling | X23: Bedrijfsvoering | Y23: Adviseur Bedrijfsvoering | Z23: S8-11 | AA23: analyseren, klantgerichtheid, omgevingsbewustzijn, plannen en organiseren, samenwerken, voortgangscontrole, zelfontwikkeling | AF23: Databasebeheer richt zich op het beheer en onderhoud van de data (gegevens) conform de overeengekomen prestatiekenmerken (performance, bedrijfszekerheid). Databasebeheer draagt zorg voor de kwaliteit, actualiteit, volledigheid en consistentie van gegevens in een database(s). Verder stelt Databasebeheer het gegevensmodel voor een applicatie op en beheert deze, in samenwerking met informatieanalyse (KWIV 4.3.1) of informatiearchitectuur (KWIV 1.1.1). Databasebeheer zorgt voor het verifiëren van de productieresultaten op het aspect gegevensconsistentie en –correctheid én voert de periodieke analyses op de kwaliteit van de gegevens uit. | AG23: Databases : Databases en QSL Foundation Ontwikkeling van informatiesystemen : Ontwerp en Ontwikkeling Informatiesystemen Foundation Informatietechnologie : IT Foundation; A+ Essentials Informatiesystemen : Informatiesystemen Foundation; MSCE, CDAA Applicatiemanagement : Applicatiemanagement Foundation Informatiebeveiliging : Information Security Foundation
G24: 3.1.8 RECORDBEHEER | H24: Archief- en informatiewetgeving; ordenings- en ontsluitingsmethodieken; zoektechnieken | I24: SOD I, SOD II, MBO Informatiedienst verlening, HMDI | T24: Uitvoering | U24: Medewerker IV | V24: S8-9 | W24: analyseren, klantgerichtheid, omgevingsbewustzijn, plannen en organiseren, resultaatgerichtheid, samenwerken, voortgangscontrole, zelfontwikkeling | X24: Bedrijfsvoering | Y24: Adviseur Bedrijfsvoering | Z24: S8-11 | AA24: analyseren, klantgerichtheid, omgevingsbewustzijn, plannen en organiseren, samenwerken, voortgangscontrole, zelfontwikkeling | AF24: Recordbeheer richt zich op het identificeren, klasseren, archiveren, bewaren en vernietigen van records (archief). Daarmee draagt het zorg voor kwalitatieve intake, formele ontsluiting, distributie en archivering van gekanaliseerde inkomende (digitale) documentstromen. Recordbeheer zorgt voor het monitoren van de eenduidigheid en juistheid van metagegevenssets op zaken, proces- en documentniveau, het tijdig signaleren van de afwijkingen én de noodzakelijke herstelbewerkingen hierop. Recordbeheer onderhoudt hiertoe veelvuldig contact met zaakhouders en/of (mede)behandelaren om de informatiebehoeften zo goed mogelijk af te stemmen en informatieprocessen bij het organisatieonderdeel beter te laten verlopen. | AG24: Informatiesystemen : Informatiesystemen Foundation; MSCE, CDAA
G25: 3.1.9 DATA STEWARDSHIP | T25: Uitvoering | U25: Senior Medewerker IV | V25: S8-11 | W25: analyseren, klantgerichtheid, omgevingsbewustzijn, plannen en organiseren, resultaatgerichtheid, samenwerken, voortgangscontrole, zelfontwikkeling | X25: Bedrijfsvoering | Y25: Adviseur Bedrijfsvoering | Z25: S8-11 | AA25: analyseren, klantgerichtheid, omgevingsbewustzijn, plannen en organiseren, samenwerken, voortgangscontrole, zelfontwikkeling | AF25: Datastewardship richt zich voornamelijk op het ondersteunen van de klant/business in het onderhouden en creëren van data met een hoge kwaliteit. Het vakgebied zorgt voor het definiëren, meten en verbeteren van de datakwaliteit - in een continu proces. Bijvoorbeeld conform criteria voor juistheid, compleetheid of actualiteit (vanuit businessperspectief). Hier valt ook onder het correcte formaat en de correcte betekenis (vanuit vorm, perspectief, conform gegevensdefinitie). Het vakgebied kan op meerdere niveaus (zoals operationeel of tactisch) worden ingedeeld.
G26: 3.2.1 TECHNICAL SUPPORT | H26: Systeembeheer | I26: Server+; Linux+; MCITP; MSCE, CDAA | J26: Service Delivery | K26: Professional ITSM Delivery of IT Services | T26: Uitvoering | U26: Senior Medewerker IV | V26: S8-11 | W26: analyseren, klantgerichtheid, omgevingsbewustzijn, plannen en organiseren, resultaatgerichtheid, samenwerken, voortgangscontrole, zelfontwikkeling | X26: Bedrijfsvoering | Y26: Adviseur Bedrijfsvoering | Z26: S8-11 | AA26: analyseren, klantgerichtheid, omgevingsbewustzijn, plannen en organiseren, samenwerken, voortgangscontrole, zelfontwikkeling | AF26: Technical support richt zich op het ondersteunen en oplossen van complexe technische problemen van de klant/medewerkers. Tevens voert het controles uit om problemen vroegtijdig te signaleren. Technical support is een tweede lijn support. Veelal gaat het over IT-gerelateerde problemen, maar het kan ook gaan over (rand)apparatuur of machines die niet meer naar behoren functioneren. Technical support is in staat om het totaal van een vraagstuk te overzien. Breedte (overzicht) en diepte (specialistische deskundigheid) op enkele terreinen zijn hierbij van belang. Waar technical support zich richt op de complexere technisch problemen (2de lijn), richt de 1e lijns gebruikersondersteuning (KWIV 3.2.2) op standaard storingen, problemen etc. | AG26: Servicemanagement : ITSM Foundation; ITIL Foundation Projectmanagement : Projectmanagement Foundation; PRINCE2 Foundation Informatietechnologie : IT Foundation; A+ Essentials Informatiesystemen : Informatiesystemen Foundation Applicatiemanagement : Applicatiemanagement Foundation15 Databases : Databases en SQL Foundation Ontwikkeling van informatiesystemen : Ontwerp en Ontwikkeling Informatiesystemen Foundation Functioneel beheer : Functioneel Beheer Foundation Informatiebeveiliging : Information Security Foundation Kantoorautomatisering : Europees Computer Rijbewijs
G27: 3.2.2 1e LIJNS GEBRUIKERSONDERSTEUNING | H27: Servicemanagement | I27: ITSM Foundation; ITIL Foundation | T27: Uitvoering | U27: Medewerker Verwerken en Behandelen | V27: S3-8 | W27: flexibiliteit; klantgerichtheid, mondelinge uitdrukkingsvaardigheid; resultaatgerichtheid, samenwerken, schriftelijke uitdrukkingsvaardigheid, stressbestendigheid | X27: Bedrijfsvoering | Y27: Medewerker IV/Techniek/Beheer/DIV | Z27: S5-8 | AA27: luisteren, klantgerichtheid, analyseren, initiatief, integriteit, accuraat werken, zelfontwikkeling | AF27: 1e lijns gebruikersondersteuning richt zich op het coördineren, ondersteunen en oplossen van technische problemen van de klant/medewerkers. Het is de eerste lijn support (direct klantcontact). Daarbij coördineert het dat incidenten conform de dienstverleningsovereenkomst (SLA) worden afgehandeld. Indien 1e lijns gebruikersondersteuning het probleem niet kan oplossen, dan wordt het incident doorgezet naar de 2e lijn: bijvoorbeeld technical support (KWIV 3.2.1) of applicatiebeheer (KWIV 3.1.6). Afhankelijk van de organisatie kunnen de volgende facetten ook onder het vakgebied worden geschaard: het identificeren van problemen, het coördineren van wijzigingen, het registreren van gebruikers en/of het instellen van autorisaties. | AG27: Informatietechnologie : IT Foundation; A+ Essentials Informatiesystemen : Informatiesystemen Foundation; MSCE, CDAA Kantoorautomatisering : Europees Computer Rijbewijs
G28: 3.2.3 INCIDENT MANAGEMENT | H28: Service Support | I28: Professional ITSM Support of IT Services | T28: Uitvoering | U28: Senior Medewerker IV | V28: S8-11 | W28: analyseren, klantgerichtheid, omgevingsbewustzijn, plannen en organiseren, resultaatgerichtheid, samenwerken, voortgangscontrole, zelfontwikkeling | X28: Bedrijfsvoering | Y28: Adviseur Bedrijfsvoering | Z28: S8-11 | AA28: analyseren, klantgerichtheid, omgevingsbewustzijn, plannen en organiseren, samenwerken, voortgangscontrole, zelfontwikkeling | AF28: Incidentmanagement richt zich op het vroegtijdig en snel oplossen van een ongeplande verstoring. Deze verstoring kan zich voordoen met de informatievoorziening, in de informatiesystemen of applicaties als in de technische infrastructuur. Hierbij wordt tevens de prioritering van het incident bepaald, aan de hand van urgentie en impact. Dit profiel Incident management is afgeleid van het gelijknamige ITIL-proces. Het vakgebied kan zowel procesmatig als inhoudelijk operationeel zijn ingestoken. Problem management (KWIV 3.2.4) is een direct aanpalend vakgebied. | AG28: Servicemanagement ITSM Foundation; ITIL Foundation Informatietechnologie : IT Foundation; A+ Essentials Informatiesystemen : Informatiesystemen Foundation; MSCE, CDAA Applicatiemanagement : Applicatiemanagement Foundation Informatiebeveiliging : Information Security Foundation
G29: 3.2.4 PROBLEM MANAGEMENT | H29: Service Support | I29: Professional ITSM Support of IT Services; ITIL Operational Support and Analysis | J29: Service Design | K29: Professional ITSM Delivery of IT Services; ITIL Service Design | T29: Uitvoering | U29: Senior Medewerker IV | V29: S8-11 | W29: analyseren, klantgerichtheid, omgevingsbewustzijn, plannen en organiseren, resultaatgerichtheid, samenwerken, voortgangscontrole, zelfontwikkeling | X29: Bedrijfsvoering | Y29: Adviseur Bedrijfsvoering | Z29: S8-11 | AA29: analyseren, klantgerichtheid, omgevingsbewustzijn, plannen en organiseren, samenwerken, voortgangscontrole, zelfontwikkeling | AF29: Problemmanagement richt zich op, een gestructureerde wijze, het bundelen van incidenten, het proactief voorkomen van een probleem/incident en het minimaliseren van de impact. Hierbij gaat het om verstoringen van de informatiesystemen/applicaties als in de technische infrastructuur. Problemmanagement onderzoekt incidenten, zodat de achterliggende (mogelijke) oorzaken helder worden en de (waarschijnlijke) impact van incidenten worden verminderd. Daarbij wordt er een Known Error Database (KED) aangelegd. Problemmanagement komt in actie wanneer het incidentmanagementproces (KWIV 3.2.3) nog niet tot de juiste oplossing heeft geleid of een structurele oplossing moet worden gerealiseerd, nadat in het kader van incidentmanagement een workaround is geïmplementeerd of geboden. | AG29: Servicemanagement : ITSM Foundation; ITIL Foundation Informatietechnologie : IT Foundation; A+ Essentials Informatiesystemen : Informatiesystemen Foundation; MSCE, CDAA Applicatiemanagement : Applicatiemanagement Foundation Informatiebeveiliging : Information Security Foundation
G30: 3.3.1 SERVICE LEVEL MANAGEMENT | H30: Service Alignment | I30: Professional ITSM Alignment of IT and the Business (ISO 20000); ITIL Service Design; ITIL Service Offerings and Agreements | T30: Uitvoering | U30: Senior Medewerker Behandelen en Ontwikkelen | V30: S11-13 | W30: analyseren, creativiteit, samenwerken, motiveren, bestuurssensitiviteit, overtuigingskracht, plannen en organiseren, klantgerichtheid | X30: Bedrijfsvoering | Y30: Senior Adviseur Bedrijfsvoering | Z30: S11-13 | AA30: analyseren, creativiteit, netwerken, omgevingsbewustzijn, organisatiesensitiviteit, overtuigingskracht, plannen en organiseren | AF30: Service level management (SLM) richt zich op de uitgangspunten van de overeengekomen dienstverlening. Het stelt hiervoor een raamwerk op van de processen in de vorm van overeenkomsten, verplichtingen en relaties, die worden beheerd via de zogenaamde dienstencatalogus. De eisen / wensen en behoeften van de gebruikers/lijnmanagement en leveranciers worden afgestemd en vastgelegd in service level agreements (SLA’s). SLM bewaakt proactief of de daadwerkelijk geboden dienstverlening conform de SLA wordt uitgevoerd. SLM herkent en onderscheidt patronen in dienstverlening en de naleving van de gemaakte afspraken. En stelt oplossingen voor ter voorkoming van eventuele problemen. | AG30: Servicemanagement : ITSM Foundation; ITIL Foundation Projectmanagement : Projectmanagement Foundation; PRINCE2 Foundation Informatiebeveiliging : Information Security Foundation based on ISO/IEC 27002
G31: 3.3.2 CAPACITY MANAGEMENT | H31: Service Design | I31: Professional ITSM Delivery of IT Services; ITIL Service Design; ITIL Planning Protection and Optimization | T31: Uitvoering | U31: Senior Medewerker IV | V31: S8-11 | W31: analyseren, klantgerichtheid, omgevingsbewustzijn, plannen en organiseren, resultaatgerichtheid, samenwerken, voortgangscontrole, zelfontwikkeling | X31: Bedrijfsvoering | Y31: Adviseur Bedrijfsvoering | Z31: S8-11 | AA31: analyseren, klantgerichtheid, omgevingsbewustzijn, plannen en organiseren, samenwerken, voortgangscontrole, zelfontwikkeling | AF31: Capacity management is erop gericht om de vraag naar en het aanbod van capaciteit (storage) op optimale wijze op elkaar af te stemmen. Onderdelen van dit vakgebied zijn onder meer het meten, analyseren en het verbeteren van performance. Dit kan door het bepalen van de vereiste capaciteit van IT-middelen, het plannen van die IT-middelen en het voorspellen van de werklast. Relevant daarin is te weten welke systeemperformance nodig is en ook of dit op piekmomenten of in het algemeen zo is. In het geval van een ketenproces worden van tevoren met ketenpartners afspraken gemaakt over de capaciteit die zij ten behoeve van de keten beschikbaar moeten hebben. | AG31: Servicemanagement : ITSM Foundation; ITIL Foundation Informatietechnologie : IT Foundation; A+ Essentials Informatiesystemen : Informatiesystemen Foundation
G32: 3.3.3 CONFIGURATION MANAGEMENT | H32: Service Control | I32: Professional ITSM Control of IT Services; ITIL Service Transition; ITIL Release Control and Validation; Practitioner Software Asset Management | T32: Uitvoering | U32: Senior Medewerker IV | V32: S8-11 | W32: analyseren, klantgerichtheid, omgevingsbewustzijn, plannen en organiseren, resultaatgerichtheid, samenwerken, voortgangscontrole, zelfontwikkeling | X32: Bedrijfsvoering | Y32: Adviseur Bedrijfsvoering | Z32: S8-11 | AA32: analyseren, klantgerichtheid, omgevingsbewustzijn, plannen en organiseren, samenwerken, voortgangscontrole, zelfontwikkeling | AF32: Configuration management richt zich op het operationele beheer van de configuratiedatabase, identificeren en classificeren van de zogenoemde ‘configuratie-items’. Daarbij worden alle componenten van de IT-infrastructuur in kaart gebracht met de onderlinge relaties, gerelateerde documentaties en overige IT-processen welke hierop ondersteuning geven. Deze gegevens worden vastgelegd in de configuratiedatabase. Configuration management is van belang voor het configuratieproces met centraal en zorgvuldig licentiebeheer. En is hiermee een belangrijke schakel in de op- en verdere uitbouw van het configuratieproces en vervult hierin een actieve ‘voortrekkersrol’. Lifecycle-management kan nadrukkelijk als een onderdeel van dit vakgebied worden gezien. | AG32: Servicemanagement : ITSM Foundation; ITIL Foundation Informatietechnologie : IT Foundation; A+ Essentials Informatiesystemen : Informatiesystemen Foundation Applicatiemanagement : Applicatiemanagement Foundation Informatiebeveiliging Information Security Foundation
G33: 3.3.4 RELEASE MANAGEMENT | H33: Service Control | I33: Professional ITSM Control of IT Services; ITIL Service Transition; ITIL Release Control and Validation | T33: Uitvoering | U33: Senior Medewerker IV | V33: S8-11 | W33: analyseren, klantgerichtheid, omgevingsbewustzijn, plannen en organiseren, resultaatgerichtheid, samenwerken, voortgangscontrole, zelfontwikkeling | X33: Bedrijfsvoering | Y33: Adviseur Bedrijfsvoering | Z33: S8-11 | AA33: analyseren, klantgerichtheid, omgevingsbewustzijn, plannen en organiseren, samenwerken, voortgangscontrole, zelfontwikkeling | AF33: Release management richt zich op het managen van het plannen, bouwen en testen van gewijzigde en nieuwe onderdelen in de software voor een stabiele versie van informatiesystemen (ook wel release). Het gaat daarbij om ervoor te zorgen dat de integriteit van de live-omgeving wordt beschermd en dat de juiste componenten worden vrijgegeven. Niet alleen de afstemming van releases op de businesseisen (zoals invoerings- en beschikbaarheidsdata) is van belang, maar ook het bewaken dat releases zonder problemen voor de continuïteit en consistentie van de IV en de bedrijfsvoering plaatsvinden. Vooral in een Agile-omgeving, waarin in korte tijd nieuwe functionaliteit wordt gebouwd, is het belangrijk op tijdige en accurate integratie van releases te letten. | AG33: Servicemanagement : ITSM Foundation; ITIL Foundation Informatietechnologie : IT Foundation; A+ Essentials Informatiesystemen : Informatiesystemen Foundation
G34: 4.1.1 SECURITY MANAGEMENT | H34: Informatiebeveiligingsbeleid | I34: Information Security Expert (ISO 27001/2), VIR en VIRBI (geen certificering), A en K analyses (geen certificering) | J34: Informatiebeveiliging | K34: Information Security Foundation (ISO 27001/2), Information Security Advanced (ISO 27001/2), Information Systems Security Management Professional | L34: CISM / CISP | M34: Certified Information Security Management, Certified Information Security Professional | T34: Uitvoering | U34: Expert IV | V34: S11-13 | W34: analyseren, creativiteit, netwerken, omgevingsbewustzijn, organisatiesensitiviteit, overtuigingskracht, plannen en organiseren, resultaatgerichtheid | X34: Bedrijfsvoering | Y34: Senior Adviseur Bedrijfsvoering | Z34: S11-13 | AA34: analyseren, creativiteit, netwerken, omgevingsbewustzijn, organisatiesensitiviteit, overtuigingskracht, plannen en organiseren | AF34: IV-securitymanagement (informatiebeveiliging) richt zich op technische maatregelen die ingezet worden voor bescherming/beveiliging van een organisatie en de daarbij behorende medewerkers, klanten/gasten, data, financiën, goederen, et cetera. Het omvat het ontwerpen, implementeren, onderhouden en evalueren van beveiligingsmaatregelen met betrekking tot de IV (hardware en software). Securitymanagement is verantwoordelijk voor de beveiliging van de informatievoorziening (IV). De focus ligt op het beveiligen van de IV wat betreft de vertrouwelijkheid, de integriteit en de beschikbaarheid van informatie. | AG34: Informatiemanagement : Business Information Management Foundation
G35: 4.1.2 INFORMATIERISICOMANAGEMENT | H35: Risicomanagement | I35: Management of Risks (M_o_R) Foundation / Practitioner | T35: Advisering | U35: (Senior) Adviseur | V35: S11-13 | W35: analyseren, creativiteit, netwerken, flexibiliteit, organisatiesensitiviteit, overtuigingskracht, plannen en organiseren | X35: Bedrijfsvoering | Y35: Senior Adviseur Bedrijfsvoering | Z35: S11-13 | AA35: analyseren, creativiteit, netwerken, omgevingsbewustzijn, organisatiesensitiviteit, overtuigingskracht, plannen en organiseren | AF35: Informatierisicomanagement (risicobeheer) richt zich op het identificeren, analyseren en evalueren van de organisatierisico's. Met als doel om de risico's te beheersen die verbonden zijn aan de beschikbaarstelling en het gebruik van componenten van de informatievoorziening (IV). Denk aan netwerken, servers, informatiesystemen en/of applicaties. Meestal is de scope van de verantwoordelijkheden beperkt tot de IV, maar soms wordt dit vakgebied ook ingezet voor het identificeren en mitigeren van risico’s in programma’s of projecten. In veel gevallen levert informatierisicomanagement bijdragen aan het beleid en de richtlijnen voor risicomanagement. Daarnaast hoort ook het opstellen van concrete risicobeheersmaatregelen en/of de gewenste werking toetsen. | AG35: Informatiemanagement : Business Information Management Foundation Informatiebeveiliging : Information Security Foundation based on ISO/IEC 27002 Project-/programmamanagement : Prince2 Foundation; Managing Successfull Programs Practitioner Organisatie-/Proces management : IT Management Foundation; Professional Management and Improvement of IT Service Management processes
G36: 4.1.3 CYBERSECURITY MANAGEMENT | H36: Informatica | I36: HBO / WO Informatica | T36: Uitvoering | U36: Expert IV | V36: S11-13 | W36: analyseren, creativiteit, netwerken, omgevingsbewustzijn, organisatiesensitiviteit, overtuigingskracht, plannen en organiseren, resultaatgerichtheid | X36: Bedrijfsvoering | Y36: Senior Adviseur Bedrijfsvoering | Z36: S11-13 | AA36: analyseren, creativiteit, netwerken, omgevingsbewustzijn, organisatiesensitiviteit, overtuigingskracht, plannen en organiseren | AF36: Cybersecuritymanagement richt zich op de bescherming van de systemen. Het vakgebied houdt zich bezig met het proactief detecteren van kwetsbaarheden en dreigingen en het nemen van maatregelen om gevolgen van onbekende dreigingen te voorkomen en/of te mitigeren. Verder worden er analyses en forensisch onderzoek van eventueel besmette en gecompromitteerde systemen uitgevoerd. Met als doel om kwetsbaarheden op te sporen en bedreigingen van buitenaf (waaronder hackers) te voorkomen. Het is een relatief jong vakgebied dat volop in ontwikkeling is, waardoor ook het focusgebied met de tijd wat kan verschuiven. | AG36: Aanvullende kennis : TCP/IP, UDP, DNS. DHCP, FTP, SNMP, SMTP, SSH, SSL, HTTP, HTTPS,19 Certificaten : gehaald bij SANS/GIA/ ISACA / CIBIT / NCOI Tooling : Nmap, Wireshark, Metasploit, Javascript, HTML, Python, HP ArcSight, Splunk
B37: =PROPER(B19) ->  | C37: =PROPER(C19) ->  | G37: 4.2.1 CATEGORIEMANAGEMENT IV | H37: Bestuurlijke informatica, Bestuurlijke informatiekunde | I37: Bachelor Bedrijfskundige Informatica, Master Public Information Management | J37: Inkoopstrategie | K37: Purchaising Leadership NEVI 3 | T37: Uitvoering | U37: Senior Medewerker Behandelen en Ontwikkelen | V37: S11-13 | W37: analyseren, creativiteit, samenwerken, motiveren, bestuurssensitiviteit, overtuigingskracht, plannen en organiseren, klantgerichtheid | X37: Bedrijfsvoering | Y37: Coördinerend Adviseur Bedrijfsvoering | Z37: S13-15 | AA37: bestuurssensitiviteit, creativiteit, netwerken, motiveren, samenwerken, overtuigingskracht, plannen en organiseren | AF37: Categoriemanagement IV richt zich op het bundelen en beheren van de IV-inkoop, op basis van logisch samenhangende diensten of producten. Categoriemanagement IV is betrokken bij het optimaal inkopen (inclusief uitvraag specificaties) en het optimaal benutten van contracten van producten of diensten. Daarbij wordt een visie ontwikkeld ten aanzien van de levenscyclus van de producten of diensten en de sourcingstrategie, waarbij ook Sourcing management (KWIV 1.3.1) wordt betrokken. Waar categoriemanagement IV zich richt op het beheer, visie en sourcing, richt Inkoop IV (KWIV 4.2.2) zich op productspecificaties ten aanzien van de inkoop IV. NB. In het KWIK (InkoopKolom) bestaat een profiel dat raakvlakken heeft met dit KWIV-profiel. | AG37: Programma-/projectmanagement : Rijksacademie voor Project- en Programmamanagement; Managing Successfull Programs Practitioner (Ontwikkelingen, producten en diensten) IT-markt, functioneren van IT marktpartijen én de spelregels : (Post) HBO-modules, Rijksacademie Inkoop,Aanbesteding en IV
G38: 4.2.2 INKOOP IV | H38: Bestuurlijke informatica | I38: Bachelor Bedrijfskundige Informatica | J38: Informatiemanagement | K38: Business Information Management Foundation | L38: Professioneel Inkopen | M38: Expert NEVI 2 | N38: Uitbesteding ICT | O38: Foundation ISPL Procurement Management | T38: Uitvoering | U38: Senior Medewerker Behandelen en Ontwikkelen | V38: S11-13 | W38: analyseren, creativiteit, samenwerken, motiveren, bestuurssensitiviteit, overtuigingskracht, plannen en organiseren, klantgerichtheid | X38: Bedrijfsvoering | Y38: Senior Adviseur Bedrijfsvoering | Z38: S11-13 | AA38: analyseren, creativiteit, netwerken, omgevingsbewustzijn, organisatiesensitiviteit, overtuigingskracht, plannen en organiseren | AF38: Inkoop IV richt zich op het inkopen van IV-producten of -diensten voor de organisatie. Daarbij levert Inkoop IV input aan de inkoopleider aan ten aanzien van de software, hardwarevereisten en de licenties. Dit door het opstellen van de productvereisten waarbij de visie en beleid van de organisatie worden meegenomen (zoals innovatie, duurzaamheid en MVO). Inkoop IV werkt hierbij samen met de business over wat de vereisten zijn van het product of de dienst. Waar Inkoop IV zich richt op productspecificaties voor de inkoop IV, richt categoriemanagement IV (KWIV 4.2.1) zich op het beheer, visie en sourcing van deze inkoop. NB. In het KWIK (InkoopKolom) bestaat een profiel dat raakvlakken heeft met dit KWIV-profiel. | AG38: (Ontwikkelingen, producten en diensten) IT-markt, functioneren van IT marktpartijen én de spelregels: (Post) HBO-modules, Rijksacademie Inkoop, Aanbesteding en IV Juridische deelgebieden, zoals auteurs- en octrooirecht en intellectueel eigendom Projectmanagement : Prince2 Foundation
G39: 4.2.3 RELATIEMANAGEMENT IV | H39: Service Alignment | I39: Professional ITSM Alignment of IT and the Business (ISO 20000); ITIL Service Design; ITIL Service Offerings and Agreements | T39: Uitvoering | U39: Senior Medewerker Behandelen en Ontwikkelen | V39: S11-13 | W39: analyseren, creativiteit, samenwerken, motiveren, bestuurssensitiviteit, overtuigingskracht, plannen en organiseren, klantgerichtheid | X39: Bedrijfsvoering | Y39: Senior Adviseur Bedrijfsvoering | Z39: S11-13 | AA39: analyseren, creativiteit, netwerken, omgevingsbewustzijn, organisatiesensitiviteit, overtuigingskracht, plannen en organiseren | AF39: Relatiemanagement IV richt zich op het opbouwen, verdiepen en verstevigen van interne en externe relaties. Hierbij hoort het opstellen van een IV-organisatiestrategie t.a.v. alle partijen die betrokken zijn over de informatievoorziening. Relatiemanagement IV is verantwoordelijk voor het afstemmen van de communicatie, de sturing, structurering en werkwijze van alle partijen. Met als doel om het producten- en dienstenaanbod beter aan te laten sluiten op de vraag en aanbod (interne en externe relaties). Relatiemanagement IV werkt nauw samen met contractmanagement IV (KWIV 4.2.4). NB. In het KWIK (InkoopKolom) bestaat een profiel dat raakvlakken heeft met dit KWIV-profiel. | AG39: Servicemanagement : ITSM Foundation; ITIL Foundation20 Marketing en accountmanagement van diensten : Nima B Informatiemanagement/Functioneel beheer : Business Information Management Foundation Informatiesystemen : Informatiesystemen Foundation
G40: 4.2.4 CONTRACT/LEVERANCIERSMANAGEMENT IV | H40: Service Level management | I40: Professional ITSM Alignment of IT and the Business (ISO20000) | J40: Professioneel Inkopen | K40: Expert NEVI 2 | L40: Uitbesteding ICT | M40: Foundation ISPL Procurement Management | T40: Uitvoering | U40: Expert IV | V40: S11-13 | W40: analyseren, creativiteit, netwerken, omgevingsbewustzijn, organisatiesensitiviteit, overtuigingskracht, plannen en organiseren, resultaatgerichtheid | X40: Bedrijfsvoering | Y40: Senior Adviseur Bedrijfsvoering | Z40: S11-13 | AA40: analyseren, creativiteit, netwerken, omgevingsbewustzijn, organisatiesensitiviteit, overtuigingskracht, plannen en organiseren | AF40: Contractmanagement IV richt zich op het afsluiten van contracten en bewaken van de naleving van de in het contract gemaakte afspraken (bijv. KPI's) met leveranciers. De aandacht zit vooral op de juridische en financiële aspecten. Het vakgebied heeft een overzicht van de lopende contracten, eventuele (raam)overeenkomsten, signalering van looptijden, garantietermijnen en prijsherzieningen en het aantal en soorten gecontracteerde leveranciers bij de diverse afdelingen. Contractmanagement IV werkt nauw samen met relatiemanagement IV (KWIV 4.2.3). NB. In het KWIK (InkoopKolom) bestaat een profiel dat raakvlakken heeft met dit KWIV-profiel. | AG40: Contractmanagement : Contractmanagement Foundation (CATS) (Ontwikkelingen, producten en diensten) IT-markt, functioneren van IT marktpartijen én de spelregels : (Post) HBO-modules Servicemanagement : ITSM Foundation; ITIL Foundation
G41: 4.3.1 INFORMATIEANALYSE | H41: Informatiemanagement | I41: Business Information Management Foundation | T41: Uitvoering | U41: Senior Medewerker Behandelen en Ontwikkelen | V41: S11-13 | W41: analyseren, creativiteit, samenwerken, motiveren, bestuurssensitiviteit, overtuigingskracht, plannen en organiseren, klantgerichtheid | X41: Bedrijfsvoering | Y41: Senior Adviseur Bedrijfsvoering | Z41: S11-13 | AA41: analyseren, creativiteit, netwerken, omgevingsbewustzijn, organisatiesensitiviteit, overtuigingskracht, plannen en organiseren | AF41: Informatieanalyse richt zich op welke informatiebehoeften er zijn binnen de organisatie en/of gebruikers. Informatieanalyse vertaalt technologische en maatschappelijke ontwikkelingen, onderzoek naar de kwaliteit van de IV-bedrijfsprocessen en realistische IV-mogelijkheden, naar verbetervoorstellen en consequenties voor de IV-bedrijfsvoering. Waarbij er een verdiepende analyse wordt uitgevoerd van de gekozen oplossing en de validatie van de requirements. Informatieanalyse is de eerste fase in de ontwikkeling van een informatie- of gegevenssysteem. Op basis van kwalitatieve requirements kan de analyse gericht worden uitgevoerd. | AG41: Architectuur : TOGAF practitioner Bestuurlijke informatica : Bachelor Bedrijfskundige Informatica Informatiebeveiliging : Information Security Foundation based on ISO/IEC 27002 Ontwikkeling informatiesystemen : Ontwikkeling Informatiesystemen Foundation, Object Oriëntatie Foundation Applicatiemanagement : Applicatiemanagement Foundation Servicemanagement : ITSM Foundation; ITIL Foundation
G42: 4.3.2 BUSINESS ANALYSE | H42: Informatiemanagement | I42: Business Information Management Foundation | T42: Uitvoering | U42: Senior Medewerker Behandelen en Ontwikkelen | V42: S11-13 | W42: analyseren, creativiteit, samenwerken, motiveren, bestuurssensitiviteit, overtuigingskracht, plannen en organiseren, klantgerichtheid | X42: Bedrijfsvoering | Y42: Senior Adviseur Bedrijfsvoering | Z42: S11-13 | AA42: analyseren, creativiteit, netwerken, omgevingsbewustzijn, organisatiesensitiviteit, overtuigingskracht, plannen en organiseren | AF42: Business analyse richt zich op de ondersteuning van de business op het gebied van inrichten en verbeteren van de bedrijfsprocessen. Business analyse analyseert (de behoeften aan) informatie en informatiesystemen, uitgaande van de eisen aan de bedrijfsprocessen en de workflow daarbinnen. Tevens worden voorstellen gedaan ter verbetering van de IV om daarmee bedrijfsprocessen optimaal te ondersteunen. Business analyse stelt de epics (overkoepelende gebruikerswensen) van het te ontwikkelen proces op. Het vakgebied verbindt de ondersteunende directies en/of afdelingen met de business-informatiebehoefte (bijvoorbeeld met HR, IT, communicatie, bedrijfsvoering). Business analyse werkt samen met enterprisearchitectuur (KWIV 1.1.6) op corporate-, dan wel domeinportfolioniveau. | AG42: Architectuur : TOGAF practitioner Bestuurlijke informatica : Bachelor Bedrijfskundige Informatica21 Informatiebeveiliging : Information Security Foundation based on ISO/IEC 27002 Ontwikkeling informatiesystemen : Ontwikkeling Informatiesystemen Foundation, Applicatiemanagement : Applicatiemanagement Foundation Servicemanagement : ITSM Foundation; ITIL Foundation SAFE : SAFE Agilist, SAFe Product Owner
G43: 4.3.3 BUSINESS INTELLIGENCE/DATA ANALYSE | H43: Informatiemanagement | I43: Business Information Management Foundation | J43: Data Management | K43: Data Management Body of Knowledge | T43: Uitvoering | U43: Expert IV | V43: S11-13 | W43: analyseren, creativiteit, netwerken, omgevingsbewustzijn, organisatiesensitiviteit, overtuigingskracht, plannen en organiseren, resultaatgerichtheid | X43: Bedrijfsvoering | Y43: Senior Adviseur Bedrijfsvoering | Z43: S11-13 | AA43: analyseren, creativiteit, netwerken, omgevingsbewustzijn, organisatiesensitiviteit, overtuigingskracht, plannen en organiseren | AF43: Data-analyse richt zich op het verzamelen van gegevens binnen de eigen organisatie. Met als doel om deze gegevens om te zetten in informatie, dat vervolgens leidt tot kennis en het aanzetten tot adequate actie (slimmer werken). Het vakgebied verzamelt gegevens uit verschillende systemen (logistieke volgsystemen, ERP, enz.), analyseert deze en vormt deze om tot bruikbare informatie voor onder meer het management (dashboard en parameters). Dit vakgebied kan zowel voor de business als voor de IV-afdeling worden ingezet. Waar Data-analyse zich richt op de voorkant van de organisatievraag (adviseren MT), richt Data Science (KWIV 4.3.4) zich op de achterkant van de vraag met veel grote datasets en specialistische data. | AG43: Architectuur : TOGAF practitioner Ontwikkeling informatiesystemen : Ontwikkeling Informatiesystemen Foundation, Object Oriëntatie Foundation Bestuurlijke informatica : Bachelor Bedrijfskundige Informatica BI Tooling : Python Fundamentals / Advanced
G44: 4.3.4 DATA SCIENCE | H44: Bestuurlijke informatica | I44: Bachelor / Master Bedrijfskundige Informatica | J44: Big Data / statistiek | K44: Bachelor / Master Wiskunde, Statistiek, Actuariaat, Econometrie, dan wel via post-HBO / post-WO | T44: Uitvoering | U44: Senior Medewerker Behandelen en Ontwikkelen | V44: S11-13 | W44: analyseren, creativiteit, samenwerken, motiveren, bestuurssensitiviteit, overtuigingskracht, plannen en organiseren, klantgerichtheid | X44: Bedrijfsvoering | Y44: Senior Adviseur Bedrijfsvoering | Z44: S11-13 | AA44: analyseren, creativiteit, netwerken, omgevingsbewustzijn, organisatiesensitiviteit, overtuigingskracht, plannen en organiseren | AF44: Data Science richt zich op het verkrijgen van inzichten uit (big) data. Voor de analyse worden programmeervaardigheden, statistische kennis, en afdeling- en organisatiekennis gebruikt om verbanden te leggen en inzichten te destilleren. Hiervoor wordt gebruik gemaakt van grote datasets en specialistische data door geavanceerde BI (business intelligence)-tooling en gedefinieerde algoritmen. Daarmee kunnen onder meer patronen worden ontdekt, (beleids)beslissingen worden gevalideerd en voorspellingen worden gedaan over mogelijke gebeurtenissen, gebaseerd op de historische data. Waar Data Science zich richt op de achterkant van de vraag met veel grote datasets en specialistische data, richt de Business Intelligence (KWIV 4.3.3) zich op de voorkant van de organisatievraag (zoals adviseren MT). | AG44: Informatiemanagement : Business Information Management Foundation Data Management : Data Management Body of Knowledge BI Tooling : Python Fundamentals / Advanced
G45: 4.4.1 INFORMATIECOACHING | H45: Functioneel beheer | I45: Professional Functioneel Beheerder | T45: Uitvoering | U45: Medewerker Behandelen en Ontwikkelen | V45: S9-10 | W45: analyseren, klantgerichtheid, omgevingsbewustzijn, plannen en organiseren, resultaatgerichtheid, samenwerken, voortgangscontrole, zelfontwikkeling | X45: Bedrijfsvoering | Y45: Adviseur Bedrijfsvoering | Z45: S8-11 | AA45: analyseren, klantgerichtheid, omgevingsbewustzijn, plannen en organiseren, samenwerken, voortgangscontrole, zelfontwikkeling | AF45: Informatiecoaching richt zich op het duurzaam toegankelijk maken van informatie voor en met de huidige en toekomstige medewerkers. Hieronder valt de begeleiding (instrueren) en ondersteuning van medewerkers in het leerproces hoe zij hun informatie opslaan, toegankelijk maken en houden: digivaardigheden. Inzicht en kennis van zaken (processen, kaders, richtlijnen en mogelijkheden van systemen) is hierbij van belang. Informatiecoaching stelt informatieprofielen op (informatiebehoeften en zoekgedrag persona's) en onderhoudt deze. Verder richt het vakgebied zich op het analyseren van de informatiebehoefte van medewerkers en structurele verbeteringen voorstellen. | AG45: Informatiemanagement : Business Information Management Foundation Informatiesystemen : Informatiesystemen Foundation
G46: 4.4.2 LEER- EN ONTWIKKELMANAGEMENT | H46: Scrum Master SAFe | I46: SAFe Scrum Manager | J46: Product Owner SAFe | K46: SAFe Product Owner, Leading SAFe | T46: Uitvoering | U46: Senior Medewerker Behandelen en Ontwikkelen | V46: S11-13 | W46: analyseren, creativiteit, samenwerken, motiveren, bestuurssensitiviteit, overtuigingskracht, plannen en organiseren, klantgerichtheid | X46: Bedrijfsvoering | Y46: Senior Adviseur Bedrijfsvoering | Z46: S11-13 | AA46: analyseren, creativiteit, netwerken, omgevingsbewustzijn, organisatiesensitiviteit, overtuigingskracht, plannen en organiseren | AF46: Leer- en ontwikkelmanagement richt zich op de leer- en ontwikkelomgeving van alle (IV)-medewerkers binnen de organisatie. Gericht op het verbeteren of verdiepen van competenties, maar ook op de persoonlijke (carrière-)ontwikkeling. En het opstellen van een leerstrategie voor de organisatie. Naast het adviseren / begeleiden van teams (naar zelforganisatie en team excellence), ondersteunt het leer- en ontwikkelmanagement de Scrummasters (KWIV 5.2.1) en de Release train engineers (KWIV 5.2.2) in het wegnemen van belemmeringen. Agile- en Lean-principes worden hierbij in ogenschouw gehouden. Continu verbeteren en het overdragen van kennis is onderdeel van dit vakgebied. | AG46: Dienend Leiderschap : Leergang Coachend Leidinggeven of Agile, Leidinggeven of Dienend, Faciliterend en Coachend, Leiderschap in een Agile omgeving Coachen : Opleiding Teamcoach – Individueel Coachen Verwachtingen Management : Resultaatgericht Leidinggeven DevOps : DevOps Fundamentals
G47: 4.4.3 (AGILE) COACHING | H47: Scrum Master Agile Scrum | I47: PSM I of vergelijkbare opleiding | J47: Scrum Master SAFe | K47: SAFe Scrum Manager | L47: Product Owner Scrum | M47: PSPO I of vergelijkbare opleiding | N47: Product Owner SAFe | O47: SAFe Product Owner, Leading SAFe | T47: Uitvoering | U47: Senior Medewerker Behandelen en Ontwikkelen | V47: S11-13 | W47: analyseren, creativiteit, samenwerken, motiveren, bestuurssensitiviteit, overtuigingskracht, plannen en organiseren, klantgerichtheid | X47: Bedrijfsvoering | Y47: Senior Adviseur Bedrijfsvoering | Z47: S11-13 | AA47: analyseren, creativiteit, netwerken, omgevingsbewustzijn, organisatiesensitiviteit, overtuigingskracht, plannen en organiseren | AF47: Agile coaching richt zich op de ondersteuning van teams om Agile te werken. Op basis van Agile waarden en principes wordt het team ondersteund om zich naar een effectieve, transparante samenhangende teams door te ontwikkelen. De coaching vindt plaats op proces, rol en inhoud. Verandermanagement en kennis van organisatiecultuur zijn hierin ook relevant. Agile coaching past hierop de best passende coachingstechnieken en leer- en ontwikkelinterventies toe. Een (agile) coach heeft een bredere visie op het bedrijf en de medewerkers en heeft als doelstelling om het probleemoplossend vermogen van een individu en/of team te vergroten. | AG47: Dienend Leiderschap : Leergang Coachend Leidinggeven of Agile, Leidinggeven of Dienend, Faciliterend en Coachend , Leiderschap in een Agile omgeving Coachen : Opleiding Teamcoach Verwachtingen Management : Resultaatgericht Leidinggeven DevOps : DevOps Fundamentals
G48: 4.5.1 PRODUCT OWNER | H48: Product Owner Scrum | I48: PSPO I of vergelijkbare opleiding | J48: Product Owner SAFe | K48: SAFe Product Owner | T48: Uitvoering | U48: Expert IV | V48: S11-13 | W48: analyseren, creativiteit, netwerken, omgevingsbewustzijn, organisatiesensitiviteit, overtuigingskracht, plannen en organiseren, resultaatgerichtheid | X48: Bedrijfsvoering | Y48: Senior Adviseur Bedrijfsvoering | Z48: S11-13 | AA48: analyseren, creativiteit, netwerken, omgevingsbewustzijn, organisatiesensitiviteit, overtuigingskracht, plannen en organiseren | AF48: Product owner is als "eigenaar" van het te ontwikkelen product het eerste aanspreekpunt voor het ontwikkel- of beleidsteam naar de rest van de organisatie. De Product owner zorgt voor stakeholdermanagement, de productvisie, -planning en stelt prioriteiten en de functionaliteit van het product vast. Waarbij het doel is om de waarde van het (business) product te maximaliseren en te waarborgen. De precieze invulling van het vakgebied hangt af van het type organisatie waarin dit voorkomt. Waar Product Owner zich richt op de functionaliteit van het te ontwikkelen product, richt Product management (KWIV 4.5.2) zich op de gehele levenscyclus van een product binnen een organisatie. | AG48: Dienend Leiderschap : Leergang Coachend Leidinggeven of Agile, Leidinggeven of Dienend, Faciliterend en Coachend, Leiderschap in een Agile omgeving User Stories : Writing User Stories Stakeholder Management : Stakeholder Management Training Verwachtingen Management : Resultaatgericht Leidinggeven DevOps : DevOps Fundamentals Effectief Beïnvloeden : Effectief Beïnvloeden
G49: 4.5.2 PRODUCT MANAGER | H49: Product Owner Scrum | I49: PSPO I of vergelijkbare opleiding | J49: Product Owner SAFe | K49: SAFe Product Owner | T49: Uitvoering | U49: Expert IV | V49: S11-13 | W49: analyseren, creativiteit, netwerken, omgevingsbewustzijn, organisatiesensitiviteit, overtuigingskracht, plannen en organiseren, resultaatgerichtheid | X49: Bedrijfsvoering | Y49: Senior Adviseur Bedrijfsvoering | Z49: S11-13 | AA49: analyseren, creativiteit, netwerken, omgevingsbewustzijn, organisatiesensitiviteit, overtuigingskracht, plannen en organiseren | AF49: Product management richt zich op het managen van de totale levenscyclus van een product, van het begin tot het einde. Product management richt zich op productcreatie en product lifecycle management. Dit door het opstellen van de strategie van de business als geheel (bijvoorbeeld een portfolioplan en productroadmap), het tactisch management van de levenscyclus per product-marktcombinatie (infaseren of het uitfaseren van het product) en operationeel management van de waardeketen. Waar Product management zich richt op de gehele levenscyclus van een product binnen een organisatie, richt Product Owner (KWIV 4.5.1) zich op de functionaliteit van het te ontwikkelen product. | AG49: Dienend Leiderschap Leergang : Coachend Leidinggeven of Agile, Leidinggeven of Dienend, Faciliterend en Coachend, Leiderschap in een Agile omgeving User Stories : Writing User Stories Stakeholder Management : Stakeholder Management Training Verwachtingen Management : Resultaatgericht Leidinggeven DevOps : DevOps Fundamentals Effectief Beïnvloeden : Effectief Beïnvloeden
G50: 4.5.3 BUSINESS OWNER (GEDELEGEERD) | H50: Business Owner SAFe | I50: PSPO I of vergelijkbare opleiding | J50: Product Owner SAFe | K50: SAFe Product Owner | T50: Uitvoering | U50: Senior Medewerker Behandelen en Ontwikkelen | V50: S11-13 | W50: analyseren, creativiteit, samenwerken, motiveren, bestuurssensitiviteit, overtuigingskracht, plannen en organiseren, klantgerichtheid | X50: Bedrijfsvoering | Y50: Coördinerend/Specialistisch Adviseur Bedrijfsvoering | Z50: S13-15 | AA50: oordeelsvorming, creativiteit, netwerken, motiveren, omgevingsbewustzijn, organisatiesensitiviteit, overtuigingskracht, plannen en organiseren | AF50: Business owner richt zich bij de productontwikkeling op het oplijnen van de strategische thema's en vertegenwoordigt hierin de business. Draagt de verantwoordelijkheid voor de governance, doelgerichtheid en rendement van het product in de business; onder andere door het beschrijven van de processen. Eventuele belemmeringen worden weggenomen of verkleind. Verder is de Business Owner het eerste aanspreekpunt voor de business ten aanzien van de productontwikkeling. Waar de Business Owner de stakeholder is binnen het ontwikkelteam namens de business, richt de Product Owner (KWIV 4.5.1) zich op de functionaliteit van het te ontwikkelen product. | AG50: Dienend Leiderschap : Leergang Coachend Leidinggeven of Agile, Leidinggeven of Dienend, Faciliterend en Coachend, Leiderschap in een Agile omgeving Stakeholder Management : Stakeholder Management Training Verwachtingen Management : Resultaatgericht Leidinggeven DevOps : DevOps Fundamentals Effectief Beïnvloeden : Effectief Beïnvloeden
G51: 4.6.1 SERVICE DESIGN | T51: Uitvoering | U51: Expert IV | V51: S11-13 | AF51: Service Design richt zich op het praktisch en creatief toepassen van design-tools en -methodes met het doel om diensten te ontwikkelen of verbeteren. Waarbij enerzijds organisatorische doelen, processen en proposities, en anderzijds (latente) behoeften, wensen en eisen van doelgroepen in kaart worden gebracht. Opgedane inzichten worden ingezet om eindproducten of -diensten te definiëren op zo’n wijze dat deze zowel voor een organisatie als voor eindgebruikers toepasbaar zijn. Hoewel Service Design qua categorie onder UX Design valt, kan deze ook buiten UX Design worden ingezet. Waar Service Design zich richt op het creëren of optimaliseren van diensten, richt User Interface Design (KWIV 4.6.2) zich op het ontwikkelen van een product voor de gebruiker.
G52: 4.6.2 USER INTERFACE DESIGN | T52: Uitvoering | U52: Expert IV | V52: S11-13 | AF52: User Interface Design richt zich op het ontwerpen van de gebruikersomgeving. Waarbij dit vakgebied zich bezighoudt met het vormgeven van interacties tussen de mens en een systeem. Dit resulteert in aantrekkelijke, toegankelijke (digitale) interfaces die efficiënt, effectief en intuïtief samenwerken met eindgebruikers. De activiteiten binnen User Interface Design kunnen variëren van het definiëren van interacties, het ontwerpen van interfaces tot het ontwikkelen van content. Waar User Interface Design zich richt op het ontwikkelen van producten voor de gebruiker, richt Service Design (KWIV 4.6.1) zich op creëren of optimaliseren van diensten.
G53: 4.6.3 UX RESEARCH | T53: Uitvoering | U53: Expert IV | V53: S11-13 | AF53: UX Research richt zich op het begrijpen van gebruikers, zodat product design een zo goed mogelijke 'fit' kan maken. Door middel van het uitvoeren van kwalitatief en kwantitatief onderzoek inzichten in de behoeftes, motivaties en emoties van eindgebruikers over een product of dienst wordt dit begrip en inzicht verkregen. Hiernaast worden relevante doelgroepen en belanghebbenden geïdentificeerd en onderzocht om de toegankelijkheid en gebruiksvriendelijkheid van oplossingen te bepalen.
G54: 5.1.1 PROJECTLEIDERSCHAP IV | H54: Projectmanagement | I54: Professional Projectmanager; PRINCE2 Practitioner | J54: Programmamanagement | K54: MSP Foundation | T54: Project-/Programmamanagement | U54: Projectleider | V54: S9-11 | W54: netwerken, motiveren, organisatiesensitiviteit, plannen en organiseren, resultaatgerichtheid, zelfontwikkeling | X54: Project-/Programmamanagement | Y54: Project-/Programmamanager | Z54: S12-15 | AA54: bestuurssensitiviteit, plannen en organiseren, resultaatgerichtheid, omgevingsbewustzijn, netwerken, aansturen organisatie, motiveren, creativiteit | AF54: Projectleiderschap IV richt zich op het managen van (een deel van) een IV-project; doorgaans op operationeel/tactisch niveau. Hieronder valt het (laten) opstellen van projectplanning, organiseren van de uitvoering (inclusief budget), het aansturen van het team en het bewaken van de voortgang en projectrisico’s. Tevens is dit vakgebied verantwoordelijk voor de informatievoorziening rondom het project richting de opdrachtgever en het creëren van draagvlak bij alle interne- en externe partijen. Opdrachtgever kan zijn de business, Projectmanagement IV (KWIV 5.1.2) of Programmamanagement IV (KWIV 5.1.3). | AG54: Organisatie-/Proces management : IT Management Foundation; Professional, Management and Improvement of IT Service Management processes Programma-/projectmanagement : Rijksacademie voor Project- en Programmamanagement Informatiemanagement/Functioneel beheer : Business Information Management Foundation Servicemanagement : ITSM Foundation; ITIL Foundation Agile Scrum : Agile Scrum Foundation
G55: 5.1.2 PROJECTMANAGEMENT IV | H55: Projectmanagement | I55: Professional Projectmanager; PRINCE2 Practitioner | J55: Programmamanagement | K55: MSP Foundation, MSP Practitioner | T55: Project-/Programmamanagement | U55: Project-/Programmamanager | V55: S12-15 | W55: bestuurssensitiviteit, plannen en organiseren, resultaatgerichtheid, omgevingsbewustzijn, netwerken, aansturen organisatie, motiveren, creativiteit | AF55: Projectmanagement IV richt zich op het beheersen van projecten binnen de organisatie, waarbij het doel is om alle projecten in een organisatie succesvol uit te voeren. Hierbij richt een project zich op de realisatie van één vooraf overeengekomen resultaat. Projectmanagement IV bepaalt de standaarden binnen de organisatie voor IV-projecten en coördineert deze, conform standaarden voor het plannen, organiseren, monitoren, beheersen van en rapporteren over IV-projecten. Tevens is projectmanagement IV verantwoordelijk voor het definiëren van projecten en de prioritering hiervan. Waar projectmanagement IV zich richt op het beheersen van projecten, richt programmamanagement IV (KWIV 5.1.3) zich op de beheersing van programma's (met complexe en meerdere doelen). | AG55: Organisatie-/Proces management : IT Management Foundation; Professional Management and Improvement of IT Service Management processes Programma-/projectmanagement : Rijksacademie voor Project- en Programmamanagement Informatiemanagement/Functioneel beheer : Business Information Management Foundation Servicemanagement : ITSM Foundation; ITIL Foundation Applicatiemanagement : Applicatiemanagement Foundation Agile Scrum : Agile Scrum Foundation
G56: 5.1.3 PROGRAMMAMANAGEMENT IV | H56: Projectmanagement | I56: Professional Projectmanager; PRINCE2 Practitioner | J56: Programmamanagement | K56: MSP Practitioner | T56: Project-/Programmamanagement | U56: Project-/Programmamanager | V56: S12-15 | W56: bestuurssensitiviteit, plannen en organiseren, resultaatgerichtheid, omgevingsbewustzijn, netwerken, aansturen organisatie, motiveren, creativiteit | AF56: Programmamanagement IV richt zich op het beheersen en succesvol uitvoeren van programma's binnen de organisatie. Hierbij richt een programma zich richt op het nastreven van meerdere, soms onderling zelfs strijdige doelen in doorgaans minimaal vijf IV-projecten. Programmamanagement IV bepaalt de standaarden binnen de organisatie voor IV-programma's en coördineert deze. De standaarden betreffen het plannen, organiseren, monitoren, beheersen van en rapporteren over IV-programma's. Tevens is programmamanagement IV verantwoordelijk voor het definiëren van programma's en de prioritering hiervan. Waar programmamanagement IV zich richt op het beheersen van programma's (met complexe en meerdere doelen), richt projectmanagement IV (KWIV 5.1.2) zich op de beheersing van projecten. | AG56: Organisatie-/Proces management : IT Management Foundation; Professional, Management and Improvement of IT Service Management processes Programma-/projectmanagement : Rijksacademie voor Project- en Programmamanagement; Managing Successful Programs Practitioner Informatiemanagement/Functioneel beheer : Business Information Management Foundation Servicemanagement : ITSM Foundation; ITIL Foundation Applicatiemanagement : Applicatiemanagement Foundation Scaled Agile Framework : SAFe (Scaled Agile Framework), RTE (Rail Train Engineer)
G57: 5.1.4 PORTFOLIOMANAGEMENT IV | H57: Bestuurlijke informatica | I57: Bachelor Bedrijfskundige Informatica | J57: Portfolio Management | K57: Management of Portfolio Foundation Management of Portfolio Practitioner | T57: Uitvoering | U57: Senior Medewerker Behandelen en Ontwikkelen | V57: S11-13 | W57: analyseren, creativiteit, samenwerken, motiveren, bestuurssensitiviteit, overtuigingskracht, plannen en organiseren, klantgerichtheid | X57: Bedrijfsvoering | Y57: Senior Adviseur Bedrijfsvoering | Z57: S11-13 | AA57: analyseren, creativiteit, netwerken, omgevingsbewustzijn, organisatiesensitiviteit, overtuigingskracht, plannen en organiseren | AF57: Portfoliomanagement IV richt zich op het beheren en afstemmen van middelen (programma's, projecten, producten en diensten) binnen de (IV-)organisatie. Een portfolio-overzicht bestaat uit een serie van bij elkaar horende middelen met een eigen levenscyclus en de bijbehorende resources, budgetten en processen. Door middel van monitoring wordt er inzicht gegeven in de huidige en toekomstige inzet van deze middelen. Hiervoor stelt Portfoliomanagement IV adviezen op. Centralisatie van resources, budgetten en processen zijn hierin belangrijk. Het verschil met programmamanagement IV (5.1.3) is dat die over het managen van een combinatie van projecten gaat, waar portfoliomanagement IV zich vooral focust op het proces van afwegen, selecteren en prioriteren van projecten en programma’s. | AG57: Informatiesystemen : Informatiesystemen Foundation Informatiemanagement : Business Information Management Foundation Programmanagement : Managing Succesful Programs Foundation IT Management : IT Management Foundation P30 : Foundation Certificate in Portfolio, Programma and Project Offices
G58: 5.2.1 SCRUM MASTER | H58: Scrum Master Agile Scrum | I58: PSM I of vergelijkbare opleiding | J58: Scrum Master SAFe | K58: SAFe Scrum Manager | T58: Uitvoering | U58: Expert IV | V58: S11-13 | W58: analyseren, creativiteit, netwerken, omgevingsbewustzijn, organisatiesensitiviteit, overtuigingskracht, plannen en organiseren, resultaatgerichtheid | X58: Bedrijfsvoering | Y58: Senior Adviseur Bedrijfsvoering | Z58: S11-13 | AA58: analyseren, creativiteit, netwerken, omgevingsbewustzijn, organisatiesensitiviteit, overtuigingskracht, plannen en organiseren | AF58: Scrum mastership richt zich op het begrip en het op de correcte wijze uitvoeren van de scrum-aanpak (theorie, praktijk en regels). Het vakgebied ondersteunt het scrumteam en de Product Owner (KWIV 4.5.1) door middel van coaching en facilitering en is het eerste aanspreekpunt. Scrum master is dienend aan het scrumteam en beperkt eventuele belemmeringen, gericht op maximale waarde voor het scrumteam. De scrumaanpak volgens het Agile scrum-framework (rollen, artefacten en events) wordt hierin gevolgd. | AG58: Dienend Leiderschap : Leergang Coachend Leidinggeven of Agile Leidinggeven of Dienend, Faciliterend en Coachend Leiderschap in een Agile omgeving Coachen : Opleiding Teamcoach Verwachtingen Management : Resultaatgericht Leidinggeven DevOps : DevOps Fundamentals
G59: 5.2.2 RELEASE TRAIN ENGINEER | H59: Scrum Master Agile Scrum | I59: PSM I of vergelijkbare opleiding | J59: Scrum Master SAFe | K59: SAFe Scrum Manager | L59: SAFE Release Train Engineer | M59: RTE-Certificering | T59: Uitvoering | U59: Expert IV | V59: S11-13 | W59: analyseren, creativiteit, netwerken, omgevingsbewustzijn, organisatiesensitiviteit, overtuigingskracht, plannen en organiseren, resultaatgerichtheid | X59: Bedrijfsvoering | Y59: Senior Adviseur Bedrijfsvoering | Z59: S11-13 | AA59: analyseren, creativiteit, netwerken, omgevingsbewustzijn, organisatiesensitiviteit, overtuigingskracht, plannen en organiseren | AF59: Release train engineering (RTE) richt zich op de ondersteuning van het totaal aan teams op meerdere niveaus (ondersteunende teams, voorbereidende teams, uitvoerende teams, afrondende teams). RTE in het Scaled Agile Framework (SAFe) is verantwoordelijk voor het geheel van de scrumteams; de ‘Agile Release Train’ (ART). De ondersteuning vindt in samenwerking plaats met de andere ondersteunende agile-vakgebieden, zoals Product management (KWIV 4.5.2) en scrum master (KWIV 5.2.1). RTE is verantwoordelijk voor het onderhouden van de ART en faciliteert alle evenementen (zoals tweedaagse planning, de systeemreview). | AG59: Dienend Leiderschap : Leergang Coachend Leidinggeven of Agile Leidinggeven of Dienend, Faciliterend en Coachend Leiderschap in een Agile omgeving Coachen : Opleiding Teamcoach Verwachtingen Management : Resultaatgericht Leidinggeven DevOps : DevOps Fundamentals
G60: 5.3.1 INFORMATIEMANAGEMENT | H60: Bestuurlijke informatica | I60: Master Bedrijfskundige Informatica | T60: Uitvoering | U60: Senior Medewerker Behandelen en Ontwikkelen | V60: S11-13 | W60: analyseren, creativiteit, samenwerken, motiveren, bestuurssensitiviteit, overtuigingskracht, plannen en organiseren, klantgerichtheid | X60: Bedrijfsvoering | Y60: Senior Adviseur Bedrijfsvoering | Z60: S11-13 | AA60: analyseren, creativiteit, netwerken, omgevingsbewustzijn, organisatiesensitiviteit, overtuigingskracht, plannen en organiseren | AF60: Informatiemanagement richt zich op het managen van het verzamelen, opslaan en beheren van gegevens en andere soorten van informatie binnen een organisatie. Deze informatiebehoefte ontstaat vanuit verschillende bedrijfsprocessen en wordt vertaald in informatievoorziening (IV). Het vakgebied professionaliseert de vraagzijde en is daarvoor op strategisch of tactisch niveau verantwoordelijk. Het zorgt voor de IV-strategie en werkt samen met Informatiebeleid (KWIV 1.2.1) voor het meerjarig informatieplan, gericht op het verbeteren van de IV en conform het organisatiebeleid. Hierin neemt Informatiemanagement de samenhang tussen missie, de bedrijfsdoelstellingen en de (toekomstig) benodigde IV voor Informatiemanagement mee. | AG60: Informatiemanagement : Business Information Management Foundation Servicemanagement : ITSM Foundation; ITIL Foundation Applicatiemanagement : Applicatiemanagement Foundation Projectmanagement : Projectmanagement Foundation; PRINCE2 Foundation Programmamanagement : Managing Successful Programs Foundation Informatiebeveiliging : Information Security Foundation based on ISO/IEC 27002 IT Management : IT Management Foundation
G61: 5.3.2 DATA/GEGEVENSMANAGEMENT | H61: Database Administration | I61: MCDBA | T61: Uitvoering | U61: Senior Medewerker Behandelen en Ontwikkelen | V61: S11-13 | W61: analyseren, creativiteit, samenwerken, motiveren, bestuurssensitiviteit, overtuigingskracht, plannen en organiseren, klantgerichtheid | X61: Bedrijfsvoering | Y61: Senior Adviseur Bedrijfsvoering | Z61: S11-13 | AA61: analyseren, creativiteit, netwerken, omgevingsbewustzijn, organisatiesensitiviteit, overtuigingskracht, plannen en organiseren | AF61: Datamanagement richt zich op het managen van de technische infrastructuur voor de data / gegevens in een organisatie. Met als doel om de data optimaal te beheren en te gebruiken. Daarbij wordt beleid ontwikkeld ten aanzien van de kwaliteit, compliance-eisen, het gebruik en de opslag van deze data / gegevens. Het zorgt ook voor een corporate datamodel, met daarin onder meer de voor de organisatie relevante gegevensdefinities en technische informatie in bijvoorbeeld databases, applicaties en/of systemen. Waar datamanagement zich richt op het managen van de technische infrastructuur van de data, richt recordmanagement (KWIV 5.3.3) zich op het managen het beheer van de records. | AG61: Databases : Databases en QSL Foundation Ontwikkeling van informatiesystemen : Ontwerp en Ontwikkeling Informatiesystemen Foundation Informatietechnologie : IT Foundation; A+ Essentials Informatiesystemen : Informatiesystemen Foundation Applicatiemanagement : Applicatiemanagement Foundation Informatiebeveiliging : Information Security Foundation
G62: 5.3.3 RECORDMANAGEMENT | H62: Database Administration | I62: MCDBA, Oracle Certified Associate (OCA) | T62: Uitvoering | U62: Senior Medewerker IV | V62: S8-11 | W62: analyseren, klantgerichtheid, omgevingsbewustzijn, plannen en organiseren, resultaatgerichtheid, samenwerken, voortgangscontrole, zelfontwikkeling | X62: Bedrijfsvoering | Y62: Adviseur Bedrijfsvoering | Z62: S8-11 | AA62: analyseren, klantgerichtheid, omgevingsbewustzijn, plannen en organiseren, samenwerken, voortgangscontrole, zelfontwikkeling | AF62: Recordmanagement richt zich op het managen van het beheer van de records (een record is informatie die gemaakt, ontvangen en onderhouden wordt) in een organisatie. Met als doel om efficiënte en systematische controle van de records mogelijk te maken. Het vakgebied is ook vanuit kwaliteitszorg in bedrijfsinformatie- en archiveringsprocessen een fundamenteel onderdeel. Hierin neemt recordmanagement de samenhang tussen missie, de bedrijfsdoelstellingen en de (toekomstig) benodigde IV voor recordmanagement mee. Waar recordmanagement zich richt op het managen van het beheer van de records, richt datamanagement (KWIV 5.3.2) zich op het managen van de technische infrastructuur van de data. | AG62: Databases : Databases en QSL Foundation Informatietechnologie : IT Foundation; A+ Essentials
G63: 5.3.4 METADATA/GEGEVENSMANAGEMENT | H63: Database Administration | I63: MCDBA | T63: Uitvoering | U63: Medewerker Behandelen en Ontwikkelen | V63: S9-10 | W63: analyseren, klantgerichtheid, omgevingsbewustzijn, plannen en organiseren, resultaatgerichtheid, samenwerken, voortgangscontrole, zelfontwikkeling | X63: Bedrijfsvoering | Y63: Adviseur Bedrijfsvoering | Z63: S8-11 | AA63: analyseren, klantgerichtheid, omgevingsbewustzijn, plannen en organiseren, samenwerken, voortgangscontrole, zelfontwikkeling | AF63: Metadatamanagement richt zich op het managen van het organiseren en beheren van de data die andere data beschrijft. Ook wel data over data genoemd. Metadatamanagement borgt de eenheid in definitie en gebruik van sets van (niet) verplichte metagegevens. En biedt hiermee het fundament voor het duurzaam beheer, de (inter)departementale uitwisseling en het actief openbaar maken van overheidsinformatie. De visie over metadatamanagement sluit aan bij de doelstellingen van de organisatie en geeft inzicht in de toegevoegde waarde van metadata. Dit geheel conform wet- en regelgeving en de door de organisatie gestelde eisen op het gebied van onder andere (duurzame) toegankelijkheid, vertrouwelijkheid en privacybescherming. | AG63: Databases : Databases en QSL Foundation Ontwikkeling van informatiesystemen : Ontwerp en Ontwikkeling Informatiesystemen Foundation Informatietechnologie : IT Foundation; A+ Essentials Informatiesystemen : Informatiesystemen Foundation Applicatiemanagement : Applicatiemanagement Foundation Informatiebeveiliging : Information Security Foundation
G64: 5.3.5 KWALITEITSMANAGEMENT IV | H64: Kwaliteitsmanagement | I64: IT Quality Assurance | J64: Projectmanagement | K64: Professional Projectmanager; PRINCE2 Practitioner | L64: Programmamanagement | M64: MSP Foundation, MSP Practitioner | T64: Uitvoering | U64: Expert IV | V64: S11-13 | W64: analyseren, creativiteit, netwerken, omgevingsbewustzijn, organisatiesensitiviteit, overtuigingskracht, plannen en organiseren, resultaatgerichtheid | X64: Bedrijfsvoering | Y64: Senior Adviseur Bedrijfsvoering | Z64: S11-13 | AA64: analyseren, creativiteit, netwerken, omgevingsbewustzijn, organisatiesensitiviteit, overtuigingskracht, plannen en organiseren | AF64: Kwaliteitsmanagement IV richt zich op het managen van de optimalisatie van de kwaliteit van IV-processen, -producten en -services. Dit vakgebied kan ingezet worden binnen een (onderdeel van een) organisatie of een groot programma, maar komt ook voor in alle delen van het management van een organisatie. Kwaliteitsmanagement IV is gericht op een optimale beschikbaarheid en kwaliteit van de duurzaam toegankelijke informatiehuishouding, vanuit een ‘end-to-end’-benadering. Met als intentie om de doelen en normen te bereiken, via het handhaven van de vooropgestelde principes voor betrouwbaarheid en integriteit en methoden verder te verbeteren. | AG64: Organisatie-/Proces management : IT Management Foundation; Professional Management and Improvement of IT Service Management processes Programma-/projectmanagement : Rijksacademie voor Project- en Programmamanagement Informatiemanagement/Functioneel beheer : Business Information Management Foundation Servicemanagement : ITSM Foundation; ITIL Foundation Applicatiemanagement : Applicatiemanagement Foundation Agile Scrum : Agile Scrum Foundation
G65: 5.4.1 IT-CONTROL | H65: IT-auditing | I65: Post HBO-opleiding, Certified Information Systems Auditor | T65: Uitvoering | U65: Senior Medewerker Behandelen en Ontwikkelen | V65: S11-13 | W65: analyseren, creativiteit, samenwerken, motiveren, bestuurssensitiviteit, overtuigingskracht, plannen en organiseren, klantgerichtheid | X65: Bedrijfsvoering | Y65: Senior Adviseur Bedrijfsvoering | Z65: S11-13 | AA65: analyseren, creativiteit, netwerken, omgevingsbewustzijn, organisatiesensitiviteit, overtuigingskracht, plannen en organiseren | AF65: IT-control, beter gezegd: IV-control, richt zich op de controle van het informatiebeveiligingsbeleid of IT Risk Management. Het betreft de controle op de algemene beheersmaatregelen (zoals beleidslijnen en procedures) rond de IV-omgeving, die ervoor moeten zorgen dat beheersmaatregelen met een IV-component continu betrouwbaar werken. IV-control is verantwoordelijk voor het toetsen van de kwaliteit, de integratie en de kosten van de IV (inclusief projecten) aan die van de organisatie. Gericht om het risico te verkleinen en rapportages over de bevindingen op te stellen. Hiervoor wordt vaak een framework voor IV-control opgesteld. | AG65: Informatiesystemen : Informatiesystemen Foundation Informatiemanagement : Business Information Management Foundation Informatietechnologie : IT Foundation; A+ Essentials28 Databasebases : Databases en QSL Foundation Applicatiemanagement : Applicatiemanagement Foundation Architectuur : TOGAF Practitioner Informatiebeveiliging : Information Security Foundation based on ISO/IEC 27002 Servicemanagement : ITSM Foundation; ITIL Foundation

Sheet Hulp bij invullen
A1: Aanvragen juist in de markt plaatsen
A3: 1. Enkelvoudige reguliere aanvraag zonder extra opties? | C3: Ga naar stap 3 | H3: Niet doen bij het invullen van aanvragen ICT Inhuur!!
A5: 2. Meerdere FTE's nodig? | C5: In negen van de tien gevallen gewoon als reguliere aanvraag zonder extra opties. Let wel op dat de eisen in proportie blijven (werk en denkniveau i.p.v. diploma, aantal jaren ervaring van iemand die iets dedicated heeft gedaan kan lager. Vermijdt ook ervaringseisen gerelateerd aan een specifieke klant). | H5: Teveel Fte’s op 1 aanvraag. Geef leveranciers de ruimte meer cv’s in te dienen en voeg de regel toe: ‘in geval meerdere kandidaten geschikt worden bevonden, behoudt de dienst zich het recht voor meerdere gunningen te doen.’ Op de aanvraag aangeven dat het om een aangewezen / gerede kandidaat of warme stoel gaat. De ADR verklaart dit onrechtmatig! Verambtelijken zonder de nog lopende nok te respecteren! Wensen als eis opnemen! Bijv. Bij voorkeur heeft de kandidaat…. Dit suggereert een wens en moet dan ook als wens worden genoteerd. Telefonisch toelichting geven aan een opdrachtnemer zonder dit ook te delen met de andere opdrachtnemers.
C8: Voeg eventueel de volgende regel toe bij de aanvraag: In geval meerdere kandidaten geschikt worden bevonden, behoudt de dienst zich het recht voor meerdere gunningen te doen. Afhankelijk van de hoeveelheid Fte’s, kan dan eventueel nog op de aanvraag worden meegegeven dat er bijv. 3 cv’s per opdrachtnemer mogen worden ingediend. Opdrachtnemers worden dan qua aanbiedingsbetrouwbaarheid niet benadeeld (KPI ziet op het indienen van minimaal 1 cv) en hebben de mogelijkheid door het indienen van meer cv’s ook met het tarief meer ruimte te pakken (een dure kandidaat kan direct worden gecompenseerd met een iets goedkopere kandidaat). Vermijdt onnodige clustering van aanvragen, maar zet ze zoveel mogelijk als aparte aanvragen uit, waar mogelijk ook verspreid in de tijd (met vooraankondiging van gelijkwaardige aanvragen). Breid de reguliere inschrijvingstijd uit, als dat kan.
A13: 3. Schaars profiel en mogelijk lastig in te vullen (zie ook 5)? | C13: Optie 1: zet de aanvraag uit als regulier met een max. tarief (geen aanbiedingsplicht, maar ook zekerheid dat afhankelijkheid/schaarste niet leidt tot voor klant onacceptabel tarief) Optie 2: zet de aanvraag uit tegen een hogere salarisschaal Rijk Optie 3: maak de aanvraag vrijblijvend (geen aanbiedingsplicht, tarief afhankelijk van actuele schaarste en mate van concurrentie) Optie 4: zet de aanvraag uit als regulier, maar geef de opdrachtnemers langer de kans om te zoeken (schuif de datum ‘indienen offerte’ verder in de tijd.) Optie 5: doe een vooraankondiging dat de aanvragen er eerdaags (bijv. over twee weken) aankomen met een ruwe indicatie van de profielen, niveau, tarief/schaal Optie 6: zet de aanvraag uit en beleg een conference call waarin de opdrachtnemers, de inhurend manager en een inkoopvertegenwoordiger aanwezig zijn om in 1 x keer binnen korte tijd alle vragen helder te krijgen en te beantwoorden. Optie 7: beleg op voorhand een leveranciersmeeting waarin de manager de aanvraag (en het project) kan toelichten en breng daarna pas de aanvraag in de markt. Optie 8: voor schaarse profielen waaraan een constante behoefte is: zet een aanvraag proactief uit met een langere inschrijvingstijd (bijv. 1 maand). Herhaal deze zo vaak als nodig. Worden geschikte kandidaten gevonden, kan achteraf alsnog een budgetaanvraagMBPC worden ingeschoten. Er geldt geen aanbiedingsplicht. Optie 9: vermijdt in elk geval onnodige clustering van aanvragen met schaars profiel en wees zeer terughoudend bij het formuleren van eisen aan de kandidaat. Overweeg om eisen om te zetten naar wensen.
A22: 4. Veel profielen in een kort tijdsbestek? | C22: Optie 1: beleg op voorhand een leveranciersmeeting waarin de manager de aanvragen (en het project) kan toelichten en breng daarna pas de aanvragen in de markt. Optie 2: zet de aanvragen uit als regulier, maar geef de opdrachtnemers langer de kans om te zoeken (schuif de datum ‘indienen offerte’ verder in de tijd.) Optie 3: doe een vooraankondiging dat de aanvragen er eerdaags (bijv. over twee weken) aankomen met een ruwe indicatie van de profielen, niveau, tarief/schaal
A26: 5. Schaarste moeilijk in te schatten ? | C26: optie 1: neem contact op met de decentrale contractmanager bij je ministerie of de centrale contractmanager van de categorie. Deze heeft misschien ook informatie over soortgelijke profielen bij andere opdrachtgevers. optie 2: vraag informatie op bij de opdrachtnemers en leg zo mogelijk een indicatief profiel uit met het verzoek daarop te reageren (kandidaat aanbieden wel/niet mogelijk binnen toegestane afwijking van overheidstarieven, welke eisen in de aanvraag worden als knelpunt ervaren).

Sheet Kwaliteitsraamwerk I(v) Info
A1: Kwaliteitenprofielen | B1: Toelichting | C1: Voorbeelden van opleidingen
A2: 1.1.1 INFORMATIEARCHITECTUUR | B2: De informatiearchitectuur richt zich op de beschrijving van de inhoudelijk relaties en samenhang tussen toepassingen en gegevensverzamelingen onderling. Het opstellen, beheren en integreren van de structuur van applicaties, databases en andere (data)gegevensverzamelingen. Ook in persoonlijke applicaties, zoals spreadsheets. Daarbij wordt gelet op eventueel gewijzigde informatiebehoeften van gebruikers. Daarnaast worden de beleidsregels voor het beheer van de (elementen van de) informatiearchitectuur opgesteld. Hoewel het vakgebied datamanagement meestal verantwoordelijk is voor het beheer van het bedrijfsdatamodel, wordt dit voor de invulling van dit model vaak bij data- of informatiearchitectuur (KWIV 1.1.3) belegd. | C2: Informatiebeveiliging : Information Security Foundation based on ISO/IEC 27002 Ontwikkeling informatiesystemen : Ontwikkeling Informatiesystemen Foundation
A3: 1.1.2 FUNCTIONEEL ONTWERP/STARTARCHITECTUUR | B3: Functioneel ontwerp/ startarchitectuur richt zich op het beschrijven van wat het informatiesysteem moet kunnen. Samen met (eind)gebruikers en de opdrachtgever worden functionele specificaties opgesteld, waaraan een informatiesysteem moet voldoen. Het ontwerp wordt (mede) op basis van de input vanuit vakgebieden informatieanalyse (KWIV 4.3.1) en/of business analyse (KWIV 4.3.2) gemaakt. Het gaat om het analyseren, modelleren en specifiek de eisen aan informatie bij de gebruikers vaststellen. Het beheer en onderhoud van een informatiesysteem ligt meestal bij functioneel beheer en/of applicatiebeheer. Vanuit functioneel ontwerp/ startarchitectuur wordt ook een bijdrage aan testplannen voor functionele en acceptatietesten geleverd. | C3: Architectuur : NORA, MARIJ (geen certificering) Ontwikkeling van informatiesystemen : Ontwerp en Ontwikkeling Informatiesystemen, Foundation; RAD/LAD; XML/UML; XBRL Programmeren : Java; C#; .Net; Visual Basic; SAP/ERP; Cobol; Python; PHP Gegevensmodellering : Oracle; Databases en SQL Foundation; Objectoriëntatie Foundation Testen : Testen Foundation; TMapNEXT Foundation
A4: 1.1.3 APPLICATIEARCHITECTUUR | B4: Applicatiearchitectuur richt zich op het beschrijven van de samenhang van de applicaties en informatiesystemen binnen de organisatie. Het modelmatig beschrijven van het applicatielandschap (de daadwerkelijk systemen in productie). Daarbij wordt vanuit de principes van onder meer Nora, Gemma, et cetera gewerkt. Dit vakgebied komt vooral voor in organisaties waar grote en complexe systemen worden ontwikkeld. Tevens bij de ontwikkeling van administratieve applicaties en embedded software (software geschreven om machines en apparaten te besturen). Vaak is applicatiearchitectuur sterk verbonden met informatiearchitectuur (KWIV 1.1.1). | C4: Programmeren : Java; C#; .Net; Visual Basic; SAP/ERP; Groupware/Lotus Notes; Powerbuilder/Sybase; Cobol/Cics/DB2; Cool Gen Informatiebeveiliging : Information Security Foundation based on ISO/IEC 27002 Ontwikkeling informatiesystemen : Ontwikkeling Informatiesystemen Foundation Applicatiemanagement : Applicatiemanagement Foundation
A5: 1.1.4 TECHNISCHE ARCHITECTUUR | B5: Technische architectuur richt zich op het beschrijven van de principes, richtlijnen en regels om de informatiesystemen te laten werken. De focus is om de overkoepelende structuur van de technische infrastructuur te ontwerpen. Dit zijn netwerk, servers en storage (opslag). De technische infrastructuur moet worden gebaseerd op de informatiearchitectuur (KWIV 1.1.1), het automatiseringsbeleid en de automatiseringsplannen. Hierbij wordt niet alleen een structuur ontworpen, maar er wordt ook gecontroleerd of aan de gestelde eisen wordt voldaan. Bijvoorbeeld eisen aan passieve en actieve netwerkcomponenten (ook multimedia), systeemsoftware (operating systemen en middleware), de netwerk(beheer)software, servers, server(beheer)software en storage. | C5: Informatiebeveiliging : Information Security Foundation based on ISO/IEC 27002 Servicemanagement : ITSM Foundation; ITIL Foundation
A6: 1.1.5 SYSTEEMARCHITECTUUR | B6: Systeemarchitectuur richt zich op het beschrijven van een conceptueel model dat de structuur, het gedrag en de weergave van een systeem definieert. Hierbij wordt er rekening gehouden met beveiliging, audits, de prestaties en de uitwisseling van gegevens met externe bronnen of bestemmingen. Systeemarchitectuur overziet het gehele domein in technische zin. De schakel tussen de product- of domeinvisie, en de benodigde aanpassingen aan het specifieke IV-landschap. Binnen het Scaled Agile Framework is systeemarchitectuur verantwoordelijk voor het opstellen van de 'architectural features' op programmaniveau. De systeeminfrastructuur moet passen binnen de informatiearchitectuur (KWIV 1.1.1), het automatiseringsbeleid en de automatiseringsplannen. Hierbij is systeemarchitectuur een belangrijke sparringpartner voor de product manager (KWIV 4.5.2) en product owners (KWIV 4.5.1). Vaak maakt systeemarchitectuur deel uit van het productmanagementteam. | C6: Informatiebeveiliging : Information Security Foundation based on ISO/IEC 27002 Servicemanagement : ITSM Foundation; ITIL Foundation Scaled Agile Framework : SAFe Agilist, Leading SAFE Agile voor Lead engineers
A7: 1.1.6 ENTERPRISE ARCHITECTUUR | B7: Enterprise architectuur richt zich op over het vertalen van doelstellingen naar de inrichting van organisatie, processen en informatievoorziening en is in het ontwerpproces vaak als een van de eersten betrokken. Vaak is enterprise architectuur betrokken bij het ontwerp en het beheer van de bedrijfsarchitectuur (doellandschap). Waarbij er stappen worden definieert om van de huidige vorm en status (IST) naar de gewenste vorm en status van het IV-landschap en de bedrijfsprocessen (SOLL) te komen. In een SAFe-omgeving is enterprise architectuur verantwoordelijk voor het opstellen van de 'architectural epics' op portfolioniveau. Het vakgebied kan op bedrijfsniveau - dan wel domeinportfolioniveau - samen met business analyse (KWIV 4.3.2) optrekken om alle epics te visualiseren en de organisatie van werkvoorraad te voorzien. Vanuit enterprise architectuur kan de IV-professional hier de rol van 'epic owner' aannemen. | C7: Informatiebeveiliging : Information Security Foundation based on ISO/IEC 27002 Ontwikkeling informatiesystemen : Ontwikkeling Informatiesystemen Foundation Scaled Agile Framework : Leading SAFE Agile voor Lead engineers User Stories : Writing User Stories Enterprise Architectuur : Opleiding Enterprise architectuur Archimate : Archimate Foundation & Practitioner
A8: 1.2.1 INFORMATIEBELEID | B8: Informatiebeleid is gericht op het verbeteren van betrouwbare informatie en van de informatievoorziening (IV), conform het organisatiebeleid. Informatiebeleid omvat de doelen, middelen en wijze om te voorzien in de benodigde IV en om deze in stand te houden. Informatiebeleid stelt een meerjarig informatieplan op, waarin ook uitgangspunten en randvoorwaarden staan met een samenhang tussen missie, bedrijfsdoelstellingen (en benodigde IV) binnen het Rijk. Het vakgebied wordt in groter verband gezien, waarbij nadrukkelijk relaties worden gelegd tussen overheidsorganisaties en bestuurlijke niveaus. Daarbinnen wordt gebruik gemaakt van rijksbrede standaards, richtlijnen en afspraken. | C8: Informatiebeveiliging : Information Security Foundation based on ISO/IEC 27002 Ontwikkeling informatiesystemen : Ontwikkeling Informatiesystemen Foundation Applicatiemanagement : Applicatiemanagement Foundation Servicemanagement : ITSM Foundation; ITIL Foundation
A9: 1.2.2 INNOVATIEMANAGEMENT | B9: Innovatiemanagement richt zich op het consequent verbeteren en (deels) vernieuwen van producten, processen, organisatie en vaardigheden. Gedurende de initiatiefase van (potentieel) nieuwe projecten. Daarbij houdt het rekening met de departementale architectuur-, beveiligings- en privacykaders. De innovatie kan zich uiten in bijvoorbeeld een experiment, een idee uitwerken tot een pilot of een brainstormsessie organiseren om de gebruikerswensen goed boven tafel te krijgen. Ook is het mogelijk de markt op te gaan om de innovatie te beproeven en de levensvatbaarheid concreet te maken. Doorgaans is er contact met een projectenbureau of andere bron waaruit inspiratie tot innovatie kan worden gehaald. Vakgebied heeft raakvlakken met Informatiebeleid (KWIV 1.2.1) en Kwaliteitsmanagement (KWIV 5.3.5). | C9: Architectuur Postdoc opleidingen, Zoals IMAC, UVA, TI- AS, ROI9 Informatiebeveiliging : Information Security Foundation based on ISO/IEC 27002 Ontwikkeling informatiesystemen : Ontwikkeling Informatiesystemen Foundation Applicatiemanagement : Applicatiemanagement Foundation Servicemanagement : ITSM Foundation; ITIL Foundation
A10: 1.2.3 MANAGEMENT INFORMATIEVOORZIENING | B10: Management Informatievoorziening richt zich op het beheren en managen van informatie die ondersteuning biedt bij het behalen van de organisatie doelstellingen. In dit proces wordt de informatiebehoefte die vanuit de primaire processen en de IT van de organisatie ontstaan, beantwoord met de informatievoorziening. Het initieert de vertaling van technologische en maatschappelijke ontwikkelingen en de nieuwe informatiebehoeften die hierdoor ontstaan. Binnen deze context zorgt het vakgebied voor realisatie van een duurzaam toegankelijke informatiehuishouding. Dit gebeurt door de uiteenlopende kaders, normen en eisen systematisch te wegen en af te zetten tegen huidig en toekomstig gebruik. Ook verwacht men dat vanuit dit vakgebied adequaat over de proportionaliteit van te nemen maatregelen wordt geadviseerd. | C10: nformatiebeveiliging : Information Security Foundation based on ISO/IEC 27002 Ontwikkeling informatiesystemen : Ontwikkeling Informatiesystemen Foundation Applicatiemanagement : Applicatiemanagement Foundation Servicemanagement : ITSM Foundation; ITIL Foundation
A11: 1.3.1 SOURCING MANAGEMENT | B11: Sourcing management richt zich op het adviseren en vastleggen (op IV-gebied) wat de organisatie zelf doet en wat wordt uitbesteed aan leverancier(s). Waarbij er (resultaat)afspraken worden opgesteld met private partijen en/of een (Shared) Service Centrum. Het kan bijvoorbeeld gaan over vernieuwing, ontwikkeling of beheer van applicaties, of het exploiteren van een nieuw rekencentrum. Regionale of landsgrenzen spelen hierbij vrijwel geen rol meer. Ook de wijze waarop de samenwerking tussen klant en leverancier het beste vorm en inhoud kan worden gegeven, behoort tot de expertise. Vaak wordt de beslissing over al dan niet uitbesteden en de contractuele vorm van samenwerking vastgelegd in een sourcingbeleid. | C11: Informatiesystemen : Informatiesystemen Foundation Informatiemanagement : Business Information Management Foundation Informatiebeveiliging : Information Security Foundation based on ISO/IEC 27002 Contractmanagement : Contractmanagement CATS CM Foundation
A12: 2.1.1 APPLICATIEONTWIKKELING | B12: Applicatieontwikkeling richt zich op het proces van het maken van applicaties. Dit kan bijvoorbeeld zijn (1) modulair opbouwen, (2) aanvullende functionaliteit ontwikkelen of (3) parameterisering: standaardapplicaties geschikt maken voor een specifieke situatie. De manier van technisch ontwerpen en applicatieontwikkeling is hierop aangepast, waaronder het gebruik van open software. Veelgebruikte methodieken bij het ontwikkelen van applicatie/softwaresystemen zijn Agile Scrum, Agile XP en SAFe, waarbij de ontwikkelaars in toenemende mate deel gaan uitmaken van DevOps-teams. Waar systeemontwikkeling (KWIV 2.1.2) verantwoordelijk is voor de back-end, is applicatieontwikkeling verantwoordelijk voor de front-end. | C12: Ontwikkelen van informatiesystemen : Ontwikkeling informatiesystemen Foundation; Object Oriëntatie Foundation Applicatiemanagement : Applicatiemanagement Foundation (ASL) IT Infrastructuur : IT Foundation; A+ Essentials
A13: 2.1.2 SYSTEEMONTWIKKELING | B13: Systeemontwikkeling richt zich op één van de volgende processen: (1) de ontwikkeling van een systeem, (2) het ontwerp en de constructie van een nieuw systeem, of (3) de modificatie van een bestaand systeem of een onderdeel daarvan. Op basis van de wensen van de organisatie en gebruikers wordt dit vertaald naar concrete hardware en software (digitale infrastructuur). Daarbij worden technische systemen gebouwd en/of ontworpen (embedded software, ofwel: software geschreven om machines en apparaten te besturen). Het kan gezien worden als een combinatie tussen ontwerpen en programmeren. Waar applicatieontwikkeling (KWIV 2.1.1) verantwoordelijk is voor de front-end, is systeemontwikkeling verantwoordelijk voor de back-end. | C13: Ontwikkeling van informatiesystemen : Ontwerp en Ontwikkeling Informatiesystemen Foundation Testen : Testen Foundation Informatietechnologie : IT Foundation; A+ Essentials Applicatiemanagement : Applicatiemanagement Foundation Informatiebeveiliging : Information Security Foundation
A14: 2.1.3 NETWERKONTWIKKELING | B14: Netwerkontwikkeling richt zich op het ontwerp, de implementatie en het beheer en onderhoud van IT-netwerken. Het gaat hierbij om het ontwerpen en configureren van het interne netwerk (LAN; Local Area Network) en de koppelingen met externe netwerken (WAN; Wide Area Network). Dit is dan ook een ander soort ontwikkeling dan applicaties of systemen. Onderdeel hiervan is de componenten van het netwerk (netwerkapparatuur en besturings-, beheer- en netwerkprogrammatuur) te selecteren en het aansturen van de installatie en het beheer van deze componenten. Vaak wordt kennis verwacht van technieken zoals Routing, Switching, DNS, DHCP en IPAM, maar ook van de laatste e-mailbeveiligingsstandaarden. | C14: Informatiesystemen : Informatiesystemen Foundation Ontwikkeling van informatiesystemen : Ontwerp en Ontwikkeling Informatiesystemen Foundation Informatietechnologie : IT Foundation; A+ Essentials Applicatiemanagement : Applicatiemanagement Foundation Informatiebeveiliging : Information Security Foundation
A15: 2.1.4 DATA ENGINEERING | B15: Data enginering richt zich op het organiseren van data voor analytische doeleinden. Waarbij de data wordt gekoppeld, gestructureerd en geïnterpreteerd uit verschillende databronnen. Het doel is betrouwbare, efficiënte en schaalbare oplossingen bieden voor o.a. business intelligence-doeleinden en machine learning-modellen. Deze oplossingen zijn getoetst aan de onderliggende logica, waarmee de organisatie strategische keuzes kan maken. Vanuit Data enginering is nauw contact met stakeholders aan de business-kant. Verder is het vakgebied data enginering gericht op eventuele productieverstoringen oplossen en betrokken bij productontwikkelingsprojecten. Data enginering draagt zorg voor het beschikbaar, veilig, beheersbaar en robuust beschikbaar stellen van data op bijvoorbeeld een analytics-platform. | C15: Softwareontwerp : Java Software Designer; Microsoft Certified Solution Developer (etc.) Methoden en technieken voor Agile ontwerp : RAD/LAD, RUP Datawarehouse, ETL : Analyzing Data with Power BI, Analyzing Data with SQL Server Reporting Services BI Tooling : Python Fundamentals / Advanced
A16: 2.2.1 TESTMANAGEMENT | B16: Testmanagement richt zich op het proces om de software te testen. Vaak is het testmanagement onderdeel van Agile Scrum, waarbij het testen zelf uitgevoerd wordt door medewerkers en/of via geautomatiseerd testen. Ook 'test driven development' (ontwikkelmethode met eerst de tests schrijven en daarna pas de code) wordt onder dit vakgebied geschaard. Het testen van de software geeft inzicht in, en adviseert over, de kwaliteit van de software en de daaraan gerelateerde risico's. Onderdeel van dit vakgebied kan zijn 'testengineering': hierin wordt het proces bepaald dat onder bepaalde omstandigheden tot een zo goed mogelijke test zal leiden. | C16: Testen en testmethoden : Testen Foundation; ISTQB Foundation Informatietechnologie : IT Foundation; A+ Essentials Informatiesystemen : Informatiesystemen Foundation Projectmanagement : Projectmanagement Foundation; PRINCE2 Foundation Applicatiemanagement : Applicatiemanagement Foundation Ontwikkeling van informatiesystemen : Ontwerp en Ontwikkeling Informatiesystemen Foundation; Object Oriëntatie Foundation
A17: 3.1.1 SYSTEEMBEHEER | B17: Systeembeheer is een algemene benaming voor het beheer van servers en netwerken. In grotere organisaties is dit vakgebied vaak opgesplitst naar serverbeheerder (KWIV 3.1.4) en netwerkbeheerder (KWIV 3.1.5). De naam wordt ook wel gebruikt voor het technisch beheer van een systeem, of de combinatie van meerdere systemen en de servers waarop die draaien. Incidenten en changes kunnen grote gevolgen hebben voor de continuïteit van systemen en daarmee voor de continuïteit van en beeldvorming over de organisatie. Systeembeheer moet in dergelijke situaties onder druk nauwkeurig en volgens de voorgeschreven procedures kunnen werken. Ontwikkel- en beheerrollen worden soms samengevoegd in DevOps-teams. In dat geval zal systeembeheer naast kennis van beheer ook kennis van continuous delivery en continuous integration moeten hebben. | C17: Servicemanagement : ITSM Foundation; ITIL Foundation Informatietechnologie : IT Foundation; A+ Essentials Infrastructuurmanagement : Infrastructuurmanagement Foundation Informatiebeveiliging : Information Security Foundation
A18: 3.1.2 CHANGE MANAGEMENT | B18: Changemanagement richt zich op het aanpassen, beheersen en gecoördineerd invoeren van changes (wijzigingen) in de IV-omgeving. Changemanagement helpt de organisatie met het aanvragen, prioriteren, toestaan, goedkeuren, inplannen en implementeren van allerlei soorten changes. Daarmee moet worden geborgd dat changes zonder merkbare of onacceptabele gevolgen voor gebruikers worden ingevoerd én dat de continuïteit van de informatievoorziening niet in gevaar komt. Changes in de IV-omgeving kunnen betrekking hebben op informatiesystemen of applicaties en/of de technische infrastructuur: netwerk, servers, storage (opslag). | C18: Servicemanagement : ITSM Foundation; ITIL FoundationProjectmanagement : Projectmanagement Foundation; PRINCE2 Foundation Informatietechnologie : IT Foundation; A+ Essentials Informatiesystemen : Informatiesystemen Foundation; MSCE, CDAA Applicatiemanagement : Applicatiemanagement Foundation Informatiebeveiliging : Information Security Foundation
A19: 3.1.3 FUNCTIONEEL BEHEER | B19: Functioneel beheer is de verbindende schakel tussen de uitvoering en ICT van de organisatie. Is verantwoordelijk voor het beantwoorden van gebruikersvragen en zorgt ervoor dat het informatiesysteem (blijvend) voldoet aan de eisen van de gebruikers en dat de functionaliteit consistent is. Functioneel beheer werkt nauw samen met gebruikers voor het evalueren van de functionele specificaties van een informatiesysteem en het uitwerken van de functionele specificaties bij gewenste wijzigingen. Gerealiseerde wijzigingen worden door functioneel beheer getest in acceptatietesten. Daarnaast coördineert functioneel beheer de invoering van wijzigingen in de gebruikersorganisatie. Tot slot is functioneel beheer een vraagbaak voor gebruikers (in de tweede lijn) en het coördineren van oplossingen voor problemen. | C19: Informatiemanagement : Business Information Management Foundation Informatiesystemen : Informatiesystemen Foundation; MSCE, CDAA Testen : Testen Foundation Servicemanagement : ITSM Foundation; ITIL Foundation Informatiebeveiliging : Information Security Foundation based on ISO/IEC 27002
A20: 3.1.4 SERVERBEHEER | B20: Serverbeheer richt zich op het monitoren en onderhouden van servers om deze betrouwbaar en optimaal te laten werken. Daarbij richt het zich op het beheer van hardware, software, beveiliging en back-ups, zodat de IT-omgeving operationeel en doeltreffend blijft. Serverbeheer is betrokken bij de configuratie van een server en het installeren én configureren van wijzigingen. Serverbeheer monitort de werking van servers (vaak met specifieke tooling) en onderneemt acties of voert preventief maatregelen door om een server aan de gestelde eisen te laten voldoen. Bij storingen aan de server zorgt serverbeheer voor het oplossen daarvan. Dit profiel kan een specialisatie zijn van Systeembeheer (KWIV 3.1.1). | C20: Servicemanagement : ITSM Foundation; ITIL Foundation Informatietechnologie : IT Foundation; A+ Essentials Infrastructuurmanagement : Infrastructuurmanagement Foundation Informatiebeveiliging : Information Security Foundation
A21: 3.1.5 NETWERKBEHEER | B21: Netwerkbeheer richt zich op het monitoren en onderhouden van netwerken om deze betrouwbaar en optimaal te laten werken. Daarbij richt het zich op het beheer van hardware, software, beveiliging en back-ups, zodat de IT-netwerkomgeving operationeel en doeltreffend blijft. Netwerkbeheer is betrokken bij het ontwerp van een netwerk en het installeren én configureren van wijzigingen in de netwerkcomponenten. Netwerkbeheer monitort de werking van een netwerk (vaak met specifieke monitoringtools) en neemt reactief of preventief maatregelen om het netwerk aan de gestelde eisen te laten voldoen. Storingen in het netwerk worden door netwerkbeheer opgelost. Dit profiel kan een specialisatie zijn van Systeembeheer (KWIV 3.1.1). | C21: Servicemanagement : ITSM Foundation; ITIL Foundation Informatietechnologie : IT Foundation; A+ Essentials Infrastructuurmanagement : Infrastructuurmanagement Foundation Informatiebeveiliging : Information Security Foundation
A22: 3.1.6 APPLICATIEBEHEER | B22: Applicatiebeheer richt zich op het beheer en onderhoud van de applicaties conform de overeengekomen prestatiekenmerken (performance, bedrijfszekerheid). Applicatiebeheer zorgt voor het aansturen van de realisatie van gewenste wijzigingen door een programmeur of DBA. Ook zorgt applicatiebeheer voor het coördineren van de (technische) implementatie van de wijziging in de productieomgeving. Applicatiebeheer werkt vaak samen met databasebeheer (KWIV 3.1.7) en/of systeembeheer (KWIV 3.1.1). Vaak is applicatiebeheer – in de tweede lijn – betrokken bij het oplossen van incidenten en problemen die ontstaan zijn door technische redenen. | C22: Ontwikkeling van informatiesystemen : Ontwerp en Ontwikkeling Informatiesystemen, Foundation; RAD/LAD; XML/UML; XBRL Webtechnologie en gerelateerde technologieën : HTML, ASP, SOAP, XML, XSL-T, XPath, DOM, XML Schema’s Databases : Databases en SQL Foundation Informatietechnologie : IT Foundation; A+ Essentials Informatiesystemen : Informatiesystemen Foundation; MSCE, CDAA Testen : Testen Foundation; TMapNext Foundation; ISTQB Certified Tester Foundation Level Applicatiemanagement : Applicatiemanagement Foundation Servicemanagement : ITSM Foundation; ITIL Foundation
A23: 3.1.7 DATABASEBEHEER | B23: Databasebeheer richt zich op het beheer en onderhoud van de data (gegevens) conform de overeengekomen prestatiekenmerken (performance, bedrijfszekerheid). Databasebeheer draagt zorg voor de kwaliteit, actualiteit, volledigheid en consistentie van gegevens in een database(s). Verder stelt Databasebeheer het gegevensmodel voor een applicatie op en beheert deze, in samenwerking met informatieanalyse (KWIV 4.3.1) of informatiearchitectuur (KWIV 1.1.1). Databasebeheer zorgt voor het verifiëren van de productieresultaten op het aspect gegevensconsistentie en –correctheid én voert de periodieke analyses op de kwaliteit van de gegevens uit. | C23: Databases : Databases en QSL Foundation Ontwikkeling van informatiesystemen : Ontwerp en Ontwikkeling Informatiesystemen Foundation Informatietechnologie : IT Foundation; A+ Essentials Informatiesystemen : Informatiesystemen Foundation; MSCE, CDAA Applicatiemanagement : Applicatiemanagement Foundation Informatiebeveiliging : Information Security Foundation
A24: 3.1.8 RECORDBEHEER | B24: Recordbeheer richt zich op het identificeren, klasseren, archiveren, bewaren en vernietigen van records (archief). Daarmee draagt het zorg voor kwalitatieve intake, formele ontsluiting, distributie en archivering van gekanaliseerde inkomende (digitale) documentstromen. Recordbeheer zorgt voor het monitoren van de eenduidigheid en juistheid van metagegevenssets op zaken, proces- en documentniveau, het tijdig signaleren van de afwijkingen én de noodzakelijke herstelbewerkingen hierop. Recordbeheer onderhoudt hiertoe veelvuldig contact met zaakhouders en/of (mede)behandelaren om de informatiebehoeften zo goed mogelijk af te stemmen en informatieprocessen bij het organisatieonderdeel beter te laten verlopen. | C24: Informatiesystemen : Informatiesystemen Foundation; MSCE, CDAA
A25: 3.1.9 DATA STEWARDSHIP | B25: Datastewardship richt zich voornamelijk op het ondersteunen van de klant/business in het onderhouden en creëren van data met een hoge kwaliteit. Het vakgebied zorgt voor het definiëren, meten en verbeteren van de datakwaliteit - in een continu proces. Bijvoorbeeld conform criteria voor juistheid, compleetheid of actualiteit (vanuit businessperspectief). Hier valt ook onder het correcte formaat en de correcte betekenis (vanuit vorm, perspectief, conform gegevensdefinitie). Het vakgebied kan op meerdere niveaus (zoals operationeel of tactisch) worden ingedeeld.
A26: 3.2.1 TECHNICAL SUPPORT | B26: Technical support richt zich op het ondersteunen en oplossen van complexe technische problemen van de klant/medewerkers. Tevens voert het controles uit om problemen vroegtijdig te signaleren. Technical support is een tweede lijn support. Veelal gaat het over IT-gerelateerde problemen, maar het kan ook gaan over (rand)apparatuur of machines die niet meer naar behoren functioneren. Technical support is in staat om het totaal van een vraagstuk te overzien. Breedte (overzicht) en diepte (specialistische deskundigheid) op enkele terreinen zijn hierbij van belang. Waar technical support zich richt op de complexere technisch problemen (2de lijn), richt de 1e lijns gebruikersondersteuning (KWIV 3.2.2) op standaard storingen, problemen etc. | C26: Servicemanagement : ITSM Foundation; ITIL Foundation Projectmanagement : Projectmanagement Foundation; PRINCE2 Foundation Informatietechnologie : IT Foundation; A+ Essentials Informatiesystemen : Informatiesystemen Foundation Applicatiemanagement : Applicatiemanagement Foundation15 Databases : Databases en SQL Foundation Ontwikkeling van informatiesystemen : Ontwerp en Ontwikkeling Informatiesystemen Foundation Functioneel beheer : Functioneel Beheer Foundation Informatiebeveiliging : Information Security Foundation Kantoorautomatisering : Europees Computer Rijbewijs
A27: 3.2.2 1e LIJNS GEBRUIKERSONDERSTEUNING | B27: 1e lijns gebruikersondersteuning richt zich op het coördineren, ondersteunen en oplossen van technische problemen van de klant/medewerkers. Het is de eerste lijn support (direct klantcontact). Daarbij coördineert het dat incidenten conform de dienstverleningsovereenkomst (SLA) worden afgehandeld. Indien 1e lijns gebruikersondersteuning het probleem niet kan oplossen, dan wordt het incident doorgezet naar de 2e lijn: bijvoorbeeld technical support (KWIV 3.2.1) of applicatiebeheer (KWIV 3.1.6). Afhankelijk van de organisatie kunnen de volgende facetten ook onder het vakgebied worden geschaard: het identificeren van problemen, het coördineren van wijzigingen, het registreren van gebruikers en/of het instellen van autorisaties. | C27: Informatietechnologie : IT Foundation; A+ Essentials Informatiesystemen : Informatiesystemen Foundation; MSCE, CDAA Kantoorautomatisering : Europees Computer Rijbewijs
A28: 3.2.3 INCIDENT MANAGEMENT | B28: Incidentmanagement richt zich op het vroegtijdig en snel oplossen van een ongeplande verstoring. Deze verstoring kan zich voordoen met de informatievoorziening, in de informatiesystemen of applicaties als in de technische infrastructuur. Hierbij wordt tevens de prioritering van het incident bepaald, aan de hand van urgentie en impact. Dit profiel Incident management is afgeleid van het gelijknamige ITIL-proces. Het vakgebied kan zowel procesmatig als inhoudelijk operationeel zijn ingestoken. Problem management (KWIV 3.2.4) is een direct aanpalend vakgebied. | C28: Servicemanagement ITSM Foundation; ITIL Foundation Informatietechnologie : IT Foundation; A+ Essentials Informatiesystemen : Informatiesystemen Foundation; MSCE, CDAA Applicatiemanagement : Applicatiemanagement Foundation Informatiebeveiliging : Information Security Foundation
A29: 3.2.4 PROBLEM MANAGEMENT | B29: Problemmanagement richt zich op, een gestructureerde wijze, het bundelen van incidenten, het proactief voorkomen van een probleem/incident en het minimaliseren van de impact. Hierbij gaat het om verstoringen van de informatiesystemen/applicaties als in de technische infrastructuur. Problemmanagement onderzoekt incidenten, zodat de achterliggende (mogelijke) oorzaken helder worden en de (waarschijnlijke) impact van incidenten worden verminderd. Daarbij wordt er een Known Error Database (KED) aangelegd. Problemmanagement komt in actie wanneer het incidentmanagementproces (KWIV 3.2.3) nog niet tot de juiste oplossing heeft geleid of een structurele oplossing moet worden gerealiseerd, nadat in het kader van incidentmanagement een workaround is geïmplementeerd of geboden. | C29: Servicemanagement : ITSM Foundation; ITIL Foundation Informatietechnologie : IT Foundation; A+ Essentials Informatiesystemen : Informatiesystemen Foundation; MSCE, CDAA Applicatiemanagement : Applicatiemanagement Foundation Informatiebeveiliging : Information Security Foundation
A30: 3.3.1 SERVICE LEVEL MANAGEMENT | B30: Service level management (SLM) richt zich op de uitgangspunten van de overeengekomen dienstverlening. Het stelt hiervoor een raamwerk op van de processen in de vorm van overeenkomsten, verplichtingen en relaties, die worden beheerd via de zogenaamde dienstencatalogus. De eisen / wensen en behoeften van de gebruikers/lijnmanagement en leveranciers worden afgestemd en vastgelegd in service level agreements (SLA’s). SLM bewaakt proactief of de daadwerkelijk geboden dienstverlening conform de SLA wordt uitgevoerd. SLM herkent en onderscheidt patronen in dienstverlening en de naleving van de gemaakte afspraken. En stelt oplossingen voor ter voorkoming van eventuele problemen. | C30: Servicemanagement : ITSM Foundation; ITIL Foundation Projectmanagement : Projectmanagement Foundation; PRINCE2 Foundation Informatiebeveiliging : Information Security Foundation based on ISO/IEC 27002
A31: 3.3.2 CAPACITY MANAGEMENT | B31: Capacity management is erop gericht om de vraag naar en het aanbod van capaciteit (storage) op optimale wijze op elkaar af te stemmen. Onderdelen van dit vakgebied zijn onder meer het meten, analyseren en het verbeteren van performance. Dit kan door het bepalen van de vereiste capaciteit van IT-middelen, het plannen van die IT-middelen en het voorspellen van de werklast. Relevant daarin is te weten welke systeemperformance nodig is en ook of dit op piekmomenten of in het algemeen zo is. In het geval van een ketenproces worden van tevoren met ketenpartners afspraken gemaakt over de capaciteit die zij ten behoeve van de keten beschikbaar moeten hebben. | C31: Servicemanagement : ITSM Foundation; ITIL Foundation Informatietechnologie : IT Foundation; A+ Essentials Informatiesystemen : Informatiesystemen Foundation
A32: 3.3.3 CONFIGURATION MANAGEMENT | B32: Configuration management richt zich op het operationele beheer van de configuratiedatabase, identificeren en classificeren van de zogenoemde ‘configuratie-items’. Daarbij worden alle componenten van de IT-infrastructuur in kaart gebracht met de onderlinge relaties, gerelateerde documentaties en overige IT-processen welke hierop ondersteuning geven. Deze gegevens worden vastgelegd in de configuratiedatabase. Configuration management is van belang voor het configuratieproces met centraal en zorgvuldig licentiebeheer. En is hiermee een belangrijke schakel in de op- en verdere uitbouw van het configuratieproces en vervult hierin een actieve ‘voortrekkersrol’. Lifecycle-management kan nadrukkelijk als een onderdeel van dit vakgebied worden gezien. | C32: Servicemanagement : ITSM Foundation; ITIL Foundation Informatietechnologie : IT Foundation; A+ Essentials Informatiesystemen : Informatiesystemen Foundation Applicatiemanagement : Applicatiemanagement Foundation Informatiebeveiliging Information Security Foundation
A33: 3.3.4 RELEASE MANAGEMENT | B33: Release management richt zich op het managen van het plannen, bouwen en testen van gewijzigde en nieuwe onderdelen in de software voor een stabiele versie van informatiesystemen (ook wel release). Het gaat daarbij om ervoor te zorgen dat de integriteit van de live-omgeving wordt beschermd en dat de juiste componenten worden vrijgegeven. Niet alleen de afstemming van releases op de businesseisen (zoals invoerings- en beschikbaarheidsdata) is van belang, maar ook het bewaken dat releases zonder problemen voor de continuïteit en consistentie van de IV en de bedrijfsvoering plaatsvinden. Vooral in een Agile-omgeving, waarin in korte tijd nieuwe functionaliteit wordt gebouwd, is het belangrijk op tijdige en accurate integratie van releases te letten. | C33: Servicemanagement : ITSM Foundation; ITIL Foundation Informatietechnologie : IT Foundation; A+ Essentials Informatiesystemen : Informatiesystemen Foundation
A34: 4.1.1 SECURITY MANAGEMENT | B34: IV-securitymanagement (informatiebeveiliging) richt zich op technische maatregelen die ingezet worden voor bescherming/beveiliging van een organisatie en de daarbij behorende medewerkers, klanten/gasten, data, financiën, goederen, et cetera. Het omvat het ontwerpen, implementeren, onderhouden en evalueren van beveiligingsmaatregelen met betrekking tot de IV (hardware en software). Securitymanagement is verantwoordelijk voor de beveiliging van de informatievoorziening (IV). De focus ligt op het beveiligen van de IV wat betreft de vertrouwelijkheid, de integriteit en de beschikbaarheid van informatie. | C34: Informatiemanagement : Business Information Management Foundation
A35: 4.1.2 INFORMATIERISICOMANAGEMENT | B35: Informatierisicomanagement (risicobeheer) richt zich op het identificeren, analyseren en evalueren van de organisatierisico's. Met als doel om de risico's te beheersen die verbonden zijn aan de beschikbaarstelling en het gebruik van componenten van de informatievoorziening (IV). Denk aan netwerken, servers, informatiesystemen en/of applicaties. Meestal is de scope van de verantwoordelijkheden beperkt tot de IV, maar soms wordt dit vakgebied ook ingezet voor het identificeren en mitigeren van risico’s in programma’s of projecten. In veel gevallen levert informatierisicomanagement bijdragen aan het beleid en de richtlijnen voor risicomanagement. Daarnaast hoort ook het opstellen van concrete risicobeheersmaatregelen en/of de gewenste werking toetsen. | C35: Informatiemanagement : Business Information Management Foundation Informatiebeveiliging : Information Security Foundation based on ISO/IEC 27002 Project-/programmamanagement : Prince2 Foundation; Managing Successfull Programs Practitioner Organisatie-/Proces management : IT Management Foundation; Professional Management and Improvement of IT Service Management processes
A36: 4.1.3 CYBERSECURITY MANAGEMENT | B36: Cybersecuritymanagement richt zich op de bescherming van de systemen. Het vakgebied houdt zich bezig met het proactief detecteren van kwetsbaarheden en dreigingen en het nemen van maatregelen om gevolgen van onbekende dreigingen te voorkomen en/of te mitigeren. Verder worden er analyses en forensisch onderzoek van eventueel besmette en gecompromitteerde systemen uitgevoerd. Met als doel om kwetsbaarheden op te sporen en bedreigingen van buitenaf (waaronder hackers) te voorkomen. Het is een relatief jong vakgebied dat volop in ontwikkeling is, waardoor ook het focusgebied met de tijd wat kan verschuiven. | C36: Aanvullende kennis : TCP/IP, UDP, DNS. DHCP, FTP, SNMP, SMTP, SSH, SSL, HTTP, HTTPS,19 Certificaten : gehaald bij SANS/GIA/ ISACA / CIBIT / NCOI Tooling : Nmap, Wireshark, Metasploit, Javascript, HTML, Python, HP ArcSight, Splunk
A37: 4.2.1 CATEGORIEMANAGEMENT IV | B37: Categoriemanagement IV richt zich op het bundelen en beheren van de IV-inkoop, op basis van logisch samenhangende diensten of producten. Categoriemanagement IV is betrokken bij het optimaal inkopen (inclusief uitvraag specificaties) en het optimaal benutten van contracten van producten of diensten. Daarbij wordt een visie ontwikkeld ten aanzien van de levenscyclus van de producten of diensten en de sourcingstrategie, waarbij ook Sourcing management (KWIV 1.3.1) wordt betrokken. Waar categoriemanagement IV zich richt op het beheer, visie en sourcing, richt Inkoop IV (KWIV 4.2.2) zich op productspecificaties ten aanzien van de inkoop IV. NB. In het KWIK (InkoopKolom) bestaat een profiel dat raakvlakken heeft met dit KWIV-profiel. | C37: Programma-/projectmanagement : Rijksacademie voor Project- en Programmamanagement; Managing Successfull Programs Practitioner (Ontwikkelingen, producten en diensten) IT-markt, functioneren van IT marktpartijen én de spelregels : (Post) HBO-modules, Rijksacademie Inkoop,Aanbesteding en IV
A38: 4.2.2 INKOOP IV | B38: Inkoop IV richt zich op het inkopen van IV-producten of -diensten voor de organisatie. Daarbij levert Inkoop IV input aan de inkoopleider aan ten aanzien van de software, hardwarevereisten en de licenties. Dit door het opstellen van de productvereisten waarbij de visie en beleid van de organisatie worden meegenomen (zoals innovatie, duurzaamheid en MVO). Inkoop IV werkt hierbij samen met de business over wat de vereisten zijn van het product of de dienst. Waar Inkoop IV zich richt op productspecificaties voor de inkoop IV, richt categoriemanagement IV (KWIV 4.2.1) zich op het beheer, visie en sourcing van deze inkoop. NB. In het KWIK (InkoopKolom) bestaat een profiel dat raakvlakken heeft met dit KWIV-profiel. | C38: (Ontwikkelingen, producten en diensten) IT-markt, functioneren van IT marktpartijen én de spelregels: (Post) HBO-modules, Rijksacademie Inkoop, Aanbesteding en IV Juridische deelgebieden, zoals auteurs- en octrooirecht en intellectueel eigendom Projectmanagement : Prince2 Foundation
A39: 4.2.3 RELATIEMANAGEMENT IV | B39: Relatiemanagement IV richt zich op het opbouwen, verdiepen en verstevigen van interne en externe relaties. Hierbij hoort het opstellen van een IV-organisatiestrategie t.a.v. alle partijen die betrokken zijn over de informatievoorziening. Relatiemanagement IV is verantwoordelijk voor het afstemmen van de communicatie, de sturing, structurering en werkwijze van alle partijen. Met als doel om het producten- en dienstenaanbod beter aan te laten sluiten op de vraag en aanbod (interne en externe relaties). Relatiemanagement IV werkt nauw samen met contractmanagement IV (KWIV 4.2.4). NB. In het KWIK (InkoopKolom) bestaat een profiel dat raakvlakken heeft met dit KWIV-profiel. | C39: Servicemanagement : ITSM Foundation; ITIL Foundation20 Marketing en accountmanagement van diensten : Nima B Informatiemanagement/Functioneel beheer : Business Information Management Foundation Informatiesystemen : Informatiesystemen Foundation
A40: 4.2.4 CONTRACT/LEVERANCIERSMANAGEMENT IV | B40: Contractmanagement IV richt zich op het afsluiten van contracten en bewaken van de naleving van de in het contract gemaakte afspraken (bijv. KPI's) met leveranciers. De aandacht zit vooral op de juridische en financiële aspecten. Het vakgebied heeft een overzicht van de lopende contracten, eventuele (raam)overeenkomsten, signalering van looptijden, garantietermijnen en prijsherzieningen en het aantal en soorten gecontracteerde leveranciers bij de diverse afdelingen. Contractmanagement IV werkt nauw samen met relatiemanagement IV (KWIV 4.2.3). NB. In het KWIK (InkoopKolom) bestaat een profiel dat raakvlakken heeft met dit KWIV-profiel. | C40: Contractmanagement : Contractmanagement Foundation (CATS) (Ontwikkelingen, producten en diensten) IT-markt, functioneren van IT marktpartijen én de spelregels : (Post) HBO-modules Servicemanagement : ITSM Foundation; ITIL Foundation
A41: 4.3.1 INFORMATIEANALYSE | B41: Informatieanalyse richt zich op welke informatiebehoeften er zijn binnen de organisatie en/of gebruikers. Informatieanalyse vertaalt technologische en maatschappelijke ontwikkelingen, onderzoek naar de kwaliteit van de IV-bedrijfsprocessen en realistische IV-mogelijkheden, naar verbetervoorstellen en consequenties voor de IV-bedrijfsvoering. Waarbij er een verdiepende analyse wordt uitgevoerd van de gekozen oplossing en de validatie van de requirements. Informatieanalyse is de eerste fase in de ontwikkeling van een informatie- of gegevenssysteem. Op basis van kwalitatieve requirements kan de analyse gericht worden uitgevoerd. | C41: Architectuur : TOGAF practitioner Bestuurlijke informatica : Bachelor Bedrijfskundige Informatica Informatiebeveiliging : Information Security Foundation based on ISO/IEC 27002 Ontwikkeling informatiesystemen : Ontwikkeling Informatiesystemen Foundation, Object Oriëntatie Foundation Applicatiemanagement : Applicatiemanagement Foundation Servicemanagement : ITSM Foundation; ITIL Foundation
A42: 4.3.2 BUSINESS ANALYSE | B42: Business analyse richt zich op de ondersteuning van de business op het gebied van inrichten en verbeteren van de bedrijfsprocessen. Business analyse analyseert (de behoeften aan) informatie en informatiesystemen, uitgaande van de eisen aan de bedrijfsprocessen en de workflow daarbinnen. Tevens worden voorstellen gedaan ter verbetering van de IV om daarmee bedrijfsprocessen optimaal te ondersteunen. Business analyse stelt de epics (overkoepelende gebruikerswensen) van het te ontwikkelen proces op. Het vakgebied verbindt de ondersteunende directies en/of afdelingen met de business-informatiebehoefte (bijvoorbeeld met HR, IT, communicatie, bedrijfsvoering). Business analyse werkt samen met enterprisearchitectuur (KWIV 1.1.6) op corporate-, dan wel domeinportfolioniveau. | C42: Architectuur : TOGAF practitioner Bestuurlijke informatica : Bachelor Bedrijfskundige Informatica21 Informatiebeveiliging : Information Security Foundation based on ISO/IEC 27002 Ontwikkeling informatiesystemen : Ontwikkeling Informatiesystemen Foundation, Applicatiemanagement : Applicatiemanagement Foundation Servicemanagement : ITSM Foundation; ITIL Foundation SAFE : SAFE Agilist, SAFe Product Owner
A43: 4.3.3 BUSINESS INTELLIGENCE/DATA ANALYSE | B43: Data-analyse richt zich op het verzamelen van gegevens binnen de eigen organisatie. Met als doel om deze gegevens om te zetten in informatie, dat vervolgens leidt tot kennis en het aanzetten tot adequate actie (slimmer werken). Het vakgebied verzamelt gegevens uit verschillende systemen (logistieke volgsystemen, ERP, enz.), analyseert deze en vormt deze om tot bruikbare informatie voor onder meer het management (dashboard en parameters). Dit vakgebied kan zowel voor de business als voor de IV-afdeling worden ingezet. Waar Data-analyse zich richt op de voorkant van de organisatievraag (adviseren MT), richt Data Science (KWIV 4.3.4) zich op de achterkant van de vraag met veel grote datasets en specialistische data. | C43: Architectuur : TOGAF practitioner Ontwikkeling informatiesystemen : Ontwikkeling Informatiesystemen Foundation, Object Oriëntatie Foundation Bestuurlijke informatica : Bachelor Bedrijfskundige Informatica BI Tooling : Python Fundamentals / Advanced
A44: 4.3.4 DATA SCIENCE | B44: Data Science richt zich op het verkrijgen van inzichten uit (big) data. Voor de analyse worden programmeervaardigheden, statistische kennis, en afdeling- en organisatiekennis gebruikt om verbanden te leggen en inzichten te destilleren. Hiervoor wordt gebruik gemaakt van grote datasets en specialistische data door geavanceerde BI (business intelligence)-tooling en gedefinieerde algoritmen. Daarmee kunnen onder meer patronen worden ontdekt, (beleids)beslissingen worden gevalideerd en voorspellingen worden gedaan over mogelijke gebeurtenissen, gebaseerd op de historische data. Waar Data Science zich richt op de achterkant van de vraag met veel grote datasets en specialistische data, richt de Business Intelligence (KWIV 4.3.3) zich op de voorkant van de organisatievraag (zoals adviseren MT). | C44: Informatiemanagement : Business Information Management Foundation Data Management : Data Management Body of Knowledge BI Tooling : Python Fundamentals / Advanced
A45: 4.4.1 INFORMATIECOACHING | B45: Informatiecoaching richt zich op het duurzaam toegankelijk maken van informatie voor en met de huidige en toekomstige medewerkers. Hieronder valt de begeleiding (instrueren) en ondersteuning van medewerkers in het leerproces hoe zij hun informatie opslaan, toegankelijk maken en houden: digivaardigheden. Inzicht en kennis van zaken (processen, kaders, richtlijnen en mogelijkheden van systemen) is hierbij van belang. Informatiecoaching stelt informatieprofielen op (informatiebehoeften en zoekgedrag persona's) en onderhoudt deze. Verder richt het vakgebied zich op het analyseren van de informatiebehoefte van medewerkers en structurele verbeteringen voorstellen. | C45: Informatiemanagement : Business Information Management Foundation Informatiesystemen : Informatiesystemen Foundation
A46: 4.4.2 LEER- EN ONTWIKKELMANAGEMENT | B46: Leer- en ontwikkelmanagement richt zich op de leer- en ontwikkelomgeving van alle (IV)-medewerkers binnen de organisatie. Gericht op het verbeteren of verdiepen van competenties, maar ook op de persoonlijke (carrière-)ontwikkeling. En het opstellen van een leerstrategie voor de organisatie. Naast het adviseren / begeleiden van teams (naar zelforganisatie en team excellence), ondersteunt het leer- en ontwikkelmanagement de Scrummasters (KWIV 5.2.1) en de Release train engineers (KWIV 5.2.2) in het wegnemen van belemmeringen. Agile- en Lean-principes worden hierbij in ogenschouw gehouden. Continu verbeteren en het overdragen van kennis is onderdeel van dit vakgebied. | C46: Dienend Leiderschap : Leergang Coachend Leidinggeven of Agile, Leidinggeven of Dienend, Faciliterend en Coachend, Leiderschap in een Agile omgeving Coachen : Opleiding Teamcoach – Individueel Coachen Verwachtingen Management : Resultaatgericht Leidinggeven DevOps : DevOps Fundamentals
A47: 4.4.3 (AGILE) COACHING | B47: Agile coaching richt zich op de ondersteuning van teams om Agile te werken. Op basis van Agile waarden en principes wordt het team ondersteund om zich naar een effectieve, transparante samenhangende teams door te ontwikkelen. De coaching vindt plaats op proces, rol en inhoud. Verandermanagement en kennis van organisatiecultuur zijn hierin ook relevant. Agile coaching past hierop de best passende coachingstechnieken en leer- en ontwikkelinterventies toe. Een (agile) coach heeft een bredere visie op het bedrijf en de medewerkers en heeft als doelstelling om het probleemoplossend vermogen van een individu en/of team te vergroten. | C47: Dienend Leiderschap : Leergang Coachend Leidinggeven of Agile, Leidinggeven of Dienend, Faciliterend en Coachend , Leiderschap in een Agile omgeving Coachen : Opleiding Teamcoach Verwachtingen Management : Resultaatgericht Leidinggeven DevOps : DevOps Fundamentals
A48: 4.5.1 PRODUCT OWNER | B48: Product owner is als "eigenaar" van het te ontwikkelen product het eerste aanspreekpunt voor het ontwikkel- of beleidsteam naar de rest van de organisatie. De Product owner zorgt voor stakeholdermanagement, de productvisie, -planning en stelt prioriteiten en de functionaliteit van het product vast. Waarbij het doel is om de waarde van het (business) product te maximaliseren en te waarborgen. De precieze invulling van het vakgebied hangt af van het type organisatie waarin dit voorkomt. Waar Product Owner zich richt op de functionaliteit van het te ontwikkelen product, richt Product management (KWIV 4.5.2) zich op de gehele levenscyclus van een product binnen een organisatie. | C48: Dienend Leiderschap : Leergang Coachend Leidinggeven of Agile, Leidinggeven of Dienend, Faciliterend en Coachend, Leiderschap in een Agile omgeving User Stories : Writing User Stories Stakeholder Management : Stakeholder Management Training Verwachtingen Management : Resultaatgericht Leidinggeven DevOps : DevOps Fundamentals Effectief Beïnvloeden : Effectief Beïnvloeden
A49: 4.5.2 PRODUCT MANAGER | B49: Product management richt zich op het managen van de totale levenscyclus van een product, van het begin tot het einde. Product management richt zich op productcreatie en product lifecycle management. Dit door het opstellen van de strategie van de business als geheel (bijvoorbeeld een portfolioplan en productroadmap), het tactisch management van de levenscyclus per product-marktcombinatie (infaseren of het uitfaseren van het product) en operationeel management van de waardeketen. Waar Product management zich richt op de gehele levenscyclus van een product binnen een organisatie, richt Product Owner (KWIV 4.5.1) zich op de functionaliteit van het te ontwikkelen product. | C49: Dienend Leiderschap Leergang : Coachend Leidinggeven of Agile, Leidinggeven of Dienend, Faciliterend en Coachend, Leiderschap in een Agile omgeving User Stories : Writing User Stories Stakeholder Management : Stakeholder Management Training Verwachtingen Management : Resultaatgericht Leidinggeven DevOps : DevOps Fundamentals Effectief Beïnvloeden : Effectief Beïnvloeden
A50: 4.5.3 BUSINESS OWNER (GEDELEGEERD) | B50: Business owner richt zich bij de productontwikkeling op het oplijnen van de strategische thema's en vertegenwoordigt hierin de business. Draagt de verantwoordelijkheid voor de governance, doelgerichtheid en rendement van het product in de business; onder andere door het beschrijven van de processen. Eventuele belemmeringen worden weggenomen of verkleind. Verder is de Business Owner het eerste aanspreekpunt voor de business ten aanzien van de productontwikkeling. Waar de Business Owner de stakeholder is binnen het ontwikkelteam namens de business, richt de Product Owner (KWIV 4.5.1) zich op de functionaliteit van het te ontwikkelen product. | C50: Dienend Leiderschap : Leergang Coachend Leidinggeven of Agile, Leidinggeven of Dienend, Faciliterend en Coachend, Leiderschap in een Agile omgeving Stakeholder Management : Stakeholder Management Training Verwachtingen Management : Resultaatgericht Leidinggeven DevOps : DevOps Fundamentals Effectief Beïnvloeden : Effectief Beïnvloeden
A51: 4.6.1 SERVICE DESIGN | B51: Service Design richt zich op het praktisch en creatief toepassen van design-tools en -methodes met het doel om diensten te ontwikkelen of verbeteren. Waarbij enerzijds organisatorische doelen, processen en proposities, en anderzijds (latente) behoeften, wensen en eisen van doelgroepen in kaart worden gebracht. Opgedane inzichten worden ingezet om eindproducten of -diensten te definiëren op zo’n wijze dat deze zowel voor een organisatie als voor eindgebruikers toepasbaar zijn. Hoewel Service Design qua categorie onder UX Design valt, kan deze ook buiten UX Design worden ingezet. Waar Service Design zich richt op het creëren of optimaliseren van diensten, richt User Interface Design (KWIV 4.6.2) zich op het ontwikkelen van een product voor de gebruiker.
A52: 4.6.2 USER INTERFACE DESIGN | B52: User Interface Design richt zich op het ontwerpen van de gebruikersomgeving. Waarbij dit vakgebied zich bezighoudt met het vormgeven van interacties tussen de mens en een systeem. Dit resulteert in aantrekkelijke, toegankelijke (digitale) interfaces die efficiënt, effectief en intuïtief samenwerken met eindgebruikers. De activiteiten binnen User Interface Design kunnen variëren van het definiëren van interacties, het ontwerpen van interfaces tot het ontwikkelen van content. Waar User Interface Design zich richt op het ontwikkelen van producten voor de gebruiker, richt Service Design (KWIV 4.6.1) zich op creëren of optimaliseren van diensten.
A53: 4.6.3 UX RESEARCH | B53: UX Research richt zich op het begrijpen van gebruikers, zodat product design een zo goed mogelijke 'fit' kan maken. Door middel van het uitvoeren van kwalitatief en kwantitatief onderzoek inzichten in de behoeftes, motivaties en emoties van eindgebruikers over een product of dienst wordt dit begrip en inzicht verkregen. Hiernaast worden relevante doelgroepen en belanghebbenden geïdentificeerd en onderzocht om de toegankelijkheid en gebruiksvriendelijkheid van oplossingen te bepalen.
A54: 5.1.1 PROJECTLEIDERSCHAP IV | B54: Projectleiderschap IV richt zich op het managen van (een deel van) een IV-project; doorgaans op operationeel/tactisch niveau. Hieronder valt het (laten) opstellen van projectplanning, organiseren van de uitvoering (inclusief budget), het aansturen van het team en het bewaken van de voortgang en projectrisico’s. Tevens is dit vakgebied verantwoordelijk voor de informatievoorziening rondom het project richting de opdrachtgever en het creëren van draagvlak bij alle interne- en externe partijen. Opdrachtgever kan zijn de business, Projectmanagement IV (KWIV 5.1.2) of Programmamanagement IV (KWIV 5.1.3). | C54: Organisatie-/Proces management : IT Management Foundation; Professional, Management and Improvement of IT Service Management processes Programma-/projectmanagement : Rijksacademie voor Project- en Programmamanagement Informatiemanagement/Functioneel beheer : Business Information Management Foundation Servicemanagement : ITSM Foundation; ITIL Foundation Agile Scrum : Agile Scrum Foundation
A55: 5.1.2 PROJECTMANAGEMENT IV | B55: Projectmanagement IV richt zich op het beheersen van projecten binnen de organisatie, waarbij het doel is om alle projecten in een organisatie succesvol uit te voeren. Hierbij richt een project zich op de realisatie van één vooraf overeengekomen resultaat. Projectmanagement IV bepaalt de standaarden binnen de organisatie voor IV-projecten en coördineert deze, conform standaarden voor het plannen, organiseren, monitoren, beheersen van en rapporteren over IV-projecten. Tevens is projectmanagement IV verantwoordelijk voor het definiëren van projecten en de prioritering hiervan. Waar projectmanagement IV zich richt op het beheersen van projecten, richt programmamanagement IV (KWIV 5.1.3) zich op de beheersing van programma's (met complexe en meerdere doelen). | C55: Organisatie-/Proces management : IT Management Foundation; Professional Management and Improvement of IT Service Management processes Programma-/projectmanagement : Rijksacademie voor Project- en Programmamanagement Informatiemanagement/Functioneel beheer : Business Information Management Foundation Servicemanagement : ITSM Foundation; ITIL Foundation Applicatiemanagement : Applicatiemanagement Foundation Agile Scrum : Agile Scrum Foundation
A56: 5.1.3 PROGRAMMAMANAGEMENT IV | B56: Programmamanagement IV richt zich op het beheersen en succesvol uitvoeren van programma's binnen de organisatie. Hierbij richt een programma zich richt op het nastreven van meerdere, soms onderling zelfs strijdige doelen in doorgaans minimaal vijf IV-projecten. Programmamanagement IV bepaalt de standaarden binnen de organisatie voor IV-programma's en coördineert deze. De standaarden betreffen het plannen, organiseren, monitoren, beheersen van en rapporteren over IV-programma's. Tevens is programmamanagement IV verantwoordelijk voor het definiëren van programma's en de prioritering hiervan. Waar programmamanagement IV zich richt op het beheersen van programma's (met complexe en meerdere doelen), richt projectmanagement IV (KWIV 5.1.2) zich op de beheersing van projecten. | C56: Organisatie-/Proces management : IT Management Foundation; Professional, Management and Improvement of IT Service Management processes Programma-/projectmanagement : Rijksacademie voor Project- en Programmamanagement; Managing Successful Programs Practitioner Informatiemanagement/Functioneel beheer : Business Information Management Foundation Servicemanagement : ITSM Foundation; ITIL Foundation Applicatiemanagement : Applicatiemanagement Foundation Scaled Agile Framework : SAFe (Scaled Agile Framework), RTE (Rail Train Engineer)
A57: 5.1.4 PORTFOLIOMANAGEMENT IV | B57: Portfoliomanagement IV richt zich op het beheren en afstemmen van middelen (programma's, projecten, producten en diensten) binnen de (IV-)organisatie. Een portfolio-overzicht bestaat uit een serie van bij elkaar horende middelen met een eigen levenscyclus en de bijbehorende resources, budgetten en processen. Door middel van monitoring wordt er inzicht gegeven in de huidige en toekomstige inzet van deze middelen. Hiervoor stelt Portfoliomanagement IV adviezen op. Centralisatie van resources, budgetten en processen zijn hierin belangrijk. Het verschil met programmamanagement IV (5.1.3) is dat die over het managen van een combinatie van projecten gaat, waar portfoliomanagement IV zich vooral focust op het proces van afwegen, selecteren en prioriteren van projecten en programma’s. | C57: Informatiesystemen : Informatiesystemen Foundation Informatiemanagement : Business Information Management Foundation Programmanagement : Managing Succesful Programs Foundation IT Management : IT Management Foundation P30 : Foundation Certificate in Portfolio, Programma and Project Offices
A58: 5.2.1 SCRUM MASTER | B58: Scrum mastership richt zich op het begrip en het op de correcte wijze uitvoeren van de scrum-aanpak (theorie, praktijk en regels). Het vakgebied ondersteunt het scrumteam en de Product Owner (KWIV 4.5.1) door middel van coaching en facilitering en is het eerste aanspreekpunt. Scrum master is dienend aan het scrumteam en beperkt eventuele belemmeringen, gericht op maximale waarde voor het scrumteam. De scrumaanpak volgens het Agile scrum-framework (rollen, artefacten en events) wordt hierin gevolgd. | C58: Dienend Leiderschap : Leergang Coachend Leidinggeven of Agile Leidinggeven of Dienend, Faciliterend en Coachend Leiderschap in een Agile omgeving Coachen : Opleiding Teamcoach Verwachtingen Management : Resultaatgericht Leidinggeven DevOps : DevOps Fundamentals
A59: 5.2.2 RELEASE TRAIN ENGINEER | B59: Release train engineering (RTE) richt zich op de ondersteuning van het totaal aan teams op meerdere niveaus (ondersteunende teams, voorbereidende teams, uitvoerende teams, afrondende teams). RTE in het Scaled Agile Framework (SAFe) is verantwoordelijk voor het geheel van de scrumteams; de ‘Agile Release Train’ (ART). De ondersteuning vindt in samenwerking plaats met de andere ondersteunende agile-vakgebieden, zoals Product management (KWIV 4.5.2) en scrum master (KWIV 5.2.1). RTE is verantwoordelijk voor het onderhouden van de ART en faciliteert alle evenementen (zoals tweedaagse planning, de systeemreview). | C59: Dienend Leiderschap : Leergang Coachend Leidinggeven of Agile Leidinggeven of Dienend, Faciliterend en Coachend Leiderschap in een Agile omgeving Coachen : Opleiding Teamcoach Verwachtingen Management : Resultaatgericht Leidinggeven DevOps : DevOps Fundamentals
A60: 5.3.1 INFORMATIEMANAGEMENT | B60: Informatiemanagement richt zich op het managen van het verzamelen, opslaan en beheren van gegevens en andere soorten van informatie binnen een organisatie. Deze informatiebehoefte ontstaat vanuit verschillende bedrijfsprocessen en wordt vertaald in informatievoorziening (IV). Het vakgebied professionaliseert de vraagzijde en is daarvoor op strategisch of tactisch niveau verantwoordelijk. Het zorgt voor de IV-strategie en werkt samen met Informatiebeleid (KWIV 1.2.1) voor het meerjarig informatieplan, gericht op het verbeteren van de IV en conform het organisatiebeleid. Hierin neemt Informatiemanagement de samenhang tussen missie, de bedrijfsdoelstellingen en de (toekomstig) benodigde IV voor Informatiemanagement mee. | C60: Informatiemanagement : Business Information Management Foundation Servicemanagement : ITSM Foundation; ITIL Foundation Applicatiemanagement : Applicatiemanagement Foundation Projectmanagement : Projectmanagement Foundation; PRINCE2 Foundation Programmamanagement : Managing Successful Programs Foundation Informatiebeveiliging : Information Security Foundation based on ISO/IEC 27002 IT Management : IT Management Foundation
A61: 5.3.2 DATA/GEGEVENSMANAGEMENT | B61: Datamanagement richt zich op het managen van de technische infrastructuur voor de data / gegevens in een organisatie. Met als doel om de data optimaal te beheren en te gebruiken. Daarbij wordt beleid ontwikkeld ten aanzien van de kwaliteit, compliance-eisen, het gebruik en de opslag van deze data / gegevens. Het zorgt ook voor een corporate datamodel, met daarin onder meer de voor de organisatie relevante gegevensdefinities en technische informatie in bijvoorbeeld databases, applicaties en/of systemen. Waar datamanagement zich richt op het managen van de technische infrastructuur van de data, richt recordmanagement (KWIV 5.3.3) zich op het managen het beheer van de records. | C61: Databases : Databases en QSL Foundation Ontwikkeling van informatiesystemen : Ontwerp en Ontwikkeling Informatiesystemen Foundation Informatietechnologie : IT Foundation; A+ Essentials Informatiesystemen : Informatiesystemen Foundation Applicatiemanagement : Applicatiemanagement Foundation Informatiebeveiliging : Information Security Foundation
A62: 5.3.3 RECORDMANAGEMENT | B62: Recordmanagement richt zich op het managen van het beheer van de records (een record is informatie die gemaakt, ontvangen en onderhouden wordt) in een organisatie. Met als doel om efficiënte en systematische controle van de records mogelijk te maken. Het vakgebied is ook vanuit kwaliteitszorg in bedrijfsinformatie- en archiveringsprocessen een fundamenteel onderdeel. Hierin neemt recordmanagement de samenhang tussen missie, de bedrijfsdoelstellingen en de (toekomstig) benodigde IV voor recordmanagement mee. Waar recordmanagement zich richt op het managen van het beheer van de records, richt datamanagement (KWIV 5.3.2) zich op het managen van de technische infrastructuur van de data. | C62: Databases : Databases en QSL Foundation Informatietechnologie : IT Foundation; A+ Essentials
A63: 5.3.4 METADATA/GEGEVENSMANAGEMENT | B63: Metadatamanagement richt zich op het managen van het organiseren en beheren van de data die andere data beschrijft. Ook wel data over data genoemd. Metadatamanagement borgt de eenheid in definitie en gebruik van sets van (niet) verplichte metagegevens. En biedt hiermee het fundament voor het duurzaam beheer, de (inter)departementale uitwisseling en het actief openbaar maken van overheidsinformatie. De visie over metadatamanagement sluit aan bij de doelstellingen van de organisatie en geeft inzicht in de toegevoegde waarde van metadata. Dit geheel conform wet- en regelgeving en de door de organisatie gestelde eisen op het gebied van onder andere (duurzame) toegankelijkheid, vertrouwelijkheid en privacybescherming. | C63: Databases : Databases en QSL Foundation Ontwikkeling van informatiesystemen : Ontwerp en Ontwikkeling Informatiesystemen Foundation Informatietechnologie : IT Foundation; A+ Essentials Informatiesystemen : Informatiesystemen Foundation Applicatiemanagement : Applicatiemanagement Foundation Informatiebeveiliging : Information Security Foundation
A64: 5.3.5 KWALITEITSMANAGEMENT IV | B64: Kwaliteitsmanagement IV richt zich op het managen van de optimalisatie van de kwaliteit van IV-processen, -producten en -services. Dit vakgebied kan ingezet worden binnen een (onderdeel van een) organisatie of een groot programma, maar komt ook voor in alle delen van het management van een organisatie. Kwaliteitsmanagement IV is gericht op een optimale beschikbaarheid en kwaliteit van de duurzaam toegankelijke informatiehuishouding, vanuit een ‘end-to-end’-benadering. Met als intentie om de doelen en normen te bereiken, via het handhaven van de vooropgestelde principes voor betrouwbaarheid en integriteit en methoden verder te verbeteren. | C64: Organisatie-/Proces management : IT Management Foundation; Professional Management and Improvement of IT Service Management processes Programma-/projectmanagement : Rijksacademie voor Project- en Programmamanagement Informatiemanagement/Functioneel beheer : Business Information Management Foundation Servicemanagement : ITSM Foundation; ITIL Foundation Applicatiemanagement : Applicatiemanagement Foundation Agile Scrum : Agile Scrum Foundation
A65: 5.4.1 IT-CONTROL | B65: IT-control, beter gezegd: IV-control, richt zich op de controle van het informatiebeveiligingsbeleid of IT Risk Management. Het betreft de controle op de algemene beheersmaatregelen (zoals beleidslijnen en procedures) rond de IV-omgeving, die ervoor moeten zorgen dat beheersmaatregelen met een IV-component continu betrouwbaar werken. IV-control is verantwoordelijk voor het toetsen van de kwaliteit, de integratie en de kosten van de IV (inclusief projecten) aan die van de organisatie. Gericht om het risico te verkleinen en rapportages over de bevindingen op te stellen. Hiervoor wordt vaak een framework voor IV-control opgesteld. | C65: Informatiesystemen : Informatiesystemen Foundation Informatiemanagement : Business Information Management Foundation Informatietechnologie : IT Foundation; A+ Essentials28 Databasebases : Databases en QSL Foundation Applicatiemanagement : Applicatiemanagement Foundation Architectuur : TOGAF Practitioner Informatiebeveiliging : Information Security Foundation based on ISO/IEC 27002 Servicemanagement : ITSM Foundation; ITIL Foundation

Sheet Info VOG Items
B1: VOG Overzicht Items
B3: Specifiek screeningsprofiel
A4: 01 | B4: Politieke ambtsdragers
A5: 06 | B5: Visum en emigratie
A6: 25 | B6: (Buitengewoon) opsporingsambtenaar
A7: 40 | B7: Vakantiegezinnen en adoptie
A8: 45 | B8: Gezondheidszorg en welzijn van mens en dier
A9: 50 | B9: Exploitatievergunning; Dit screeningsprofiel is van toepassing bij het aanvragen van een exploitatievergunning voor een horecabedrijf bij de gemeente
A10: 55 | B10: Juridische dienstverlening
A11: 60 | B11: Onderwijs Dit screeningsprofiel is van toepassing op al het personeel dat werkzaam is bij een educatieve instelling
A12: 65 | B12: Taxibranche; chauffeurskaart Dit screeningsprofiel kan alleen worden gebruikt als Kiwa Register B.V. de organisatie is die de VOG verlangt
A13: 70 | B13: Taxibranche; ondernemersvergunning Dit screeningsprofiel kan alleen worden gebruikt als Kiwa Register B.V. de organisatie is die de VOG verlangt
A14: 75 | B14: (Gezins)voogd bij voogdijinstellingen, reclasseringswerker, raadsonderzoeker en maatschappelijk werker
A15: 80 | B15: Beëdigd tolken/vertalers Dit screeningsprofiel kan alleen worden gebruikt als de Raad voor Rechtsbijstand de organisatie is die de VOG verlangt
A16: 85 | B16: Lidmaatschap schietvereniging
A17: 95 | B17: Financiële dienstverlening
B18: Algemeen screeningsprofiel
A19: 11 | B19: Bevoegdheid hebben tot het raadplegen en/of bewerken van systemen
A20: 12 | B20: Met gevoelige/vertrouwelijke informatie omgaan
A21: 13 | B21: Kennis dragen van veiligheidssystemen, controlemechanismen en verificatieprocessen
B22: Geld
A23: 21 | B23: Met contante en/of girale gelden en/of (digitale) waardepapieren omgaan
A24: 22 | B24: Budgetbevoegdheid hebben
B25: Goederen
A26: 36 | B26: Het bewaken van productieprocessen
A27: 37 | B27: Het beschikken over goederen
A28: 38 | B28: Het voorhanden hebben van stoffen, objecten en voorwerpen e.d., die bij oneigenlijk of onjuist gebruik een risico vormen voor mens (en dier)
B29: Diensten
A30: 41 | B30: Het verlenen van diensten (advies, beveiliging, schoonmaak, catering, onderhoud, etc)
A31: 43 | B31: Het verlenen van diensten in de persoonlijke leefomgeving
B32: Zakelijke transacties
A33: 53 | B33: Beslissen over offertes (het voeren van onderhandelingen en het afsluiten van contracten) en het doen van aanbestedingen
B34: Proces
A35: 61 | B35: Het onderhouden/ombouwen/bedienen van (productie)machines en/of apparaten, voertuigen en/of luchtvaartuigen
A36: 62 | B36: (Rijdend) vervoer waarbij goederen, producten, post en pakketten worden getransporteerd en/of bezorgd, anders dan het intern transport binnen een bedrijf
A37: 63 | B37: (Rijdend) vervoer waarbij personen worden vervoerd
B38: Aansturen organisatie
A39: 71 | B39: Personen die vanuit hun functie mensen en/of een organisatie (of een deel daarvan) aansturen
B40: Personen
A41: 84 | B41: Belast zijn met de zorg voor minderjarigen
A42: 85 | B42: Belast zijn met de zorg voor (hulpbehoevende) personen, zoals ouderen en gehandicapten
A43: 86 | B43: Kinderopvang (alleen aanvinken in combinatie met andere functieaspecten)

Sheet Rapportage Info (hidden)
A1: Rapportagegegevens Inhuur Aanvraag ICT | D1: Referentienummer | E1: ='Aanvraag inhuur'!D1 -> 0
A3: U kunt de ingevulde rubrieken overnemen (Kopiëren/Plakken) op uw rapportagewerkblad
A4: Voor vragen kunt u contact opnemen met de contractmanager bereikbaar via : | E4: ='Brongegevens dienst'!B20 -> iuc-inhuur@iuc-noord.nl
A6: INFORMATIE VOOR RAPPORTAGE OPDRACHTNEMERS
A8: Datum aanvraag (Conform opgave Deelnemer) | B8: Referentienummer AANVRAAG van Deelnemer | C8: Departement | D8: Deelnemer | E8: Directie/onderdeel binnen de Deelnemer | F8: Functienaam (roepnaam) | G8: Functie schaal | H8: Functiegroep (Functie Gebouw Rijk) | I8: Dominante kwaliteitenprofiel conform Kwaliteitsraamwerk I(v) | J8: Maximum tarief gesteld door Deelnemer | K8: Doelgroep social return gevraagd (N.V.T.) | L8: Soort Aanvraag | M8: Startdatum initiële inhuurtermijn | N8: Einddatum initiële inhuurtermijn | O8: Aantal uren initiële termijn | P8: Ongewijzigde herhalings- aanvraag (Ja/Nee)
A9: ='Aanvraag inhuur'!C34 -> 2024-04-08T09:50:05.060 | B9: ='Aanvraag inhuur'!D1 -> 0 | C9: ='Aanvraag inhuur'!B17 -> Ministerie van Justitie & Veiligheid | D9: ='Aanvraag inhuur'!B18 -> CJIB | E9: ='Aanvraag inhuur'!B19 -> 0 | F9: ='Aanvraag inhuur'!B69 -> 0 | G9: ='Aanvraag inhuur'!B67 -> 0 | H9: ='Aanvraag inhuur'!B53 ->  | I9: ='Aanvraag inhuur'!D51 -> 0 | J9: =IF(AND('Aanvraag inhuur'!B6>0,'Aanvraag inhuur'!B6<226),"Ja","Nee") -> Nee | K9: Indifferent | L9: ='Aanvraag inhuur'!B5 -> Regulier | M9: ='Aanvraag inhuur'!C128 -> 00:00:00 | N9: ='Aanvraag inhuur'!C129 -> 00:00:00 | O9: ='Aanvraag inhuur'!C137 -> 0 | P9: ='Aanvraag inhuur'!B3 -> 0
C11: Naam budgethouder bij Deelnemer | D11: Email-adres budgethouder bij deelnemer | F11: Aantal uur initiële inhuurtermijn
C12: ='Aanvraag inhuur'!B21 -> 0 | D12: ='Aanvraag inhuur'!D13 -> iuc-inhuur@iuc-noord.nl | F12: ='Aanvraag inhuur'!C137 -> 0

Sheet Brongegevens dienst (hidden)
A1: Aanvraagopties | C1: ORGANISATIE | H1: FEESTDAGEN | R1: LEVERANCIERSINFORMATIE
A2: Bij meerdere geschikte kandidaten behoudt CJIB zich het recht voor om meerdere gunningen te doen. | C2: Departement | D2: Deelnemer | E2: Directie/Bedrijfsonderdeel (sorteer A-Z) | F2: Emailadres Inhuurdesk | G2: Pad | H2: Jaar | I2: 1e Paasdag | J2: 2e Paasdag | K2: Hemelvaartsdag | L2: Koningsdag | M2: 1e Pinksterdag | N2: 2e Pinksterdag | O2: 1e Kerstdag | P2: 2e Kertsdag | Q2: Nieuwjaar | R2: Naam (sorteren!) | S2: Worden niet gebruikt door dienst. Wel laten staan. | X2: Email-adres
C3: Ministerie van Justitie & Veiligheid | D3: CJIB | E3: Bedrijfsvoering | F3: iuc-inhuur@iuc-noord.nl | G3: K:\5 Inkooptrajecten\5.7 Inhuur\ICT\CJIB\ | H3: 2016 | I3: =FIXED(("4/"&H3)/7+MOD(MOD(H3,19)*19-7,30)*14%,0)*7-6 -> 42456 | J3: =I3+1 -> 42457 | K3: =I3+39 -> 42495 | L3: 42487 | M3: =I3+49 -> 42505 | N3: =I3+50 -> 42506 | O3: =DATE(H3,12,25) -> 42729 | P3: =DATE(H3,12,26) -> 42730 | Q3: =DATE(H3,1,1) -> 42370 | R3: Cegeka
E4: CTO Office | H4: 2017 | I4: =FIXED(("4/"&H4)/7+MOD(MOD(H4,19)*19-7,30)*14%,0)*7-6 -> 42841 | J4: =I4+1 -> 42842 | K4: =I4+39 -> 42880 | L4: 42852 | M4: =I4+49 -> 42890 | N4: =I4+50 -> 42891 | O4: =DATE(H4,12,25) -> 43094 | P4: =DATE(H4,12,26) -> 43095 | Q4: =DATE(H4,1,1) -> 42736 | R4: Cimsolutions
A5: Lijst 1 | B5: Lijst 2 | E5: Dienstverlening & Incasso | H5: 2018 | I5: 43191 | J5: 43192 | K5: 43230 | L5: 43217 | M5: 43240 | N5: 43241 | O5: 43459 | P5: 43460 | Q5: 43101 | R5: Circle8
A6: Ja | B6: Ja | E6: Executie | H6: 2019 | I6: 43576 | J6: 43577 | K6: 43615 | M6: 43625 | N6: 43626 | O6: 43824 | P6: 43825 | Q6: 43466 | R6: Get There
A7: Nee | B7: Nee | E7: IT & Data algemeen | H7: 2020 | I7: 43933 | J7: 43934 | K7: 43972 | L7: 43948 | M7: 43982 | N7: 43983 | O7: 44190 | P7: 44191 | Q7: 43831 | R7: Linkit
B8: Indifferent | E8: IT Data en innovatie | H8: 2021 | I8: 44290 | J8: 44291 | K8: 44329 | L8: 44313 | M8: 44339 | N8: 44340 | O8: 44555 | P8: 44556 | Q8: 44197 | R8: Need Staffing
A9: Stamlocatie ICT Inhuur Documenten | E9: IT Voortbrenging | H9: 2022 | I9: 44668 | J9: 44669 | K9: 44707 | L9: 44678 | M9: 44717 | N9: 44718 | O9: 44920 | P9: 44921 | Q9: 44562 | R9: Quest4
A10: K:\5 Inkooptrajecten\5.7 Inhuur\ICT\CJIB\ | E10: IT Voorzieningen | H10: 2023 | I10: 45025 | J10: 45026 | K10: 45064 | L10: 45043 | M10: 45074 | N10: 45075 | O10: 45285 | P10: 45286 | Q10: 44927
E11: Strategie & Beleid | H11: 2024 | I11: 45382 | J11: 45383 | K11: 45421 | M11: 45431 | N11: 45432 | O11: 45651 | P11: 45652 | Q11: 45292
A12: Versienummer formulier | B12: 5.6 | E12: Strategisch programma management | H12: 2025 | I12: 45767 | J12: 45768 | K12: 45806 | M12: 45816 | N12: 45817 | O12: 46016 | P12: 46017 | Q12: 45658
A13: Status Aanvraag | B13: Status Kandidaat | H13: 2026 | I13: 46117 | J13: 46118 | K13: 46156 | L13: 46139 | M13: 46166 | N13: 46167 | O13: 46381 | P13: 46382 | Q13: 46023
A14: Open | B14: Open | H14: 2027 | I14: 46474 | J14: 46475 | K14: 46513 | L14: 46504 | M14: 46523 | N14: 46524 | O14: 46746 | P14: 46747 | Q14: 46388
A15: In beoordeling | B15: Beoordelen | H15: 2028 | I15: 46859 | J15: 46860 | K15: 46898 | L15: 46870 | M15: 46908 | N15: 46909 | O15: 47112 | P15: 47113 | Q15: 46753
A16: Gunnen | B16: Gesprek | H16: 2029 | I16: 47209 | J16: 47210 | K16: 47248 | L16: 47235 | M16: 47258 | N16: 47259 | O16: 47477 | P16: 47478 | Q16: 47119
A17: Geen gunning | B17: Afgewezen | H17: 2030 | I17: 47594 | J17: 47595 | K17: =I17+39 -> 47633 | M17: =I17+49 -> 47643 | N17: =I17+50 -> 47644 | O17: =DATE(H17,12,25) -> 47842 | P17: =DATE(H17,12,26) -> 47843 | Q17: =DATE(H17,1,1) -> 47484
H18: 2031 | I18: 47951 | J18: 47952 | K18: =I18+39 -> 47990 | L18: 11440 | M18: =I18+49 -> 48000 | N18: =I18+50 -> 48001 | O18: =DATE(H18,12,25) -> 48207 | P18: =DATE(H18,12,26) -> 48208 | Q18: =DATE(H18,1,1) -> 47849
A19: Contractmanager | H19: 2032 | I19: 48301 | J19: 48302 | K19: 48340 | L19: 11806 | M19: 48350 | N19: 48351 | O19: 48573 | P19: 48574 | Q19: 48214
A20: Emailadres | B20: iuc-inhuur@iuc-noord.nl | H20: 2033 | I20: 48686 | J20: 48687 | K20: 48725 | L20: 12171 | M20: 48735 | N20: 48736 | O20: 48938 | P20: 48939 | Q20: 48580
A21: Telefoonnummer | H21: 2034 | I21: 49043 | J21: 49044 | K21: 49082 | L21: 12536 | M21: 49092 | N21: 49093 | O21: 49303 | P21: 49304 | Q21: 48945
A22: Standaard tekst dienst | H22: 2035 | I22: 49393 | J22: 49394 | K22: 49432 | M22: 49442 | N22: 49443 | O22: 49668 | P22: 49669 | Q22: 49310
A23: Het CJIB is een relatief jonge en ambitieuze uitvoeringsorganisatie van het Ministerie van Justitie en Veiligheid en is gevestigd te Leeuwarden. Ruim 1900 gedreven medewerkers zorgen ervoor dat de taken op een juiste wijze, ondersteund door adequate en slimme ICT, binnen het gestelde kader worden uitgevoerd. De ICT-organisatie heeft een interne schil medewerkers met de mogelijkheid om flexibel personeel bij te schakelen. Er wordt gewerkt met DevOps-teams die hoogwaardige (ICT) producten ontwikkelen en beheren. | H23: 2036 | I23: 49778 | J23: 49779 | K23: 49817 | L23: 13267 | M23: 49827 | N23: 49828 | O23: 50034 | P23: 50035 | Q23: 49675
H24: 2037 | I24: 50135 | J24: 50136 | K24: 50174 | L24: 13632 | M24: 50184 | N24: 50185 | O24: 50399 | P24: 50400 | Q24: 50041
H25: 2038 | I25: 50520 | J25: 50521 | K25: 50559 | L25: 13997 | M25: 50569 | N25: 50570 | O25: 50764 | P25: 50765 | Q25: 50406
H26: 2039 | I26: 50870 | J26: 50871 | K26: 50909 | L26: 14362 | M26: 50919 | N26: 50920 | O26: 51129 | P26: 51130 | Q26: 50771
A36: Soort | B36: Soort minicompetitie
A37: Regulier | B37: Met leiding en toezicht
A38: Proactief | B38: Zonder leiding en toezicht
A39: Strippenkaart
A40: Cluster
A41: Vrijblijvend
A42: Verambtelijking
